Workbook

Sheet Base
A4: Time(s) | B4: Sample Temperature(°C) | C4: TGA mg | D4: TG(%) | E4: Wi | F4: Wf | G4: α | H4: T | I4: 103/T | J4: LOG | L4: dTG(mg/min) from Lab | N4: HeatFlow(mW) | P4: CP
A5: 0 | B5: 22.383497 | C5: 18 | D5: 100 | E5: =C5 -> 18 | F5: 17.14132116 | G5: =(E5-C5)/(E5-F5) -> 0 | H5: =273+B5 -> 295.383497 | I5: =1000/H5 -> 3.385429485 | J5: =-LOG(-LOG(1-G5)/H5^2) ->  | L5: -0.008909 | N5: -23.781158 | P5: =(N6*A6)/(C6*B6) -> -0.01796811744
A6: 0.3 | B6: 22.383497 | C6: =C5*D6/D5 -> 17.99991036 | D6: 99.999502 | E6: =E5 -> 18 | F6: =F5 -> 17.14132116 | G6: =(E6-C6)/(E6-F6) -> 0.00010439293 | H6: =273+B6 -> 295.383497 | I6: =1000/H6 -> 3.385429485 | J6: =-LOG(-LOG(1-G6)/H6^2) -> 9.284294388 | L6: -0.008909 | N6: -24.131238 | P6: =(N7*A7)/(C7*B7) -> -0.03632531105
A7: 0.6 | B7: 22.383565 | C7: =C5*D7/D5 -> 17.9998245 | D7: 99.999025 | E7: =E6 -> 18 | F7: =F6 -> 17.14132116 | G7: 0.0002043837484 | H7: 295.383565 | I7: 3.385428705 | J7: 8.992497599 | L7: -0.008754 | N7: -24.392461 | P7: -0.05477658377
A8: 0.9 | B8: 22.38423 | C8: 17.99973576 | D8: 99.998532 | E8: 18 | F8: 17.14132116 | G8: 0.0003077285566 | H8: 295.38423 | I8: 3.385421084 | J8: 8.814755669 | L8: -0.008754 | N8: -24.522273 | P8: -0.07291160328
A9: 1.2 | B9: 22.385296 | C9: 17.99964612 | D9: 99.998034 | E9: 18 | F9: 17.14132116 | G9: 0.0004121214865 | H9: 295.385296 | I9: 3.385408866 | J9: 8.68787867 | L9: -0.008597 | N9: -24.481736 | P9: -0.0904405151
A10: 1.5 | B10: 22.381833 | C10: 17.99955756 | D10: 99.997542 | E10: 18 | F10: 17.14132116 | G10: 0.0005152566704 | H10: 295.381833 | I10: 3.385448556 | J10: 8.590847718 | L10: -0.008597 | N10: -24.290097 | P10: -0.1070632856
A11: 1.8 | B11: 22.37677 | C11: 17.99946792 | D11: 99.997044 | E11: 18 | F11: 17.14132116 | G11: 0.0006196496003 | H11: 295.37677 | I11: 3.385506585 | J11: 8.510687599 | L11: -0.008438 | N11: -23.956597 | P11: -0.1226967133
A12: 2.1 | B12: 22.36778 | C12: 17.99938584 | D12: 99.996588 | E12: 18 | F12: 17.14132116 | G12: 0.0007152383073 | H12: 295.36778 | I12: 3.385609629 | J12: 8.448335801 | L12: -0.008438 | N12: -23.523081 | P12: -0.1375732751
A13: 2.4 | B13: 22.356125 | C13: 17.99930862 | D13: 99.996159 | E13: 18 | F13: 17.14132116 | G13: 0.0008051671566 | H13: 295.356125 | I13: 3.385743228 | J13: 8.396846702 | L13: -0.008277 | N13: -23.066154 | P13: -0.1525077746
A14: 2.7 | B14: 22.342805 | C14: 17.99922654 | D14: 99.995703 | E14: 18 | F14: 17.14132116 | G14: 0.0009007558635 | H14: 295.342805 | I14: 3.385895925 | J14: 8.348065711 | L14: -0.008277 | N14: -22.715367 | P14: -0.1674626977
A15: 3 | B15: 22.326955 | C15: 17.9991369 | D15: 99.995205 | E15: =E14 -> 18 | F15: =F14 -> 17.14132116 | G15: 0.001005148793 | H15: 295.326955 | I15: 3.386077644 | J15: 8.300373151 | L15: -0.008114 | N15: -22.432517 | P15: -0.1827553182
A16: 3.3 | B16: 22.311771 | C16: 17.99905212 | D16: 99.994734 | E16: 18 | F16: 17.14132116 | G16: 0.001103881866 | H16: 295.311771 | I16: 3.386251745 | J16: 8.259614791 | L16: -0.008114 | N16: -22.240255 | P16: -0.199116018
A17: 3.6 | B17: 22.300517 | C17: 17.99896248 | D17: 99.994236 | E17: 18 | F17: 17.14132116 | G17: 0.001208274796 | H17: 295.300517 | I17: 3.386380797 | J17: 8.220315881 | L17: -0.007948 | N17: -22.200671 | P17: -0.2170734544
A18: 3.9 | B18: 22.290193 | C18: 17.99887284 | D18: 99.993738 | E18: 18 | F18: 17.14132116 | G18: 0.001312667726 | H18: 295.290193 | I18: 3.386499192 | J18: 8.18427373 | L18: -0.007948 | N18: -22.330644 | P18: -0.2359690139
A19: 4.2 | B19: 22.284267 | C19: 17.99878032 | D19: 99.993224 | E19: 18 | F19: 17.14132116 | G19: 0.001420414645 | H19: 295.284267 | I19: 3.386567155 | J19: 8.149972541 | L19: -0.007781 | N19: -22.534458 | P19: -0.2547552621
A20: 4.5 | B20: 22.283669 | C20: 17.99869068 | D20: 99.992726 | E20: 18 | F20: 17.14132116 | G20: 0.001524807575 | H20: 295.283669 | I20: 3.386574013 | J20: 8.119148186 | L20: -0.007781 | N20: -22.705876 | P20: -0.2733954357
A21: 4.8 | B21: 22.286466 | C21: 17.99860104 | D21: 99.992228 | E21: 18 | F21: 17.14132116 | G21: 0.001629200505 | H21: 295.286466 | I21: 3.386541935 | J21: 8.09037422 | L21: -0.007611 | N21: -22.847042 | P21: -0.2923090736
A22: 5.1 | B22: 22.292793 | C22: 17.99851122 | D22: 99.991729 | E22: 18 | F22: 17.14132116 | G22: 0.00173380306 | H22: 295.292793 | I22: 3.386469374 | J22: 8.063344856 | L22: -0.007611 | N22: -22.997106 | P22: -0.3110141991
A23: 5.4 | B23: 22.301386 | C23: 17.99842266 | D23: 99.991237 | E23: 18 | F23: 17.14132116 | G23: 0.001836938243 | H23: 295.301386 | I23: 3.386370831 | J23: 8.038252912 | L23: -0.007439 | N23: -23.118133 | P23: -0.3277230033
A24: 5.7 | B24: 22.313573 | C24: 17.9983368 | D24: 99.99076 | E24: 18 | F24: 17.14132116 | G24: 0.001936929062 | H24: 295.313573 | I24: 3.386231083 | J24: 8.015247851 | L24: -0.007439 | N24: -23.090512 | P24: -0.3423614409
A25: 6 | B25: 22.327423 | C25: 17.99824716 | D25: 99.990262 | E25: 18 | F25: 17.14132116 | G25: 0.002041321992 | H25: 295.327423 | I25: 3.386072278 | J25: 7.992468081 | L25: -0.007265 | N25: -22.929913 | P25: -0.3561896274
A26: 6.3 | B26: 22.339542 | C26: 17.99815842 | D26: 99.989769 | E26: 18 | F26: 17.14132116 | G26: 0.0021446668 | H26: 295.339542 | I26: 3.385933334 | J26: 7.971032929 | L26: -0.007265 | N26: -22.732283 | P26: -0.3687782609
A27: 6.6 | B27: 22.347734 | C27: 17.998065 | D27: 99.98925 | E27: 18 | F27: 17.14132116 | G27: 0.002253461841 | H27: 295.347734 | I27: 3.385839419 | J27: 7.949542973 | L27: -0.007089 | N27: -22.474016 | P27: -0.3806589834
A28: 6.9 | B28: 22.352327 | C28: 17.99797626 | D28: 99.988757 | E28: 18 | F28: 17.14132116 | G28: 0.00235680665 | H28: 295.352327 | I28: 3.385786766 | J28: 7.93006025 | L28: -0.007089 | N28: -22.193889 | P28: -0.3929225957
A29: 7.2 | B29: 22.354256 | C29: 17.99789436 | D29: 99.988302 | E29: 18 | F29: 17.14132116 | G29: 0.002452185732 | H29: 295.354256 | I29: 3.385764653 | J29: 7.912815764 | L29: -0.006912 | N29: -21.956162 | P29: -0.4044125489
A30: 7.5 | B30: 22.354388 | C30: 17.99780562 | D30: 99.987809 | E30: 18 | F30: 17.14132116 | G30: 0.00255553054 | H30: 295.354388 | I30: 3.38576314 | J30: 7.89486595 | L30: -0.006912 | N30: -21.694303 | P30: -0.4178891433
A31: 7.8 | B31: 22.352189 | C31: =C5*D31/D5 -> 17.99771598 | D31: 99.987311 | E31: 18 | F31: 17.14132116 | G31: 0.00265992347 | H31: 295.352189 | I31: 3.385788348 | J31: 7.877448699 | L31: -0.006732 | N31: -21.552812 | P31: -0.4317442725
A32: 8.1 | B32: 22.348529 | C32: 17.99762634 | D32: 99.986813 | E32: 18 | F32: 17.14132116 | G32: 0.0027643164 | H32: 295.348529 | I32: 3.385830305 | J32: 7.860696606 | L32: -0.006732 | N32: -21.43906 | P32: -0.4471003805
A33: 8.4 | B33: 22.344267 | C33: 17.99752626 | D33: 99.986257 | E33: 18 | F33: 17.14132116 | G33: 0.002880867543 | H33: 295.344267 | I33: 3.385879165 | J33: 7.842723164 | L33: -0.00655 | N33: -21.40448 | P33: -0.4651695773
A34: 8.7 | B34: 22.341673 | C34: 17.997426 | D34: 99.9857 | E34: 18 | F34: 17.14132116 | G34: 0.00299762831 | H34: 295.341673 | I34: 3.385908903 | J34: 7.825435627 | L34: -0.00655 | N34: -21.498994 | P34: -0.4829803132
A35: 9 | B35: 22.341476 | C35: 17.99732502 | D35: 99.985139 | E35: 18 | F35: 17.14132116 | G35: 0.003115227574 | H35: 295.341476 | I35: 3.385911161 | J35: 7.80869745 | L35: -0.006367 | N35: -21.577779 | P35: -0.5005036432
A36: 9.3 | B36: 22.343407 | C36: 17.99722476 | D36: 99.984582 | E36: 18 | F36: 17.14132116 | G36: 0.003231988342 | H36: =273+B36 -> 295.343407 | I36: 3.385889024 | J36: =-LOG(-LOG(1-G36)/H36^2) -> 7.7926977 | L36: -0.006367 | N36: -21.641095 | P36: -0.518697048
A37: 9.6 | B37: 22.346271 | C37: 17.99711982 | D37: 99.983999 | E37: 18 | F37: 17.14132116 | G37: 0.003354199342 | H37: 295.346271 | I37: 3.38585619 | J37: 7.776560428 | L37: -0.006182 | N37: -21.729544 | P37: -0.5349234563
A38: 9.9 | B38: 22.352264 | C38: 17.9970093 | D38: 99.983385 | E38: 18 | F38: 17.14132116 | G38: 0.003482908697 | H38: 295.352264 | I38: 3.385787488 | J38: 7.760196804 | L38: -0.006182 | N38: -21.735934 | P38: -0.5517682308
A39: 10.2 | B39: 22.359124 | C39: 17.9968977 | D39: 99.982765 | E39: 18 | F39: 17.14132116 | G39: 0.003612875799 | H39: 295.359124 | I39: 3.38570885 | J39: 7.74427773 | L39: -0.005996 | N39: -21.76752 | P39: -0.5627892543
A40: 10.5 | B40: 22.367113 | C40: 17.99677476 | D40: 99.982082 | E40: 18 | F40: 17.14132116 | G40: 0.003756049235 | H40: 295.367113 | I40: 3.385617274 | J40: 7.727391793 | L40: -0.005996 | N40: -21.575512 | P40: -0.5672067245
A41: 10.8 | B41: 22.375173 | C41: 17.99665938 | D41: 99.981441 | E41: 18 | F41: 17.14132116 | G41: 0.003890418448 | H41: 295.375173 | I41: 3.38552489 | J41: 7.712121185 | L41: -0.005809 | N41: -21.148322 | P41: -0.5692232343
A42: 11.1 | B42: 22.382698 | C42: 17.99654778 | D42: 99.980821 | E42: 18 | F42: 17.14132116 | G42: 0.00402038555 | H42: 295.382698 | I42: 3.385438642 | J42: 7.69784361 | L42: -0.005809 | N42: -20.656716 | P42: -0.5690461544
A43: 11.4 | B43: 22.390091 | C43: 17.99643996 | D43: 99.980222 | E43: 18 | F43: 17.14132116 | G43: 0.00414595054 | H43: 295.390091 | I43: 3.385353912 | J43: 7.684481576 | L43: -0.005621 | N43: -20.113382 | P43: -0.5659137582
A44: 11.7 | B44: 22.395354 | C44: 17.99633988 | D44: 99.979666 | E44: 18 | F44: 17.14132116 | G44: 0.004262501682 | H44: 295.395354 | I44: 3.385293595 | J44: 7.672431208 | L44: -0.005621 | N44: -19.494249 | P44: -0.5620438944
A45: 12 | B45: 22.39742 | C45: 17.99623962 | D45: 99.979109 | E45: 18 | F45: 17.14132116 | G45: 0.004379262449 | H45: 295.39742 | I45: 3.385269919 | J45: 7.660675427 | L45: -0.005432 | N45: -18.878555 | P45: -0.5585319935
A46: 12.3 | B46: 22.398086 | C46: 17.99614998 | D46: 99.978611 | E46: 18 | F46: 17.14132116 | G46: 0.004483655379 | H46: 295.398086 | I46: 3.385262286 | J46: 7.650423381 | L46: -0.005432 | N46: -18.303471 | P46: -0.5599533995
A47: 12.6 | B47: 22.397353 | C47: 17.99606034 | D47: 99.978113 | E47: 18 | F47: 17.14132116 | G47: 0.004588048309 | H47: 295.397353 | I47: 3.385270687 | J47: 7.640402713 | L47: -0.005242 | N47: -17.91247 | P47: -0.5666932442
A48: 12.9 | B48: 22.395687 | C48: 17.9959707 | D48: 99.977615 | E48: 18 | F48: 17.14132116 | G48: 0.004692441239 | H48: 295.395687 | I48: 3.385289779 | J48: 7.630604197 | L48: -0.005242 | N48: -17.705084 | P48: -0.5792159301
A49: 13.2 | B49: 22.392156 | C49: 17.99588592 | D49: 99.977144 | E49: 18 | F49: 17.14132116 | G49: 0.004791174311 | H49: 295.392156 | I49: 3.385330246 | J49: 7.621529161 | L49: -0.005052 | N49: -17.682176 | P49: -0.6004844605
A50: 13.5 | B50: 22.388227 | C50: 17.99579628 | D50: 99.976646 | E50: 18 | F50: 17.14132116 | G50: 0.004895567241 | H50: 295.388227 | I50: 3.385375274 | J50: 7.612133799 | L50: -0.005052 | N50: -17.920857 | P50: -0.6287325974
A51: 13.8 | B51: 22.385961 | C51: 17.9957142 | D51: 99.97619 | E51: 18 | F51: 17.14132116 | G51: 0.004991155948 | H51: 295.385961 | I51: 3.385401245 | J51: 7.603708174 | L51: -0.004861 | N51: -18.354042 | P51: -0.659778605
A52: 14.1 | B52: 22.385959 | C52: 17.99563608 | D52: 99.975756 | E52: 18 | F52: 17.14132116 | G52: 0.005082132919 | H52: 295.385959 | I52: 3.385401267 | J52: 7.595843449 | L52: -0.004861 | N52: -18.850463 | P52: -0.6928812843
A53: 14.4 | B53: 22.387226 | C53: 17.99554644 | D53: 99.975258 | E53: 18 | F53: 17.14132116 | G53: 0.005186525849 | H53: 295.387226 | I53: 3.385386747 | J53: 7.586993881 | L53: -0.004669 | N53: -19.384815 | P53: -0.7276431189
A54: 14.7 | B54: 22.38969 | C54: 17.9954586 | D54: 99.97477 | E54: 18 | F54: 17.14132116 | G54: 0.005288822536 | H54: 295.38969 | I54: 3.385358507 | J54: 7.578496368 | L54: -0.004669 | N54: -19.943992 | P54: -0.7607707071
A55: 15 | B55: 22.392487 | C55: 17.99536428 | D55: 99.974246 | E55: 18 | F55: 17.14132116 | G55: 0.005398665699 | H55: 295.392487 | I55: 3.385326452 | J55: 7.569553193 | L55: -0.004477 | N55: -20.437393 | P55: -0.7874575919
A56: 15.3 | B56: 22.398214 | C56: 17.99526798 | D56: 99.973711 | E56: 18 | F56: 17.14132116 | G56: 0.00551081473 | H56: 295.398214 | I56: 3.385260819 | J56: 7.560616193 | L56: -0.004477 | N56: -20.744714 | P56: -0.8049401302
A57: 15.6 | B57: 22.404541 | C57: 17.99517924 | D57: 99.973218 | E57: 18 | F57: 17.14132116 | G57: 0.005614159538 | H57: 295.404541 | I57: 3.385188314 | J57: 7.552543312 | L57: -0.004283 | N57: -20.803251 | P57: -0.8193965367
A58: 15.9 | B58: 22.411069 | C58: 17.99508186 | D58: 99.972677 | E58: 18 | F58: 17.14132116 | G58: 0.005727566316 | H58: 295.411069 | I58: 3.385113508 | J58: 7.543852387 | L58: -0.004283 | N58: -20.783247 | P58: -0.8318049592
A59: 16.2 | B59: 22.416531 | C59: 17.99498556 | D59: 99.972142 | E59: 18 | F59: 17.14132116 | G59: 0.005839715347 | H59: 295.416531 | I59: 3.38505092 | J59: 7.535422424 | L59: -0.004089 | N59: -20.712208 | P59: -0.8431451502
A60: 16.5 | B60: 22.420657 | C60: 17.99489592 | D60: 99.971644 | E60: 18 | F60: 17.14132116 | G60: 0.005944108277 | H60: 295.420657 | I60: 3.385003642 | J60: 7.527716741 | L60: -0.004089 | N60: -20.616554 | P60: -0.8539218169
A61: 16.8 | B61: 22.423256 | C61: 17.99481384 | D61: 99.971188 | E61: 18 | F61: 17.14132116 | G61: 0.006039696984 | H61: 295.423256 | I61: 3.384973863 | J61: 7.520775083 | L61: -0.003895 | N61: -20.50949 | P61: -0.867339845
A62: 17.1 | B62: 22.425389 | C62: 17.99472906 | D62: 99.970717 | E62: 18 | F62: 17.14132116 | G62: 0.006138430056 | H62: 295.425389 | I62: 3.384949423 | J62: 7.513717644 | L62: -0.003895 | N62: -20.468145 | P62: -0.8842070132
A63: 17.4 | B63: 22.425859 | C63: 17.99463942 | D63: 99.970219 | E63: 18 | F63: 17.14132116 | G63: 0.006242822986 | H63: 295.425859 | I63: 3.384944038 | J63: 7.506372531 | L63: -0.003701 | N63: -20.506755 | P63: -0.9062832949
A64: 17.7 | B64: 22.426259 | C64: 17.99455734 | D64: 99.969763 | E64: 18 | F64: 17.14132116 | G64: 0.006338411693 | H64: 295.426259 | I64: 3.384939455 | J64: 7.499753417 | L64: -0.003701 | N64: -20.662778 | P64: -0.9285313755
A65: 18 | B65: 22.427323 | C65: 17.99447922 | D65: 99.969329 | E65: 18 | F65: 17.14132116 | G65: 0.006429388664 | H65: 295.427323 | I65: 3.384927263 | J65: 7.493547448 | L65: -0.003507 | N65: -20.818086 | P65: -0.953414277
A66: 18.3 | B66: 22.427923 | C66: 17.99440182 | D66: 99.968899 | E66: 18 | F66: 17.14132116 | G66: 0.006519527138 | H66: 295.427923 | I66: 3.384920389 | J66: 7.487483115 | L66: -0.003507 | N66: -21.026018 | P66: -0.9797991111
A67: 18.6 | B67: 22.428589 | C67: 17.99433414 | D67: 99.968523 | E67: 18 | F67: 17.14132116 | G67: 0.006598345896 | H67: 295.428589 | I67: 3.384912758 | J67: 7.482248883 | L67: -0.003314 | N67: -21.25993 | P67: -1.002244427
A68: 18.9 | B68: 22.429388 | C68: 17.99425692 | D68: 99.968094 | E68: 18 | F68: 17.14132116 | G68: 0.006688274745 | H68: 295.429388 | I68: 3.384903603 | J68: 7.476352569 | L68: -0.003314 | N68: -21.402435 | P68: -1.020677612
A69: 19.2 | B69: 22.428987 | C69: 17.99417772 | D69: 99.967654 | E69: 18 | F69: 17.14132116 | G69: 0.006780509463 | H69: 295.428987 | I69: 3.384908198 | J69: 7.470383027 | L69: -0.003121 | N69: -21.455025 | P69: =(N70*A70)/(C70*B70) -> -1.029722394
A70: 19.5 | B70: 22.428786 | C70: 17.99409294 | D70: 99.967183 | E70: 18 | F70: 17.14132116 | G70: =(E70-C70)/(E70-F70) -> 0.006879242535 | H70: 295.428786 | I70: =1000/H70 -> 3.384910501 | J70: 7.464082579 | L70: -0.003121 | N70: -21.311856 | P70: -1.033642966
A71: 19.8 | B71: 22.42652 | C71: 17.9940033 | D71: 99.966685 | E71: 18 | F71: 17.14132116 | G71: 0.006983635465 | H71: 295.42652 | I71: 3.384936464 | J71: 7.457512176 | L71: -0.002929 | N71: -21.066629 | P71: -1.035387137
A72: 20.1 | B72: 22.42286 | C72: 17.99391366 | D72: 99.966187 | E72: 18 | F72: 17.14132116 | G72: 0.007088028395 | H72: 295.42286 | I72: 3.3849784 | J72: 7.451034726 | L72: -0.002929 | N72: -20.783723 | P72: -1.031265283
A73: 20.4 | B73: 22.420864 | C73: 17.99382492 | D73: 99.965694 | E73: 18 | F73: 17.14132116 | G73: 0.007191373203 | H73: 295.420864 | I73: 3.385001271 | J73: 7.444719903 | L73: -0.002738 | N73: -20.394641 | P73: -1.026586441
A74: 20.7 | B74: 22.4186 | C74: 17.9937315 | D74: 99.965175 | E74: 18 | F74: 17.14132116 | G74: 0.007300168245 | H74: 295.4186 | I74: 3.385027212 | J74: 7.438168436 | L74: -0.002738 | N74: -20.005753 | P74: -1.025431085
A75: 21 | B75: 22.416 | C75: 17.99363142 | D75: 99.964619 | E75: 18 | F75: 17.14132116 | G75: 0.007416719387 | H75: 295.416 | I75: 3.385057004 | J75: 7.431256348 | L75: -0.002548 | N75: -19.695369 | P75: -1.027870728
A76: 21.3 | B76: 22.414135 | C76: 17.9935389 | D76: 99.964105 | E76: 18 | F76: 17.14132116 | G76: 0.007524466307 | H76: 295.414135 | I76: 3.385078375 | J76: 7.424963467 | L76: -0.002548 | N76: -19.462448 | P76: -1.036310021
A77: 21.6 | B77: 22.411671 | C77: 17.99344926 | D77: 99.963607 | E77: 18 | F77: 17.14132116 | G77: 0.007628859237 | H77: 295.411671 | I77: 3.385106609 | J77: 7.41894951 | L77: -0.00236 | N77: -19.347489 | P77: -1.050180903
A78: 21.9 | B78: 22.409875 | C78: 17.99334918 | D78: 99.963051 | E78: 18 | F78: 17.14132116 | G78: 0.00774541038 | H78: 295.409875 | I78: 3.38512719 | J78: 7.412333926 | L78: -0.00236 | N78: -19.336214 | P78: -1.064695075
A79: 22.2 | B79: 22.408676 | C79: 17.9932518 | D79: 99.96251 | E79: =E78 -> 18 | F79: =F78 -> 17.14132116 | G79: 0.007858817157 | H79: 295.408676 | I79: 3.385140929 | J79: 7.405992861 | L79: -0.002174 | N79: -19.337402 | P79: -1.082180407
A80: 22.5 | B80: 22.406941 | C80: 17.99316972 | D80: 99.962054 | E80: 18 | F80: 17.14132116 | G80: 0.007954405864 | H80: 295.406941 | I80: 3.385160811 | J80: 7.400716304 | L80: -0.002174 | N80: -19.391321 | P80: -1.096044854
A81: 22.8 | B81: 22.405344 | C81: 17.99308116 | D81: 99.961562 | E81: 18 | F81: 17.14132116 | G81: 0.008057541048 | H81: 295.405344 | I81: 3.385179112 | J81: 7.395094282 | L81: -0.001991 | N81: -19.37986 | P81: -1.107840727
A82: 23.1 | B82: 22.401951 | C82: 17.99299908 | D82: 99.961106 | E82: 18 | F82: 17.14132116 | G82: 0.008153129755 | H82: 295.401951 | I82: 3.385217994 | J82: 7.38994158 | L82: -0.001991 | N82: -19.331019 | P82: -1.116134107
A83: 23.4 | B83: 22.395221 | C83: 17.99291322 | D83: 99.960629 | E83: 18 | F83: 17.14132116 | G83: 0.008253120573 | H83: 295.395221 | I83: 3.38529512 | J83: 7.384606093 | L83: -0.00181 | N83: -19.220176 | P83: -1.12033402
A84: 23.7 | B84: 22.389293 | C84: 17.99282358 | D84: 99.960131 | E84: 18 | F84: 17.14132116 | G84: 0.008357513503 | H84: 295.389293 | I84: 3.385363057 | J84: 7.379106938 | L84: -0.00181 | N84: -19.043154 | P84: -1.123495181
A85: 24 | B85: 22.383298 | C85: 17.99273862 | D85: 99.959659 | E85: 18 | F85: 17.14132116 | G85: 0.0084564562 | H85: 295.383298 | I85: 3.385431765 | J85: 7.373956356 | L85: -0.001631 | N85: -18.853037 | P85: -1.12865432
A86: 24.3 | B86: 22.378037 | C86: 17.99264916 | D86: 99.959162 | E86: 18 | F86: 17.14132116 | G86: 0.008560639505 | H86: 295.378037 | I86: 3.385492064 | J86: 7.368600296 | L86: -0.001631 | N86: -18.701299 | P86: -1.131640486
A87: 24.6 | B87: 22.375972 | C87: 17.99255178 | D87: 99.958621 | E87: 18 | F87: 17.14132116 | G87: 0.008674046283 | H87: 295.375972 | I87: 3.385515732 | J87: 7.362853893 | L87: -0.001455 | N87: -18.520301 | P87: -1.137246487
A88: 24.9 | B88: 22.37704 | C88: 17.9924517 | D88: 99.958065 | E88: 18 | F88: 17.14132116 | G88: 0.008790597425 | H88: 295.37704 | I88: 3.385503491 | J88: 7.357034883 | L88: -0.001455 | N88: -18.388582 | P88: -1.14652673
A89: 25.2 | B89: 22.380102 | C89: 17.99236296 | D89: 99.957572 | E89: 18 | F89: 17.14132116 | G89: 0.008893942233 | H89: 295.380102 | I89: 3.385468396 | J89: 7.351945366 | L89: -0.001281 | N89: -18.320356 | P89: -1.157941218
A90: 25.5 | B90: 22.385363 | C90: 17.99227332 | D90: 99.957074 | E90: 18 | F90: 17.14132116 | G90: 0.008998335163 | H90: 295.385363 | I90: 3.385408098 | J90: 7.346870136 | L90: -0.001281 | N90: -18.289276 | P90: -1.169314173
A91: 25.8 | B91: 22.390557 | C91: 17.99217324 | D91: 99.956518 | E91: 18 | F91: 17.14132116 | G91: 0.009114886306 | H91: 295.390557 | I91: 3.385348571 | J91: 7.341270817 | L91: -0.001109 | N91: -18.258287 | P91: -1.179556857
A92: 26.1 | B92: 22.397817 | C92: 17.99207316 | D92: 99.955962 | E92: 18 | F92: 17.14132116 | G92: 0.009231437449 | H92: 295.397817 | I92: 3.385265369 | J92: 7.335748586 | L92: -0.001109 | N92: -18.21232 | P92: -1.18723855
A93: 26.4 | B93: 22.404413 | C93: 17.99197578 | D93: 99.955421 | E93: 18 | F93: 17.14132116 | G93: 0.009344844226 | H93: 295.404413 | I93: 3.38518978 | J93: 7.330440427 | L93: -0.000938 | N93: -18.127858 | P93: -1.189776903
A94: 26.7 | B94: 22.409545 | C94: 17.99187948 | D94: 99.954886 | E94: 18 | F94: 17.14132116 | G94: 0.009456993257 | H94: 295.409545 | I94: 3.385130971 | J94: 7.325249959 | L94: -0.000938 | N94: -17.966515 | P94: -1.185146015
A95: 27 | B95: 22.414206 | C95: 17.99178984 | D95: 99.954388 | E95: 18 | F95: 17.14132116 | G95: 0.009561386187 | H95: 295.414206 | I95: 3.385077561 | J95: 7.320473033 | L95: -0.000769 | N95: -17.701327 | P95: -1.173944355
A96: 27.3 | B96: 22.418934 | C96: 17.9917011 | D96: 99.953895 | E96: 18 | F96: 17.14132116 | G96: 0.009664730995 | H96: 295.418934 | I96: 3.385023385 | J96: 7.315795401 | L96: -0.000769 | N96: -17.34491 | P96: -1.157828499
A97: 27.6 | B97: 22.42313 | C97: 17.99162208 | D97: 99.953456 | E97: 18 | F97: 17.14132116 | G97: 0.009756756088 | H97: 295.42313 | I97: 3.384975306 | J97: 7.311671915 | L97: -0.000602 | N97: -16.923949 | P97: -1.142980659
A98: 27.9 | B98: 22.426658 | C98: 17.9915409 | D98: 99.953005 | E98: 18 | F98: 17.14132116 | G98: 0.009851296673 | H98: 295.426658 | I98: 3.384934883 | J98: 7.307473639 | L98: -0.000602 | N98: -16.5298 | P98: -1.125797434
A99: 28.2 | B99: 22.429651 | C99: 17.99145216 | D99: 99.952512 | E99: 18 | F99: 17.14132116 | G99: 0.009954641482 | H99: 295.429651 | I99: 3.38490059 | J99: 7.302927585 | L99: -0.000435 | N99: -16.110161 | P99: -1.11060893
A100: 28.5 | B100: 22.434112 | C100: 17.99136252 | D100: 99.952014 | E100: 18 | F100: 17.14132116 | G100: 0.01005903441 | H100: =273+B100 -> 295.434112 | I100: 3.384849479 | J100: =-LOG(-LOG(1-G100)/H100^2) -> 7.298387171 | L100: -0.000435 | N100: -15.72857 | P100: -1.09754784
A101: 28.8 | B101: 22.439637 | C101: 17.99128062 | D101: 99.951559 | E101: 18 | F101: 17.14132116 | G101: 0.01015441349 | H101: 295.439637 | I101: 3.384786179 | J101: 7.294283977 | L101: -0.000271 | N101: -15.385403 | P101: -1.092339438
A102: 29.1 | B102: 22.446161 | C102: 17.99120232 | D102: 99.951124 | E102: 18 | F102: 17.14132116 | G102: 0.01024560009 | H102: 295.446161 | I102: 3.384711436 | J102: 7.29040063 | L102: -0.000271 | N102: -15.158872 | P102: -1.091393056
A103: 29.4 | B103: 22.454152 | C103: 17.99112042 | D103: 99.950669 | E103: 18 | F103: 17.14132116 | G103: 0.01034097917 | H103: 295.454152 | I103: 3.384619892 | J103: 7.286378969 | L103: -0.000108 | N103: -14.996459 | P103: -1.100841579
A104: 29.7 | B104: 22.461144 | C104: 17.99103546 | D104: 99.950197 | E104: 18 | F104: 17.14132116 | G104: 0.01043992187 | H104: 295.461144 | I104: 3.384539796 | J104: 7.282242266 | L104: -0.000108 | N104: -14.978089 | P104: -1.11545401
A105: 30 | B105: 22.464673 | C105: 17.99094582 | D105: 99.949699 | E105: 18 | F105: 17.14132116 | G105: 0.0105443148 | H105: 295.464673 | I105: 3.384499371 | J105: 7.277908657 | L105: 5.3e-05 | N105: -15.027423 | P105: -1.129504478
A106: 30.3 | B106: 22.465009 | C106: 17.99085618 | D106: 99.949201 | E106: 18 | F106: 17.14132116 | G106: 0.01064870773 | H106: 295.465009 | I106: 3.384495522 | J106: 7.27360823 | L106: 5.3e-05 | N106: -15.066201 | P106: -1.150151873
A107: 30.6 | B107: 22.459614 | C107: 17.99077122 | D107: 99.948729 | E107: 18 | F107: 17.14132116 | G107: 0.01074765043 | H107: 295.459614 | I107: 3.384557322 | J107: 7.269554067 | L107: 0.000213 | N107: -15.187484 | P107: -1.17318023
A108: 30.9 | B108: 22.45249 | C108: 17.9906922 | D108: 99.94829 | E108: 18 | F108: 17.14132116 | G108: 0.01083967552 | H108: 295.45249 | I108: 3.384638931 | J108: 7.265810209 | L108: 0.000213 | N108: -15.336231 | P108: -1.196773024
A109: 31.2 | B109: 22.44257 | C109: 17.99061498 | D109: 99.947861 | E109: 18 | F109: 17.14132116 | G109: 0.01092960437 | H109: 295.44257 | I109: 3.384752576 | J109: 7.262173179 | L109: 0.000371 | N109: -15.487303 | P109: -1.224863834
A110: 31.5 | B110: 22.431182 | C110: 17.99054712 | D110: 99.947484 | E110: 18 | F110: 17.14132116 | G110: 0.01100863275 | H110: 295.431182 | I110: 3.384883049 | J110: 7.258993437 | L110: 0.000371 | N110: -15.691837 | P110: -1.250148873
A111: 31.8 | B111: 22.420396 | C111: 17.99047656 | D111: 99.947092 | E111: 18 | F111: 17.14132116 | G111: 0.0110908055 | H111: 295.420396 | I111: 3.385006633 | J111: 7.25571401 | L111: 0.000529 | N111: -15.856983 | P111: -1.278893964
A112: 32.1 | B112: 22.40914 | C112: 17.99040996 | D112: 99.946722 | E112: 18 | F112: 17.14132116 | G112: 0.01116836651 | H112: 295.40914 | I112: 3.385135612 | J112: 7.252637346 | L112: 0.000529 | N112: -16.061857 | P112: -1.307758142
A113: 32.4 | B113: 22.39975 | C113: 17.99034318 | D113: 99.946351 | E113: 18 | F113: 17.14132116 | G113: 0.01124613715 | H113: 295.39975 | I113: 3.385243217 | J113: 7.249578971 | L113: 0.000685 | N113: -16.265411 | P113: -1.33221314
A114: 32.7 | B114: 22.394355 | C114: 17.99028774 | D114: 99.946043 | E114: 18 | F114: 17.14132116 | G114: 0.01131070145 | H114: 295.394355 | I114: 3.385305044 | J114: 7.247062791 | L114: 0.000685 | N114: -16.413554 | P114: -1.354532916
A115: 33 | B115: 22.39076 | C115: 17.99023068 | D115: 99.945726 | E115: 18 | F115: 17.14132116 | G115: 0.01137715237 | H115: 295.39076 | I115: 3.385346244 | J115: 7.244493617 | L115: 0.000839 | N115: -16.534124 | P115: -1.370248392
A116: 33.3 | B116: 22.389558 | C116: 17.99017524 | D116: 99.945418 | E116: 18 | F116: 17.14132116 | G116: 0.01144171667 | H116: 295.389558 | I116: 3.38536002 | J116: 7.242018313 | L116: 0.000839 | N116: -16.57433 | P116: -1.370297992
A117: 33.6 | B117: 22.391956 | C117: 17.9901009 | D117: 99.945005 | E117: 18 | F117: 17.14132116 | G117: 0.01152829153 | H117: 295.391956 | I117: 3.385332538 | J117: 7.238732622 | L117: 0.000992 | N117: -16.428631 | P117: -1.365172467
A118: 33.9 | B118: 22.39868 | C118: 17.99003034 | D118: 99.944613 | E118: 18 | F118: 17.14132116 | G118: 0.01161046428 | H118: 295.39868 | I118: 3.385255479 | J118: 7.23564974 | L118: 0.000992 | N118: -16.227146 | P118: -1.358134017
A119: 34.2 | B119: 22.409401 | C119: 17.98994826 | D119: 99.944157 | E119: 18 | F119: 17.14132116 | G119: 0.01170605299 | H119: 295.409401 | I119: 3.385132621 | J119: 7.232099404 | L119: 0.001144 | N119: -16.00946 | P119: -1.360690555
A120: 34.5 | B120: 22.421257 | C120: 17.98985952 | D120: 99.943664 | E120: 18 | F120: 17.14132116 | G120: 0.0118093978 | H120: 295.421257 | I120: 3.384996768 | J120: 7.228294334 | L120: 0.001144 | N120: -15.908455 | P120: -1.377575042
A121: 34.8 | B121: 22.434179 | C121: 17.98975944 | D121: 99.943108 | E121: 18 | F121: 17.14132116 | G121: 0.01192594894 | H121: 295.434179 | I121: 3.384848711 | J121: 7.22404157 | L121: 0.001293 | N121: -15.976129 | P121: -1.40359797
A122: 35.1 | B122: 22.447032 | C122: 17.98964694 | D122: 99.942483 | E122: 18 | F122: 17.14132116 | G122: 0.01205696416 | H122: 295.447032 | I122: 3.384701458 | J122: 7.219305596 | L122: 0.001293 | N122: -16.147942 | P122: -1.435812569
A123: 35.4 | B123: 22.45782 | C123: 17.98953246 | D123: 99.941847 | E123: 18 | F123: 17.14132116 | G123: 0.01219028525 | H123: 295.45782 | I123: 3.384577873 | J123: 7.214532167 | L123: 0.001441 | N123: -16.38634 | P123: -1.478045943
A124: 35.7 | B124: 22.464879 | C124: 17.98940556 | D124: 99.941142 | E124: 18 | F124: 17.14132116 | G124: 0.01233807042 | H124: 295.464879 | I124: 3.384497012 | J124: 7.20928712 | L124: 0.001441 | N124: -16.731721 | P124: -1.517704522
A125: 36 | B125: 22.468941 | C125: 17.98927884 | D125: 99.940438 | E125: 18 | F125: 17.14132116 | G125: 0.01248564597 | H125: 295.468941 | I125: 3.384450483 | J125: 7.204102909 | L125: 0.001587 | N125: -17.040451 | P125: -1.554627617
A126: 36.3 | B126: 22.470738 | C126: 17.98915572 | D126: 99.939754 | E126: 18 | F126: 17.14132116 | G126: 0.01262902903 | H126: 295.470738 | I126: 3.384429899 | J126: 7.199117781 | L126: 0.001587 | N126: -17.312025 | P126: -1.567945262
A127: 36.6 | B127: 22.467676 | C127: 17.98903368 | D127: 99.939076 | E127: 18 | F127: 17.14132116 | G127: 0.01277115435 | H127: 295.467676 | I127: 3.384464973 | J127: 7.194217395 | L127: 0.001732 | N127: -17.314733 | P127: -1.564228416
A128: 36.9 | B128: 22.459419 | C128: 17.98889922 | D128: 99.938329 | E128: 18 | F128: 17.14132116 | G128: 0.01292774374 | H128: 295.459419 | I128: 3.384559556 | J128: 7.188866169 | L128: 0.001732 | N128: -17.126827 | P128: -1.546394229
A129: 37.2 | B129: 22.447298 | C129: 17.98876674 | D129: 99.937593 | E129: 18 | F129: 17.14132116 | G129: 0.01308202727 | H129: 295.447298 | I129: 3.384698411 | J129: 7.183644351 | L129: 0.001876 | N129: -16.785827 | P129: -1.510111658
A130: 37.5 | B130: 22.433247 | C130: 17.98863516 | D130: 99.936862 | E130: 18 | F130: 17.14132116 | G130: 0.01323526267 | H130: 295.433247 | I130: 3.384859389 | J130: 7.178511882 | L130: 0.001876 | N130: -16.250553 | P130: -1.464592238
A131: 37.8 | B131: 22.41753 | C131: 17.98850538 | D131: 99.936141 | E131: 18 | F131: 17.14132116 | G131: 0.01338640184 | H131: 295.41753 | I131: 3.385039473 | J131: 7.173501191 | L131: 0.00202 | N131: -15.624559 | P131: -1.414249724
A132: 38.1 | B132: 22.402012 | C132: 17.98838244 | D132: 99.935458 | E132: 18 | F132: 17.14132116 | G132: 0.01352957527 | H132: 295.402012 | I132: 3.385217295 | J132: 7.168803816 | L132: 0.00202 | N132: -14.958232 | P132: -1.362576977
A133: 38.4 | B133: 22.387761 | C133: 17.98826022 | D133: 99.934779 | E133: 18 | F133: 17.14132116 | G133: 0.01367191021 | H133: 295.387761 | I133: 3.385380615 | J133: 7.164185615 | L133: 0.002162 | N133: -14.289915 | P133: =(N134*A134)/(C134*B134) -> -1.317830261
A134: 38.7 | B134: 22.37917 | C134: 17.98813638 | D134: 99.934091 | E134: 18 | F134: 17.14132116 | G134: =(E134-C134)/(E134-F134) -> 0.01381613177 | H134: 295.37917 | I134: =1000/H134 -> 3.385479078 | J134: 7.159571403 | L134: 0.002162 | N134: -13.708144 | P134: -1.298135434
A135: 39 | B135: 22.375439 | C135: 17.98801416 | D135: 99.933412 | E135: 18 | F135: 17.14132116 | G135: 0.01395846671 | H135: 295.375439 | I135: 3.385521841 | J135: 7.155077914 | L135: 0.002304 | N135: -13.397081 | P135: -1.292682843
A136: 39.3 | B136: 22.376505 | C136: 17.98788456 | D136: 99.932692 | E136: 18 | F136: 17.14132116 | G136: 0.01410939624 | H136: 295.376505 | I136: 3.385509623 | J136: 7.150377171 | L136: 0.002304 | N136: -13.239506 | P136: -1.304480668
A137: 39.6 | B137: 22.381701 | C137: 17.9877501 | D137: 99.931945 | E137: 18 | F137: 17.14132116 | G137: 0.01426598564 | H137: 295.381701 | I137: 3.385450069 | J137: 7.145564688 | L137: 0.002445 | N137: -13.262103 | P137: -1.322203061
A138: 39.9 | B138: 22.391423 | C138: 17.98762698 | D138: 99.931261 | E138: 18 | F138: 17.14132116 | G138: 0.0144093687 | H138: 295.391423 | I138: 3.385338646 | J138: 7.141218592 | L138: 0.002445 | N138: -13.346913 | P138: -1.351453045
A139: 40.2 | B139: 22.40341 | C139: 17.98751556 | D139: 99.930642 | E139: 18 | F139: 17.14132116 | G139: 0.01453912618 | H139: 295.40341 | I139: 3.385201274 | J139: 7.137331966 | L139: 0.002586 | N139: -13.547533 | P139: -1.387436084
A140: 40.5 | B140: 22.415866 | C140: 17.98740018 | D140: 99.930001 | E140: 18 | F140: 17.14132116 | G140: 0.01467349539 | H140: 295.415866 | I140: 3.38505854 | J140: 7.133343778 | L140: 0.002586 | N140: -13.812805 | P140: -1.422331818
A141: 40.8 | B141: 22.428987 | C141: 17.98727796 | D141: 99.929322 | E141: 18 | F141: 17.14132116 | G141: 0.01481583033 | H141: 295.428987 | I141: 3.384908198 | J141: 7.129158648 | L141: 0.002725 | N141: -14.064227 | P141: -1.449431312
A142: 41.1 | B142: 22.443103 | C142: 17.98715592 | D142: 99.928644 | E142: 18 | F142: 17.14132116 | G142: 0.01495795564 | H142: 295.443103 | I142: 3.38474647 | J142: 7.125022654 | L142: 0.002725 | N142: -14.236434 | P142: -1.477993377
A143: 41.4 | B143: 22.457688 | C143: 17.98703964 | D143: 99.927998 | E143: =E142 -> 18 | F143: =F142 -> 17.14132116 | G143: 0.01509337298 | H143: 295.457688 | I143: 3.384579385 | J143: 7.12112169 | L143: 0.002864 | N143: -14.42105 | P143: -1.505615557
A144: 41.7 | B144: 22.470939 | C144: 17.98692894 | D144: 99.927383 | E144: 18 | F144: 17.14132116 | G144: 0.01522229196 | H144: 295.470939 | I144: 3.384427597 | J144: 7.117438548 | L144: 0.002864 | N144: -14.593393 | P144: -1.524539049
A145: 42 | B145: 22.480395 | C145: 17.98681644 | D145: 99.926758 | E145: 18 | F145: 17.14132116 | G145: 0.01535330718 | H145: 295.480395 | I145: 3.384319288 | J145: 7.113715637 | L145: 0.003002 | N145: -14.677345 | P145: -1.546724386
A146: 42.3 | B146: 22.486852 | C146: 17.98671258 | D146: 99.926181 | E146: 18 | F146: 17.14132116 | G146: 0.01547426043 | H146: 295.486852 | I146: 3.384245334 | J146: 7.110300048 | L146: 0.003002 | N146: -14.789484 | P146: -1.559944472
A147: 42.6 | B147: 22.49018 | C147: 17.98660764 | D147: 99.925598 | E147: 18 | F147: 17.14132116 | G147: 0.01559647144 | H147: 295.49018 | I147: 3.384207218 | J147: 7.106866492 | L147: 0.00314 | N147: -14.812956 | P147: -1.571198069
A148: 42.9 | B148: 22.488449 | C148: 17.98651116 | D148: 99.925062 | E148: 18 | F148: 17.14132116 | G148: 0.01570883009 | H148: 295.488449 | I148: 3.384227043 | J148: 7.103719194 | L148: 0.00314 | N148: -14.814264 | P148: -1.584569546
A149: 43.2 | B149: 22.481923 | C149: 17.9864226 | D149: 99.92457 | E149: 18 | F149: 17.14132116 | G149: 0.01581196527 | H149: 295.481923 | I149: 3.384301787 | J149: 7.100835308 | L149: 0.003276 | N149: -14.832208 | P149: -1.594709867
A150: 43.5 | B150: 22.469273 | C150: 17.98634052 | D150: 99.924114 | E150: 18 | F150: 17.14132116 | G150: 0.01590755398 | H150: 295.469273 | I150: 3.38444668 | J150: 7.098159532 | L150: 0.003276 | N150: -14.815771 | P150: -1.606830474
A151: 43.8 | B151: 22.452823 | C151: 17.98626906 | D151: 99.923717 | E151: 18 | F151: 17.14132116 | G151: 0.01599077485 | H151: 295.452823 | I151: 3.384635117 | J151: 7.095826755 | L151: 0.003412 | N151: -14.815216 | P151: -1.613373413
A152: 44.1 | B152: 22.435707 | C152: 17.98620318 | D152: 99.923351 | E152: 18 | F152: 17.14132116 | G152: 0.01606749737 | H152: 295.435707 | I152: 3.384831205 | J152: 7.09368082 | L152: 0.003412 | N152: -14.763032 | P152: -1.61552064
A153: 44.4 | B153: 22.418661 | C153: 17.9861364 | D153: 99.92298 | E153: 18 | F153: 17.14132116 | G153: 0.016145268 | H153: 295.418661 | I153: 3.385026513 | J153: 7.091516565 | L153: 0.003548 | N153: -14.671587 | P153: -1.628603965
A154: 44.7 | B154: 22.404809 | C154: 17.98606494 | D154: 99.922583 | E154: 18 | F154: 17.14132116 | G154: 0.01622848887 | H154: 295.404809 | I154: 3.385185243 | J154: 7.089224694 | L154: 0.003548 | N154: -14.682005 | P154: -1.633680915
A155: 45 | B155: 22.395689 | C155: 17.98600968 | D155: 99.922276 | E155: 18 | F155: 17.14132116 | G155: 0.01629284355 | H155: 295.395689 | I155: 3.385289756 | J155: 7.087464906 | L155: 0.003682 | N155: -14.623589 | P155: -1.636393683
A156: 45.3 | B156: 22.39169 | C156: 17.98595424 | D156: 99.921968 | E156: 18 | F156: 17.14132116 | G156: 0.01635740785 | H156: 295.39169 | I156: 3.385335586 | J156: 7.085721338 | L156: 0.003682 | N156: -14.548223 | P156: -1.648493954
A157: 45.6 | B157: 22.393087 | C157: 17.98590474 | D157: 99.921693 | E157: 18 | F157: 17.14132116 | G157: 0.01641505455 | H157: 295.393087 | I157: 3.385319576 | J157: 7.084184907 | L157: 0.003816 | N157: -14.560248 | P157: -1.658410677
A158: 45.9 | B158: 22.398948 | C158: 17.98585992 | D158: 99.921444 | E158: 18 | F158: 17.14132116 | G158: 0.01646725102 | H158: 295.398948 | I158: 3.385252408 | J158: 7.082811873 | L158: 0.003816 | N158: -14.555872 | P158: -1.669012716
A159: 46.2 | B159: 22.409803 | C159: 17.9858151 | D159: 99.921195 | E159: 18 | F159: 17.14132116 | G159: 0.01651944748 | H159: 295.409803 | I159: 3.385128015 | J159: 7.081457886 | L159: 0.003949 | N159: -14.56082 | P159: -1.675685207
A160: 46.5 | B160: 22.426381 | C160: 17.98577208 | D160: 99.920956 | E160: 18 | F160: 17.14132116 | G160: 0.0165695477 | H160: 295.426381 | I160: 3.384938057 | J160: 7.080180462 | L160: 0.003949 | N160: -14.535426 | P160: -1.681060472
A161: 46.8 | B161: 22.441366 | C161: 17.98572726 | D161: 99.920707 | E161: 18 | F161: 17.14132116 | G161: 0.01662174417 | H161: 295.441366 | I161: 3.38476637 | J161: 7.078847085 | L161: 0.004081 | N161: -14.498223 | P161: -1.685313951
A162: 47.1 | B162: 22.45355 | C162: 17.98568244 | D162: 99.920458 | E162: 18 | F162: 17.14132116 | G162: 0.01667394063 | H162: 295.45355 | I162: 3.384626788 | J162: 7.077509753 | L162: 0.004081 | N162: -14.450133 | P162: -1.688391272
A163: 47.4 | B163: 22.463141 | C163: 17.98564824 | D163: 99.920268 | E163: 18 | F163: 17.14132116 | G163: 0.01671376926 | H163: 295.463141 | I163: 3.38451692 | J163: 7.076493027 | L163: 0.004212 | N163: -14.391012 | P163: -1.68400904
A164: 47.7 | B164: 22.470866 | C164: 17.98561098 | D164: 99.920061 | E164: 18 | F164: 17.14132116 | G164: 0.0167571615 | H164: =273+B164 -> 295.470866 | I164: 3.384428433 | J164: =-LOG(-LOG(1-G164)/H164^2) -> 7.075380127 | L164: 0.004212 | N164: -14.268261 | P164: -1.680210031
A165: 48 | B165: 22.47393 | C165: 17.98555842 | D165: 99.919769 | E165: 18 | F165: 17.14132116 | G165: 0.01681837181 | H165: 295.47393 | I165: 3.384393337 | J165: 7.07379216 | L165: 0.004342 | N165: -14.148985 | P165: -1.681991166
A166: 48.3 | B166: 22.470201 | C166: 17.98550316 | D166: 99.919462 | E166: 18 | F166: 17.14132116 | G166: 0.01688272649 | H166: 295.470201 | I166: 3.38443605 | J166: 7.072108389 | L166: 0.004342 | N166: -14.07363 | P166: -1.687442583
A167: 48.6 | B167: 22.462411 | C167: 17.98545078 | D167: 99.919171 | E167: 18 | F167: 17.14132116 | G167: 0.01694372718 | H167: 295.462411 | I167: 3.384525282 | J167: 7.070505687 | L167: 0.004471 | N167: -14.027182 | P167: -1.685233761
A168: 48.9 | B168: 22.452821 | C168: 17.98539534 | D168: 99.918863 | E168: 18 | F168: 17.14132116 | G168: 0.01700829148 | H168: 295.452821 | I168: 3.384635139 | J168: 7.068811533 | L168: 0.004471 | N168: -13.91689 | P168: -1.684595284
A169: 49.2 | B169: 22.442233 | C169: 17.98532874 | D169: 99.918493 | E169: 18 | F169: 17.14132116 | G169: 0.01708585249 | H169: 295.442233 | I169: 3.384756437 | J169: 7.066787358 | L169: 0.004599 | N169: -13.820219 | P169: -1.672755642
A170: 49.5 | B170: 22.430714 | C170: 17.98526574 | D170: 99.918143 | E170: 18 | F170: 17.14132116 | G170: 0.01715922102 | H170: 295.430714 | I170: 3.384888411 | J170: 7.064876413 | L170: 0.004599 | N170: -13.632869 | P170: -1.657566239
A171: 49.8 | B171: 22.417996 | C171: 17.98519896 | D171: 99.917772 | E171: 18 | F171: 17.14132116 | G171: 0.01723699166 | H171: 295.417996 | I171: 3.385034133 | J171: 7.062857984 | L171: 0.004727 | N171: -13.420033 | P171: -1.638468621
A172: 50.1 | B172: 22.407141 | C172: 17.98514172 | D172: 99.917454 | E172: 18 | F172: 17.14132116 | G172: 0.0173036522 | H172: 295.407141 | I172: 3.385158519 | J172: 7.061135075 | L172: 0.004727 | N172: -13.179554 | P172: -1.61027868
A173: 50.4 | B173: 22.399616 | C173: 17.98507602 | D173: 99.917089 | E173: 18 | F173: 17.14132116 | G173: 0.01738016509 | H173: 295.399616 | I173: 3.385244753 | J173: 7.05917997 | L173: 0.004854 | N173: -12.871328 | P173: -1.571605445
A174: 50.7 | B174: 22.392825 | C174: 17.98501212 | D174: 99.916734 | E174: 18 | F174: 17.14132116 | G174: 0.01745458174 | H174: 295.392825 | I174: 3.385322579 | J174: 7.057288055 | L174: 0.004854 | N174: -12.484041 | P174: -1.528714118
A175: 51 | B175: 22.387896 | C175: 17.98494156 | D175: 99.916342 | E175: 18 | F175: 17.14132116 | G175: 0.01753675449 | H175: 295.387896 | I175: 3.385379068 | J175: 7.055215678 | L175: 0.00498 | N175: -12.069198 | P175: -1.47285521
A176: 51.3 | B176: 22.387562 | C176: 17.98486326 | D176: 99.915907 | E176: 18 | F176: 17.14132116 | G176: 0.01762794108 | H176: 295.387562 | I176: 3.385382896 | J176: 7.052942232 | L176: 0.00498 | N176: -11.559968 | P176: -1.414051618
A177: 51.6 | B177: 22.390957 | C177: 17.98478514 | D177: 99.915473 | E177: 18 | F177: 17.14132116 | G177: 0.01771891805 | H177: 295.390957 | I177: 3.385343987 | J177: 7.050696554 | L177: 0.005106 | N177: -11.035537 | P177: -1.362365736
A178: 51.9 | B178: 22.398613 | C178: 17.98470018 | D178: 99.915001 | E178: 18 | F178: 17.14132116 | G178: 0.01781786075 | H178: 295.398613 | I178: 3.385256247 | J178: 7.048278897 | L178: 0.005106 | N178: -10.574277 | P178: -1.325109537
A179: 52.2 | B179: 22.407673 | C179: 17.98461054 | D179: 99.914503 | E179: 18 | F179: 17.14132116 | G179: 0.01792225368 | H179: 295.407673 | I179: 3.385152423 | J179: 7.045745465 | L179: 0.005231 | N179: -10.230081 | P179: -1.31258237
A180: 52.5 | B180: 22.419192 | C180: 17.98452576 | D180: 99.914032 | E180: 18 | F180: 17.14132116 | G180: 0.01802098675 | H180: 295.419192 | I180: 3.385020429 | J180: 7.043371621 | L180: 0.005231 | N180: -10.080596 | P180: -1.325135981
A181: 52.8 | B181: 22.433243 | C181: 17.98443594 | D181: 99.913533 | E181: 18 | F181: 17.14132116 | G181: 0.01812558931 | H181: 295.433243 | I181: 3.384859435 | J181: 7.040876302 | L181: 0.005355 | N181: -10.125475 | P181: -1.363373415
A182: 53.1 | B182: 22.447695 | C182: 17.98433874 | D182: 99.912993 | E182: 18 | F182: 17.14132116 | G182: 0.01823878646 | H182: 295.447695 | I182: 3.384693863 | J182: 7.038190029 | L182: 0.005355 | N182: -10.365411 | P182: -1.432990334
A183: 53.4 | B183: 22.461012 | C183: 17.9842491 | D183: 99.912495 | E183: 18 | F183: 17.14132116 | G183: 0.01834317939 | H183: 295.461012 | I183: 3.384541308 | J183: 7.035727484 | L183: 0.005479 | N183: -10.839859 | P183: -1.529090365
A184: 53.7 | B184: 22.474133 | C184: 17.98416144 | D184: 99.912008 | E184: 18 | F184: 17.14132116 | G184: 0.01844526645 | H184: 295.474133 | I184: 3.384391012 | J184: 7.033333222 | L184: 0.005479 | N184: -11.508852 | P184: -1.631374669
A185: 54 | B185: 22.485855 | C185: 17.98407936 | D185: 99.911552 | E185: 18 | F185: 17.14132116 | G185: 0.01854085516 | H185: 295.485855 | I185: 3.384256752 | J185: 7.03110177 | L185: 0.005602 | N185: -12.216803 | P185: -1.738308025
A186: 54.3 | B186: 22.495579 | C186: 17.98400016 | D186: 99.911112 | E186: 18 | F186: 17.14132116 | G186: 0.01863308988 | H186: 295.495579 | I186: 3.384145385 | J186: 7.028954892 | L186: 0.005602 | N186: -12.951211 | P186: -1.829203672
A187: 54.6 | B187: 22.501975 | C187: 17.98392672 | D187: 99.910704 | E187: 18 | F187: 17.14132116 | G187: 0.01871861661 | H187: 295.501975 | I187: 3.384072137 | J187: 7.026965956 | L187: 0.005724 | N187: -13.557343 | P187: -1.891609096
A188: 54.9 | B188: 22.504772 | C188: 17.98386678 | D188: 99.910371 | E188: 18 | F188: 17.14132116 | G188: 0.01878842152 | H188: 295.504772 | I188: 3.384040106 | J188: 7.025342233 | L188: 0.005724 | N188: -13.944943 | P188: -1.915984979
A189: 55.2 | B189: 22.505503 | C189: 17.98381818 | D189: 99.910101 | E189: 18 | F189: 17.14132116 | G189: 0.0188450201 | H189: 295.505503 | I189: 3.384031735 | J189: 7.024025585 | L189: 0.005846 | N189: -14.048296 | P189: -1.911057982
A190: 55.5 | B190: 22.501774 | C190: 17.98378092 | D190: 99.909894 | E190: 18 | F190: 17.14132116 | G190: 0.01888841234 | H190: 295.501774 | I190: 3.384074439 | J190: 7.023006201 | L190: 0.005846 | N190: -13.934091 | P190: -1.88325056
A191: 55.8 | B191: 22.494782 | C191: 17.98376562 | D191: 99.909809 | E191: 18 | F191: 17.14132116 | G191: 0.01890623041 | H191: 295.494782 | I191: 3.384154513 | J191: 7.022572226 | L191: 0.005966 | N191: -13.653259 | P191: -1.828309602
A192: 56.1 | B192: 22.485658 | C192: 17.98377048 | D192: 99.909836 | E192: 18 | F192: 17.14132116 | G192: 0.01890057056 | H192: 295.485658 | I192: 3.384259009 | J192: 7.022676687 | L192: 0.005966 | N192: -13.17872 | P192: -1.756697965
A193: 56.4 | B193: 22.473736 | C193: 17.9837847 | D193: 99.909915 | E193: 18 | F193: 17.14132116 | G193: 0.01888401023 | H193: 295.473736 | I193: 3.384395559 | J193: 7.023025982 | L193: 0.006086 | N193: -12.588511 | P193: -1.682203003
A194: 56.7 | B194: 22.461815 | C194: 17.98381818 | D194: 99.910101 | E194: 18 | F194: 17.14132116 | G194: 0.0188450201 | H194: 295.461815 | I194: 3.38453211 | J194: 7.023897162 | L194: 0.006086 | N194: -11.98456 | P194: -1.622841366
A195: 57 | B195: 22.452024 | C195: 17.98387056 | D195: 99.910392 | E195: 18 | F195: 17.14132116 | G195: 0.01878401941 | H195: 295.452024 | I195: 3.38464427 | J195: 7.025289912 | L195: 0.006206 | N195: -11.495818 | P195: -1.582700084
A196: 57.3 | B196: 22.444033 | C196: 17.98393734 | D196: 99.910763 | E196: 18 | F196: 17.14132116 | G196: 0.01870624878 | H196: 295.444033 | I196: 3.384735816 | J196: 7.027085398 | L196: 0.006206 | N196: -11.14884 | P196: -1.556458268
A197: 57.6 | B197: 22.438707 | C197: 17.98401924 | D197: 99.911218 | E197: 18 | F197: 17.14132116 | G197: 0.01861086969 | H197: 295.438707 | I197: 3.384796834 | J197: 7.029310816 | L197: 0.006325 | N197: -10.904345 | P197: =(N198*A198)/(C198*B198) -> -1.533002902
A198: 57.9 | B198: 22.437173 | C198: 17.98411932 | D198: 99.911774 | E198: 18 | F198: 17.14132116 | G198: =(E198-C198)/(E198-F198) -> 0.01849431855 | H198: 295.437173 | I198: =1000/H198 -> 3.384814409 | J198: 7.032060348 | L198: 0.006325 | N198: -10.683701 | P198: -1.518114605
A199: 58.2 | B199: 22.439037 | C199: 17.98422336 | D199: 99.912352 | E199: 18 | F199: 17.14132116 | G199: 0.01837315567 | H199: 295.439037 | I199: 3.384793053 | J199: 7.034947128 | L199: 0.006443 | N199: -10.526342 | P199: -1.489209613
A200: 58.5 | B200: 22.444898 | C200: 17.98434648 | D200: 99.913036 | E200: 18 | F200: 17.14132116 | G200: 0.01822977261 | H200: 295.444898 | I200: 3.384725906 | J200: 7.03839848 | L200: 0.006443 | N200: -10.27572 | P200: -1.450432735
A201: 58.8 | B201: 22.451159 | C201: 17.98448094 | D201: 99.913783 | E201: 18 | F201: 17.14132116 | G201: 0.01807318322 | H201: 295.451159 | I201: 3.384654179 | J201: 7.042198013 | L201: 0.00656 | N201: -9.959945 | P201: -1.403451478
A202: 59.1 | B202: 22.458684 | C202: 17.98462206 | D202: 99.914567 | E202: 18 | F202: 17.14132116 | G202: 0.01790883772 | H202: 295.458684 | I202: 3.384567976 | J202: 7.046223617 | L202: 0.00656 | N202: -9.591699 | P202: -1.334632886
A203: 59.4 | B203: 22.468738 | C203: 17.98476696 | D203: 99.915372 | E203: 18 | F203: 17.14132116 | G203: 0.01774009011 | H203: 295.468738 | I203: 3.384452808 | J203: 7.050401949 | L203: 0.006676 | N203: -9.079436 | P203: -1.232609784
... 4297 more rows

Sheet 5%
B2: 12 mg
A4: Time(s) | B4: Sample Temperature(°C) | C4: TGA mg | D4: TG(%) | E4: Wi | F4: Wf | G4: α | H4: T | I4: 103/T | J4: LOG | K4: dTG(%/min) | L4: HeatFlow(mW) | N4: CP
A5: 0 | B5: 40.278835 | C5: 12 | D5: 100 | E5: =C5 -> 12 | F5: 11.65933224 | G5: =(E5-C5)/(E5-F5) -> 0 | H5: =273+B5 -> 313.278835 | I5: =1000/H5 -> 3.192044557 | J5: =-LOG(-LOG(1-G5)/H5*H5) ->  | K5: -0.070966 | L5: -275.302255 | N5: =(L5*A5)/(B5*C5) -> 0
A6: 0.3 | B6: 40.278835 | C6: 11.99993604 | D6: 99.999467 | E6: =E5 -> 12 | F6: =F5 -> 11.65933224 | G6: =(E6-C6)/(E6-F6) -> 0.0001877489082 | H6: =273+B6 -> 313.278835 | I6: =1000/H6 -> 3.192044557 | J6: =-LOG(-LOG(1-G6)/H6*H6) -> 4.088597496 | K6: -0.070966 | L6: -274.978134 | N6: =(L6*A6)/(B6*C6) -> -0.170672513
A7: 0.6 | B7: 40.275006 | C7: 11.99988084 | D7: 99.999007 | E7: =E6 -> 12 | F7: =F6 -> 11.65933224 | G7: =(E7-C7)/(E7-F7) -> 0.0003497836132 | H7: 313.275006 | I7: 3.192083571 | J7: 3.818340263 | K7: -0.070966 | L7: -274.545692 | N7: -0.3408421817
A8: 0.9 | B8: 40.270685 | C8: 11.99983224 | D8: 99.998602 | E8: 12 | F8: 11.65933224 | G8: 0.0004924446035 | H8: 313.270685 | I8: 3.1921276 | J8: 3.669751351 | K8: -0.070584 | L8: -274.082391 | N8: -0.510457339
A9: 1.2 | B9: 40.267044 | C9: 11.99979504 | D9: 99.998292 | E9: 12 | F9: 11.65933224 | G9: 0.0006016419047 | H9: 313.267044 | I9: 3.192164701 | J9: 3.582746934 | K9: -0.070584 | L9: -273.579801 | N9: -0.6794252735
A10: 1.5 | B10: 40.263586 | C10: 11.99976156 | D10: 99.998013 | E10: 12 | F10: 11.65933224 | G10: 0.0006999194758 | H10: 313.263586 | I10: 3.192199939 | J10: 3.517015581 | K10: -0.070234 | L10: -273.089533 | N10: -0.8478348134
A11: 1.8 | B11: 40.260869 | C11: 11.99973108 | D11: 99.997759 | E11: 12 | F11: 11.65933224 | G11: 0.0007893908129 | H11: 313.260869 | I11: 3.192227625 | J11: 3.464752151 | K11: -0.070234 | L11: -272.662576 | N11: -1.01588227
A12: 2.1 | B12: 40.259456 | C12: 11.99971296 | D12: 99.997608 | E12: 12 | F12: 11.65933224 | G12: 0.0008425804661 | H12: 313.259456 | I12: 3.192242024 | J12: 3.436421274 | K12: -0.069915 | L12: -272.322418 | N12: -1.183760732
A13: 2.4 | B13: 40.261125 | C13: 11.99969868 | D13: 99.997489 | E13: 12 | F13: 11.65933224 | G13: 0.0008844981398 | H13: 313.261125 | I13: 3.192225017 | J13: 3.415326628 | K13: -0.069915 | L13: -272.132032 | N13: -1.351869156
A14: 2.7 | B14: 40.264266 | C14: 11.99968632 | D14: 99.997386 | E14: 12 | F14: 11.65933224 | G14: 0.0009207798237 | H14: 313.264266 | I14: 3.192193009 | J14: 3.397859873 | K14: -0.069624 | L14: -272.137173 | N14: -1.520764455
A15: 3 | B15: 40.265565 | C15: 11.9996682 | D15: 99.997235 | E15: 12 | F15: 11.65933224 | G15: 0.0009739694769 | H15: 313.265565 | I15: 3.192179772 | J15: 3.373458761 | K15: -0.069624 | L15: -272.306462 | N15: -1.69073743
A16: 3.3 | B16: 40.267353 | C16: 11.99964336 | D16: 99.997028 | E16: 12 | F16: 11.65933224 | G16: 0.001046885094 | H16: 313.267353 | I16: 3.192161553 | J16: 3.342089245 | K16: -0.069346 | L16: -272.63015 | N16: -1.861943086
A17: 3.6 | B17: 40.268962 | C17: 11.99961672 | D17: 99.996806 | E17: 12 | F17: 11.65933224 | G17: 0.001125084452 | H17: 313.268962 | I17: 3.192145157 | J17: 3.310786142 | K17: -0.069346 | L17: -273.037492 | N17: -2.034168746
A18: 3.9 | B18: 40.268285 | C18: 11.99958324 | D18: 99.996527 | E18: 12 | F18: 11.65933224 | G18: 0.001223362023 | H18: 313.268285 | I18: 3.192152056 | J18: 3.274394909 | K18: -0.069088 | L18: -273.516006 | N18: -2.207588163
A19: 4.2 | B19: 40.265015 | C19: 11.99954124 | D19: 99.996177 | E19: 12 | F19: 11.65933224 | G19: 0.001346649298 | H19: 313.265015 | I19: 3.192185377 | J19: 3.232668594 | K19: -0.069088 | L19: -274.019969 | N19: -2.381984852
A20: 4.5 | B20: 40.259704 | C20: 11.99948604 | D20: 99.995717 | E20: 12 | F20: 11.65933224 | G20: 0.001508684003 | H20: 313.259704 | I20: 3.192239497 | J20: 3.18328959 | K20: -0.068865 | L20: -274.469977 | N20: -2.556666832
A21: 4.8 | B21: 40.252181 | C21: 11.9994192 | D21: 99.99516 | E21: 12 | F21: 11.65933224 | G21: 0.001704886896 | H21: 313.252181 | I21: 3.192316161 | J21: 3.130149641 | K21: -0.068865 | L21: -274.764284 | N21: -2.730560943
A22: 5.1 | B22: 40.243477 | C22: 11.99934492 | D22: 99.994541 | E22: 12 | F22: 11.65933224 | G22: 0.001922929249 | H22: 313.243477 | I22: 3.192404865 | J22: 3.07783449 | K22: -0.068656 | L22: -274.92294 | N22: -2.903542064
A23: 5.4 | B23: 40.23169 | C23: 11.99926284 | D23: 99.993857 | E23: 12 | F23: 11.65933224 | G23: 0.002163867811 | H23: 313.23169 | I23: 3.192524996 | J23: 3.02651466 | K23: -0.068656 | L23: -274.980105 | N23: -3.075899847
A24: 5.7 | B24: 40.219723 | C24: 11.99917404 | D24: 99.993117 | E24: 12 | F24: 11.65933224 | G24: 0.002424532336 | H24: 313.219723 | I24: 3.192646971 | J24: 2.977060695 | K24: -0.068452 | L24: -274.949262 | N24: -3.247408972
A25: 6 | B25: 40.211516 | C25: 11.99907312 | D25: 99.992276 | E25: 12 | F25: 11.65933224 | G25: 0.002720774047 | H25: 313.211516 | I25: 3.192730627 | J25: 2.926931733 | K25: -0.068452 | L25: -274.82948 | N25: -3.417562142
A26: 6.3 | B26: 40.205724 | C26: 11.99896236 | D26: 99.991353 | E26: 12 | F26: 11.65933224 | G26: 0.003045900205 | H26: 313.205724 | I26: 3.192789669 | J26: 2.877837769 | K26: -0.068228 | L26: -274.719825 | N26: -3.587558343
A27: 6.6 | B27: 40.202396 | C27: 11.99884992 | D27: 99.990416 | E27: 12 | F27: 11.65933224 | G27: 0.003375957854 | H27: 313.202396 | I27: 3.192823595 | J27: 2.833084559 | K27: -0.068228 | L27: -274.681851 | N27: -3.758221238
A28: 6.9 | B28: 40.20091 | C28: 11.99873544 | D28: 99.989462 | E28: 12 | F28: 11.65933224 | G28: 0.003712003742 | H28: 313.20091 | I28: 3.192838744 | J28: 2.791799982 | K28: -0.067966 | L28: -274.699386 | N28: -3.929483032
A29: 7.2 | B29: 40.200543 | C29: 11.99861616 | D29: 99.988468 | E29: 12 | F29: 11.65933224 | G29: 0.004062139605 | H29: 313.200543 | I29: 3.192842485 | J29: 2.752577265 | K29: -0.067966 | L29: -274.812071 | N29: -4.102090352
A30: 7.5 | B30: 40.201399 | C30: 11.99850852 | D30: 99.987571 | E30: 12 | F30: 11.65933224 | G30: 0.00437810728 | H30: 313.201399 | I30: 3.192833759 | J30: 2.719976857 | K30: -0.067668 | L30: -274.957217 | N30: -4.275214957
A31: 7.8 | B31: 40.200352 | C31: 11.99840364 | D31: 99.986697 | E31: 12 | F31: 11.65933224 | G31: 0.004685973219 | H31: 313.200352 | I31: 3.192844432 | J31: 2.690396348 | K31: -0.067668 | L31: -275.212344 | N31: -4.450503922
A32: 8.1 | B32: 40.197078 | C32: 11.9982996 | D32: 99.98583 | E32: 12 | F32: 11.65933224 | G32: 0.004991373413 | H32: 313.197078 | I32: 3.192877808 | J32: 2.662909503 | K32: -0.06736 | L32: -275.504152 | N32: -4.62699447
A33: 8.4 | B33: 40.191771 | C33: 11.99819952 | D33: 99.984996 | E33: 12 | F33: 11.65933224 | G33: 0.005285149378 | H33: 313.191771 | I33: 3.192931911 | J33: 2.638008231 | K33: -0.06736 | L33: -275.673112 | N33: -4.801981384
A34: 8.7 | B34: 40.184057 | C34: 11.99809836 | D34: 99.984153 | E34: 12 | F34: 11.65933224 | G34: 0.005582095588 | H34: 313.184057 | I34: 3.193010556 | J34: 2.614203454 | K34: -0.067066 | L34: -275.763156 | N34: -4.976102233
A35: 9 | B35: 40.175112 | C35: 11.99799828 | D35: 99.983319 | E35: 12 | F35: 11.65933224 | G35: 0.005875871553 | H35: 313.175112 | I35: 3.193101756 | J35: 2.591864331 | K35: -0.067066 | L35: -275.820808 | N35: -5.149957491
A36: 9.3 | B36: 40.165182 | C36: 11.99790096 | D36: 99.982508 | E36: 12 | F36: 11.65933224 | G36: 0.006161545783 | H36: 313.165182 | I36: 3.193203004 | J36: 2.571184598 | K36: -0.066817 | L36: -275.768595 | N36: -5.321973935
A37: 9.6 | B37: 40.154083 | C37: 11.99780844 | D37: 99.981737 | E37: 12 | F37: 11.65933224 | G37: 0.006433130038 | H37: 313.154083 | I37: 3.19331618 | J37: 2.552392663 | K37: -0.066817 | L37: -275.587077 | N37: -5.4915943
A38: 9.9 | B38: 40.144393 | C38: 11.9977188 | D38: 99.98099 | E38: 12 | F38: 11.65933224 | G38: 0.006696260309 | H38: 313.144393 | I38: 3.193414994 | J38: 2.534925213 | K38: -0.066625 | L38: -275.285101 | N38: -5.658408889
A39: 10.2 | B39: 40.13483 | C39: 11.99762916 | D39: 99.980243 | E39: 12 | F39: 11.65933224 | G39: 0.00695939058 | H39: 313.13483 | I39: 3.19351252 | J39: 2.518128865 | K39: -0.066625 | L39: -274.920046 | N39: -5.823575602
A40: 10.5 | B40: 40.12391 | C40: 11.99754804 | D40: 99.979567 | E40: 12 | F40: 11.65933224 | G40: 0.007197511147 | H40: 313.12391 | I40: 3.193623892 | J40: 2.503465715 | K40: -0.06649 | L40: -274.585244 | N40: -5.989226655
A41: 10.8 | B41: 40.112004 | C41: 11.99746992 | D41: 99.978916 | E41: 12 | F41: 11.65933224 | G41: 0.007426825479 | H41: 313.112004 | I41: 3.193745328 | J41: 2.489794742 | K41: -0.06649 | L41: -274.236658 | N41: -6.154393114
A42: 11.1 | B42: 40.101207 | C42: 11.99740704 | D42: 99.978392 | E42: 12 | F42: 11.65933224 | G42: 0.007611404143 | H42: 313.101207 | I42: 3.193855462 | J42: 2.479092845 | K42: -0.066415 | L42: -273.914401 | N42: -6.319649708
A43: 11.4 | B43: 40.091456 | C43: 11.99733924 | D43: 99.977827 | E43: 12 | F43: 11.65933224 | G43: 0.007810425031 | H43: 313.091456 | I43: 3.193954932 | J43: 2.467839463 | K43: -0.066415 | L43: -273.680966 | N43: -6.486533679
A44: 11.7 | B44: 40.0814 | C44: 11.9972802 | D44: 99.977335 | E44: 12 | F44: 11.65933224 | G44: 0.007983731716 | H44: 313.0814 | I44: 3.19405752 | J44: 2.458270314 | K44: -0.066394 | L44: -273.511718 | N44: -6.654816957
A45: 12 | B45: 40.070362 | C45: 11.99722476 | D45: 99.976873 | E45: 12 | F45: 11.65933224 | G45: 0.008146470919 | H45: 313.070362 | I45: 3.194170134 | J45: 2.449471159 | K45: -0.066394 | L45: -273.383936 | N45: -6.824175338
A46: 12.3 | B46: 40.058762 | C46: 11.99718288 | D46: 99.976524 | E46: 12 | F46: 11.65933224 | G46: 0.008269405946 | H46: 313.058762 | I46: 3.19428849 | J46: 2.44293948 | K46: -0.066395 | L46: -273.356761 | N46: -6.996134155
A47: 12.6 | B47: 40.047785 | C47: 11.99715324 | D47: 99.976277 | E47: 12 | F47: 11.65933224 | G47: 0.008356411537 | H47: 313.047785 | I47: 3.194400497 | J47: 2.438374947 | K47: -0.066395 | L47: -273.421739 | N47: -7.17045772
A48: 12.9 | B48: 40.036739 | C48: 11.9971314 | D48: 99.976095 | E48: 12 | F48: 11.65933224 | G48: 0.00842052092 | H48: 313.036739 | I48: 3.194513217 | J48: 2.435041789 | K48: -0.06641 | L48: -273.556347 | N48: -7.346836814
A49: 13.2 | B49: 40.026438 | C49: 11.99711988 | D49: 99.975999 | E49: 12 | F49: 11.65933224 | G49: 0.008454336859 | H49: 313.026438 | I49: 3.194618341 | J49: 2.433293805 | K49: -0.06641 | L49: -273.67186 | N49: -7.522810691
A50: 13.5 | B50: 40.017742 | C50: 11.99711712 | D50: 99.975976 | E50: 12 | F50: 11.65933224 | G50: 0.008462438594 | H50: 313.017742 | I50: 3.194707091 | J50: 2.432876051 | K50: -0.06644 | L50: -273.789706 | N50: -7.698771064
A51: 13.8 | B51: 40.009046 | C51: 11.99711712 | D51: 99.975976 | E51: 12 | F51: 11.65933224 | G51: 0.008462438594 | H51: 313.009046 | I51: 3.194795846 | J51: 2.432876051 | K51: -0.06644 | L51: -273.997445 | N51: -7.877537966
A52: 14.1 | B52: 39.999544 | C52: 11.99712756 | D52: 99.976063 | E52: 12 | F52: 11.65933224 | G52: 0.0084317929 | H52: 312.999544 | I52: 3.194892833 | J52: 2.434458352 | K52: -0.066492 | L52: -274.218018 | N52: -8.057174754
A53: 14.4 | B53: 39.991772 | C53: 11.99715048 | D53: 99.976254 | E53: 12 | F53: 11.65933224 | G53: 0.008364513272 | H53: 312.991772 | I53: 3.194972167 | J53: 2.437952321 | K53: -0.066492 | L53: -274.419305 | N53: -8.236228715
A54: 14.7 | B54: 39.986225 | C54: 11.99717244 | D54: 99.976437 | E54: 12 | F54: 11.65933224 | G54: 0.00830005164 | H54: 312.986225 | I54: 3.195028791 | J54: 2.441326297 | K54: -0.066574 | L54: -274.576932 | N54: -8.413797905
A55: 15 | B55: 39.984127 | C55: 11.99720184 | D55: 99.976682 | E55: 12 | F55: 11.65933224 | G55: 0.008213750547 | H55: 312.984127 | I55: 3.195050208 | J55: 2.445884452 | K55: -0.066574 | L55: -274.69583 | N55: -8.589655419
A56: 15.3 | B56: 39.981968 | C56: 11.99722764 | D56: 99.976897 | E56: 12 | F56: 11.65933224 | G56: 0.008138016935 | H56: 312.981968 | I56: 3.195072248 | J56: 2.44992393 | K56: -0.066683 | L56: -274.80829 | N56: -8.765489905
A57: 15.6 | B57: 39.979007 | C57: 11.99725056 | D57: 99.977088 | E57: 12 | F57: 11.65933224 | G57: 0.008070737307 | H57: 312.979007 | I57: 3.195102475 | J57: 2.453544016 | K57: -0.066683 | L57: -274.878122 | N57: -8.940278368
A58: 15.9 | B58: 39.975427 | C58: 11.99727252 | D58: 99.977271 | E58: 12 | F58: 11.65933224 | G58: 0.008006275675 | H58: 312.975427 | I58: 3.195139023 | J58: 2.457040781 | K58: -0.066808 | L58: -274.959371 | N58: -9.115699801
A59: 16.2 | B59: 39.971912 | C59: 11.99728404 | D59: 99.977367 | E59: 12 | F59: 11.65933224 | G59: 0.007972459736 | H59: 312.971912 | I59: 3.195174908 | J59: 2.458886378 | K59: -0.066808 | L59: -275.033237 | N59: -9.290997242
A60: 16.5 | B60: 39.968519 | C60: 11.9972916 | D60: 99.97743 | E60: 12 | F60: 11.65933224 | G60: 0.007950268027 | H60: 312.968519 | I60: 3.195209548 | J60: 2.460101793 | K60: -0.066932 | L60: -275.043963 | N60: -9.464219198
A61: 16.8 | B61: 39.964939 | C61: 11.9972916 | D61: 99.97743 | E61: 12 | F61: 11.65933224 | G61: 0.007950268027 | H61: 312.964939 | I61: 3.195246098 | J61: 2.460101793 | K61: -0.066932 | L61: -275.062955 | N61: -9.63782457
A62: 17.1 | B62: 39.960748 | C62: 11.99728776 | D62: 99.977398 | E62: 12 | F62: 11.65933224 | G62: 0.007961540006 | H62: 312.960748 | I62: 3.195288887 | J62: 2.459484018 | K62: -0.067029 | L62: -275.058706 | N62: -9.810809011
A63: 17.4 | B63: 39.955379 | C63: 11.99726964 | D63: 99.977247 | E63: 12 | F63: 11.65933224 | G63: 0.008014729659 | H63: 312.955379 | I63: 3.195343704 | J63: 2.456580594 | K63: -0.067029 | L63: -275.042208 | N63: -9.983686146
A64: 17.7 | B64: 39.949148 | C64: 11.99723904 | D64: 99.976992 | E64: 12 | F64: 11.65933224 | G64: 0.008104553246 | H64: 312.949148 | I64: 3.195407325 | J64: 2.451720755 | K64: -0.067084 | L64: -275.031958 | N64: -10.15705007
A65: 18 | B65: 39.941804 | C65: 11.99720184 | D65: 99.976682 | E65: 12 | F65: 11.65933224 | G65: 0.008213750547 | H65: 312.941804 | I65: 3.195482314 | J65: 2.445884452 | K65: -0.067084 | L65: -275.022851 | N65: -10.33079261
A66: 18.3 | B66: 39.935019 | C66: 11.99715708 | D66: 99.976309 | E66: 12 | F66: 11.65933224 | G66: 0.008345139558 | H66: 312.935019 | I66: 3.195551598 | J66: 2.438963628 | K66: -0.067093 | L66: -275.009704 | N66: -10.50429398
A67: 18.6 | B67: 39.928474 | C67: 11.99710944 | D67: 99.975912 | E67: 12 | F67: 11.65933224 | G67: 0.008484982553 | H67: 312.928474 | I67: 3.195618434 | J67: 2.431715697 | K67: -0.067093 | L67: -274.99478 | N67: -10.67770852
A68: 18.9 | B68: 39.922181 | C68: 11.99705316 | D68: 99.975443 | E68: 12 | F68: 11.65933224 | G68: 0.008650187502 | H68: 312.922181 | I68: 3.195682699 | J68: 2.423304998 | K68: -0.067055 | L68: -274.9642 | N68: -10.85048409
A69: 19.2 | B69: 39.914719 | C69: 11.99700072 | D69: 99.975006 | E69: 12 | F69: 11.65933224 | G69: 0.008804120472 | H69: 312.914719 | I69: 3.195758906 | J69: 2.415610871 | K69: -0.067055 | L69: -274.983639 | N69: -11.02560228
A70: 19.5 | B70: 39.90639 | C70: 11.99695584 | D70: 99.974632 | E70: 12 | F70: 11.65933224 | G70: =(E70-C70)/(E70-F70) -> 0.008935861732 | H70: =273+B70 -> 312.90639 | I70: =1000/H70 -> 3.195843971 | J70: =-LOG(-LOG(1-G70)/H70*H70) -> 2.409131587 | K70: -0.066973 | L70: -274.981641 | N70: =(L70*A70)/(B70*C70) -> -11.20017499
A71: 19.8 | B71: 39.898374 | C71: 11.99690064 | D71: 99.974172 | E71: =E70 -> 12 | F71: =F70 -> 11.65933224 | G71: 0.009097896437 | H71: 312.898374 | I71: 3.195925844 | J71: 2.401291587 | K71: -0.066973 | L71: -274.921937 | N71: -11.37235286
A72: 20.1 | B72: 39.889616 | C72: 11.99684904 | D72: 99.973742 | E72: 12 | F72: 11.65933224 | G72: 0.009249363662 | H72: 312.889616 | I72: 3.1960153 | J72: 2.394087576 | K72: -0.066856 | L72: -274.853718 | N72: -11.54438027
A73: 20.4 | B73: 39.880175 | C73: 11.9967966 | D73: 99.973305 | E73: 12 | F73: 11.65933224 | G73: 0.009403296631 | H73: 312.880175 | I73: 3.196111738 | J73: 2.386885607 | K73: -0.066856 | L73: -274.7904 | N73: -11.7168096
A74: 20.7 | B74: 39.86796 | C74: 11.99674128 | D74: 99.972844 | E74: 12 | F74: 11.65933224 | G74: 0.009565683586 | H74: 312.86796 | I74: 3.196236521 | J74: 2.379414189 | K74: -0.066711 | L74: -274.705554 | N74: -11.88914103
A75: 21 | B75: 39.853216 | C75: 11.99668512 | D75: 99.972376 | E75: 12 | F75: 11.65933224 | G75: 0.009730536286 | H75: 312.853216 | I75: 3.196387152 | J75: 2.371957336 | K75: -0.066711 | L75: -274.583477 | N75: -12.06060411
A76: 21.3 | B76: 39.840076 | C76: 11.99662884 | D76: 99.971907 | E76: 12 | F76: 11.65933224 | G76: 0.009895741235 | H76: 312.840076 | I76: 3.196521407 | J76: 2.364609612 | K76: -0.066539 | L76: -274.463576 | N76: -12.23164703
A77: 21.6 | B77: 39.827238 | C77: 11.99657352 | D77: 99.971446 | E77: 12 | F77: 11.65933224 | G77: 0.01005812819 | H77: 312.827238 | I77: 3.196652588 | J77: 2.357505219 | K77: -0.066539 | L77: -274.417789 | N77: -12.40590933
A78: 21.9 | B78: 39.815948 | C78: 11.99651724 | D78: 99.970977 | E78: 12 | F78: 11.65933224 | G78: 0.01022333314 | H78: 312.815948 | I78: 3.19676796 | J78: 2.350393692 | K78: -0.066346 | L78: -274.360743 | N78: -12.57922375
A79: 22.2 | B79: 39.806324 | C79: 11.99645808 | D79: 99.970484 | E79: 12 | F79: 11.65933224 | G79: 0.01039699207 | H79: 312.806324 | I79: 3.196866314 | J79: 2.343040456 | K79: -0.066346 | L79: -274.312441 | N79: -12.75244223
A80: 22.5 | B80: 39.797933 | C80: 11.99639124 | D80: 99.969927 | E80: 12 | F80: 11.65933224 | G80: 0.01059319497 | H80: 312.797933 | I80: 3.196952072 | J80: 2.334878222 | K80: -0.066137 | L80: -274.310746 | N80: -12.92748974
A81: 22.8 | B81: 39.790964 | C81: 11.99632464 | D81: 99.969372 | E81: 12 | F81: 11.65933224 | G81: 0.01078869336 | H81: 312.790964 | I81: 3.1970233 | J81: 2.326893504 | K81: -0.066137 | L81: -274.403039 | N81: -13.10663162
A82: 23.1 | B82: 39.785474 | C82: 11.9962578 | D82: 99.968815 | E82: 12 | F82: 11.65933224 | G82: 0.01098489625 | H82: 312.785474 | I82: 3.197079414 | J82: 2.319023399 | K82: -0.065922 | L82: -274.526331 | N82: -13.28696096
A83: 23.4 | B83: 39.780659 | C83: 11.99619012 | D83: 99.968251 | E83: 12 | F83: 11.65933224 | G83: 0.01118356489 | H83: 312.780659 | I83: 3.197128631 | J83: 2.311195554 | K83: -0.065922 | L83: -274.672577 | N83: -13.46839504
A84: 23.7 | B84: 39.777087 | C84: 11.99612328 | D84: 99.967694 | E84: 12 | F84: 11.65933224 | G84: 0.01137976778 | H84: 312.777087 | I84: 3.197165143 | J84: 2.303599406 | K84: -0.065711 | L84: -274.83764 | N84: -13.65056607
A85: 24 | B85: 39.773075 | C85: 11.9960604 | D85: 99.96717 | E85: 12 | F85: 11.65933224 | G85: 0.01156434645 | H85: 312.773075 | I85: 3.197206153 | J85: 2.296571244 | K85: -0.065711 | L85: -275.033737 | N85: -13.83468893
A86: 24.3 | B86: 39.767833 | C86: 11.99600028 | D86: 99.966669 | E86: 12 | F86: 11.65933224 | G86: 0.01174082338 | H86: 312.767833 | I86: 3.197259739 | J86: 2.289955086 | K86: -0.065513 | L86: -275.176247 | N86: -14.01679828
A87: 24.6 | B87: 39.762091 | C87: 11.99594124 | D87: 99.966177 | E87: 12 | F87: 11.65933224 | G87: 0.01191413006 | H87: 312.762091 | I87: 3.197318437 | J87: 2.283553296 | K87: -0.065513 | L87: -275.238965 | N87: -14.19519878
A88: 24.9 | B88: 39.755924 | C88: 11.99588592 | D88: 99.965716 | E88: 12 | F88: 11.65933224 | G88: 0.01207651701 | H88: 312.755924 | I88: 3.197381483 | J88: 2.277638317 | K88: -0.06534 | L88: -275.25606 | N88: -14.37149862
A89: 25.2 | B89: 39.749753 | C89: 11.99583624 | D89: 99.965302 | E89: 12 | F89: 11.65933224 | G89: 0.01222234825 | H89: 312.749753 | I89: 3.197444572 | J89: 2.27239337 | K89: -0.06534 | L89: -275.238418 | N89: -14.54603509
A90: 25.5 | B90: 39.744144 | C90: 11.99578476 | D90: 99.964873 | E90: 12 | F90: 11.65933224 | G90: 0.01237346322 | H90: 312.744144 | I90: 3.197501917 | J90: 2.267023597 | K90: -0.065202 | L90: -275.126183 | N90: -14.71533966
A91: 25.8 | B91: 39.737848 | C91: 11.99574084 | D91: 99.964507 | E91: 12 | F91: 11.65933224 | G91: 0.01250238649 | H91: 312.737848 | I91: 3.197566289 | J91: 2.26249366 | K91: -0.065202 | L91: -274.928421 | N91: -14.8801711
A92: 26.1 | B92: 39.73039 | C92: 11.99569608 | D92: 99.964134 | E92: 12 | F92: 11.65933224 | G92: 0.0126337755 | H92: 312.73039 | I92: 3.197642544 | J92: 2.257924592 | K92: -0.065105 | L92: -274.71816 | N92: -15.04456358
A93: 26.4 | B93: 39.722802 | C93: 11.99565132 | D93: 99.963761 | E93: 12 | F93: 11.65933224 | G93: 0.01276516451 | H93: 312.722802 | I93: 3.197720133 | J93: 2.253402495 | K93: -0.065105 | L93: -274.522675 | N93: -15.20962267
A94: 26.7 | B94: 39.714721 | C94: 11.99561412 | D94: 99.963451 | E94: 12 | F94: 11.65933224 | G94: 0.01287436181 | H94: 312.714721 | I94: 3.197802767 | J94: 2.249679233 | K94: -0.06505 | L94: -274.400389 | N94: -15.37878344
A95: 27 | B95: 39.706147 | C95: 11.99557968 | D95: 99.963164 | E95: 12 | F95: 11.65933224 | G95: 0.01297545738 | H95: 312.706147 | I95: 3.197890446 | J95: 2.246260076 | K95: -0.06505 | L95: -274.337359 | N95: -15.55140858
A96: 27.3 | B96: 39.697382 | C96: 11.99554728 | D96: 99.962894 | E96: 12 | F96: 11.65933224 | G96: 0.01307056471 | H96: 312.697382 | I96: 3.197980084 | J96: 2.243067521 | K96: -0.065025 | L96: -274.331444 | N96: -15.72737721
A97: 27.6 | B97: 39.688373 | C97: 11.9955168 | D97: 99.96264 | E97: 12 | F97: 11.65933224 | G97: 0.01316003604 | H97: 312.688373 | I97: 3.198072223 | J97: 2.24008515 | K97: -0.065025 | L97: -274.424891 | N97: -15.9092726
A98: 27.9 | B98: 39.680911 | C98: 11.99549484 | D98: 99.962457 | E98: 12 | F98: 11.65933224 | G98: 0.01322449767 | H98: 312.680911 | I98: 3.198148543 | J98: 2.237948891 | K98: -0.065017 | L98: -274.569881 | N98: -16.09375169
A99: 28.2 | B99: 39.676715 | C99: 11.99546532 | D99: 99.962211 | E99: 12 | F99: 11.65933224 | G99: 0.01331115102 | H99: 312.676715 | I99: 3.198191461 | J99: 2.235093438 | K99: -0.065017 | L99: -274.732958 | N99: -16.2782256
A100: 28.5 | B100: 39.6732 | C100: 11.9954424 | D100: 99.96202 | E100: 12 | F100: 11.65933224 | G100: 0.01337843064 | H100: 312.6732 | I100: 3.198227414 | J100: 2.232889103 | K100: -0.06502 | L100: -274.95383 | N100: -16.46611455
A101: 28.8 | B101: 39.670984 | C101: 11.99542044 | D101: 99.961837 | E101: 12 | F101: 11.65933224 | G101: 0.01344289228 | H101: 312.670984 | I101: 3.198250081 | J101: 2.2307874 | K101: -0.06502 | L101: -275.116469 | N101: -16.65024503
A102: 29.1 | B102: 39.672341 | C102: 11.99540244 | D102: 99.961687 | E102: 12 | F102: 11.65933224 | G102: 0.01349572968 | H102: 312.672341 | I102: 3.198236201 | J102: 2.229072144 | K102: -0.065034 | L102: -275.218155 | N102: -16.82935288
A103: 29.4 | B103: 39.67555 | C103: 11.99538996 | D103: 99.961583 | E103: 12 | F103: 11.65933224 | G103: 0.01353236361 | H103: 312.67555 | I103: 3.198203377 | J103: 2.22788681 | K103: -0.065034 | L103: -275.25048 | N103: -17.00349071
A104: 29.7 | B104: 39.682091 | C104: 11.99537568 | D104: 99.961464 | E104: 12 | F104: 11.65933224 | G104: 0.01357428129 | H104: 312.682091 | I104: 3.198136474 | J104: 2.226534418 | K104: -0.065067 | L104: -275.202701 | N104: -17.17120363
A105: 30 | B105: 39.689435 | C105: 11.99536416 | D105: 99.961368 | E105: 12 | F105: 11.65933224 | G105: 0.01360809723 | H105: 312.689435 | I105: 3.198061361 | J105: 2.225446432 | K105: -0.065067 | L105: -275.086355 | N105: -17.33412604
A106: 30.3 | B106: 39.698448 | C106: 11.99535276 | D106: 99.961273 | E106: 12 | F106: 11.65933224 | G106: 0.01364156092 | H106: 312.698448 | I106: 3.197969182 | J106: 2.224372418 | K106: -0.064893 | L106: -274.936967 | N106: -17.49400366
A107: 30.6 | B107: 39.707824 | C107: 11.99534232 | D107: 99.961186 | E107: 12 | F107: 11.65933224 | G107: 0.01367220661 | H107: 312.707824 | I107: 3.197873297 | J107: 2.223391141 | K107: -0.064835 | L107: -274.722287 | N107: -17.64926342
A108: 30.9 | B108: 39.715657 | C108: 11.9953308 | D108: 99.96109 | E108: 12 | F108: 11.65933224 | G108: 0.01370602255 | H108: 312.715657 | I108: 3.197793195 | J108: 2.222310884 | K108: -0.064835 | L108: -274.498067 | N108: -17.80425433
A109: 31.2 | B109: 39.72065 | C109: 11.99532024 | D109: 99.961002 | E109: 12 | F109: 11.65933224 | G109: 0.01373702049 | H109: 312.72065 | I109: 3.197742138 | J109: 2.221322971 | K109: -0.064796 | L109: -274.322434 | N109: -17.9633663
A110: 31.5 | B110: 39.724166 | C110: 11.995308 | D110: 99.9609 | E110: 12 | F110: 11.65933224 | G110: 0.01377294993 | H110: 312.724166 | I110: 3.197706186 | J110: 2.220180656 | K110: -0.064773 | L110: -274.192412 | N110: -18.12590894
A111: 31.8 | B111: 39.72527 | C111: 11.99529744 | D111: 99.960812 | E111: 12 | F111: 11.65933224 | G111: 0.01380394787 | H111: 312.72527 | I111: 3.197694897 | J111: 2.219197504 | K111: -0.064773 | L111: -274.163493 | N111: -18.29611434
A112: 32.1 | B112: 39.724471 | C112: 11.99527932 | D112: 99.960661 | E112: 12 | F112: 11.65933224 | G112: 0.01385713752 | H112: 312.724471 | I112: 3.197703067 | J112: 2.217515603 | K112: -0.064793 | L112: -274.176271 | N112: -18.46997935
A113: 32.4 | B113: 39.721323 | C113: 11.99526408 | D113: 99.960534 | E113: 12 | F113: 11.65933224 | G113: 0.01390187319 | H113: 312.721323 | I113: 3.197735256 | J113: 2.216105979 | K113: -0.064793 | L113: -274.199151 | N113: -18.64565298
A114: 32.7 | B114: 39.716138 | C114: 11.99525256 | D114: 99.960438 | E114: 12 | F114: 11.65933224 | G114: 0.01393568913 | H114: 312.716138 | I114: 3.197788277 | J114: 2.215043423 | K114: -0.064861 | L114: -274.271668 | N114: -18.82575025
A115: 33 | B115: 39.710033 | C115: 11.99524212 | D115: 99.960351 | E115: 12 | F115: 11.65933224 | G115: 0.01396633482 | H115: 312.710033 | I115: 3.197850707 | J115: 2.21408269 | K115: -0.064861 | L115: -274.343926 | N115: -19.0064069
A116: 33.3 | B116: 39.701768 | C116: 11.99522016 | D116: 99.960168 | E116: 12 | F116: 11.65933224 | G116: 0.01403079646 | H116: 312.701768 | I116: 3.197935229 | J116: 2.212068652 | K116: -0.064908 | L116: -274.390129 | N116: -19.18645091
A117: 33.6 | B117: 39.689251 | C117: 11.99519724 | D117: 99.959977 | E117: 12 | F117: 11.65933224 | G117: 0.01409807608 | H117: 312.689251 | I117: 3.198063243 | J117: 2.209976344 | K117: -0.065016 | L117: -274.446393 | N117: -19.36941517
A118: 33.9 | B118: 39.673151 | C118: 11.99516304 | D118: 99.959692 | E118: 12 | F118: 11.65933224 | G118: 0.01419846715 | H118: 312.673151 | I118: 3.198227916 | J118: 2.206872673 | K118: -0.065016 | L118: -274.438152 | N118: -19.54975566
A119: 34.2 | B119: 39.653409 | C119: 11.9951334 | D119: 99.959445 | E119: 12 | F119: 11.65933224 | G119: 0.01428547274 | H119: 312.653409 | I119: 3.198429863 | J119: 2.204200397 | K119: -0.06513 | L119: -274.414591 | N119: -19.73093628
A120: 34.5 | B120: 39.632616 | C120: 11.99511144 | D120: 99.959262 | E120: 12 | F120: 11.65933224 | G120: 0.01434993438 | H120: 312.632616 | I120: 3.198642588 | J120: 2.202230932 | K120: -0.06513 | L120: -274.384695 | N120: -19.91232406
A121: 34.8 | B121: 39.611453 | C121: 11.99508096 | D121: 99.959008 | E121: 12 | F121: 11.65933224 | G121: 0.01443940571 | H121: 312.611453 | I121: 3.198859128 | J121: 2.199511863 | K121: -0.065191 | L121: -274.343508 | N121: -20.09324015
A122: 35.1 | B122: 39.589678 | C122: 11.9950524 | D122: 99.95877 | E122: 12 | F122: 11.65933224 | G122: 0.01452324106 | H122: 312.589678 | I122: 3.199081961 | J122: 2.196979209 | K122: -0.065335 | L122: -274.348686 | N122: -20.27803564
A123: 35.4 | B123: 39.569317 | C123: 11.99503044 | D123: 99.958587 | E123: 12 | F123: 11.65933224 | G123: 0.01458770269 | H123: 312.569317 | I123: 3.199290351 | J123: 2.195041682 | K123: -0.065335 | L123: -274.343551 | N123: -20.46153021
A124: 35.7 | B124: 39.551176 | C124: 11.99500752 | D124: 99.958396 | E124: 12 | F124: 11.65933224 | G124: 0.01465498232 | H124: 312.551176 | I124: 3.199476044 | J124: 2.193028496 | K124: -0.065525 | L124: -274.308183 | N124: -20.64177566
A125: 36 | B125: 39.535695 | C125: 11.99499612 | D125: 99.958301 | E125: 12 | F125: 11.65933224 | G125: 0.01468844601 | H125: 312.535695 | I125: 3.199634525 | J125: 2.192030587 | K125: -0.065525 | L125: -274.288373 | N125: -20.82190255
A126: 36.3 | B126: 39.52348 | C126: 11.99498556 | D126: 99.958213 | E126: 12 | F126: 11.65933224 | G126: 0.01471944395 | H126: 312.52348 | I126: 3.199759583 | J126: 2.19110822 | K126: -0.065648 | L126: -274.25866 | N126: -20.99965059
A127: 36.6 | B127: 39.514165 | C127: 11.99497416 | D127: 99.958118 | E127: 12 | F127: 11.65933224 | G127: 0.01475290764 | H127: 312.514165 | I127: 3.199854957 | J127: 2.190114643 | K127: -0.065969 | L127: -274.186714 | N127: -21.17265722
A128: 36.9 | B128: 39.506821 | C128: 11.99496264 | D128: 99.958022 | E128: 12 | F128: 11.65933224 | G128: 0.01478672358 | H128: 312.506821 | I128: 3.199930154 | J128: 2.189112878 | K128: -0.065969 | L128: -274.107312 | N128: -21.34400936
A129: 37.2 | B129: 39.500712 | C129: 11.99494356 | D129: 99.957863 | E129: 12 | F129: 11.65933224 | G129: 0.01484273123 | H129: 312.500712 | I129: 3.199992709 | J129: 2.187458695 | K129: -0.066395 | L129: -273.990865 | N129: -21.51175736
A130: 37.5 | B130: 39.494973 | C130: 11.99491116 | D130: 99.957593 | E130: 12 | F130: 11.65933224 | G130: 0.01493783856 | H130: 312.494973 | I130: 3.200051477 | J130: 2.184663845 | K130: -0.066395 | L130: -273.885661 | N130: -21.68012124
A131: 37.8 | B131: 39.490843 | C131: 11.99488068 | D131: 99.957339 | E131: 12 | F131: 11.65933224 | G131: 0.01502730989 | H131: 312.490843 | I131: 3.20009377 | J131: 2.182050689 | K131: -0.066641 | L131: -273.768675 | N131: -21.84656781
A132: 38.1 | B132: 39.488122 | C132: 11.99483592 | D132: 99.956966 | E132: 12 | F132: 11.65933224 | G132: 0.0151586989 | H132: 312.488122 | I132: 3.200121635 | J132: 2.178241111 | K132: -0.067179 | L132: -273.641391 | N132: -22.01131423
A133: 38.4 | B133: 39.487694 | C133: 11.9947806 | D133: 99.956505 | E133: 12 | F133: 11.65933224 | G133: 0.01532108586 | H133: 312.487694 | I133: 3.200126018 | J133: 2.173577775 | K133: -0.067179 | L133: -273.532374 | N133: -22.17613608
A134: 38.7 | B134: 39.486342 | C134: 11.99471664 | D134: 99.955972 | E134: 12 | F134: 11.65933224 | G134: =(E134-C134)/(E134-F134) -> 0.01550883477 | H134: =273+B134 -> 312.486342 | I134: =1000/H134 -> 3.200139864 | J134: =-LOG(-LOG(1-G134)/H134*H134) -> 2.168246852 | K134: -0.067735 | L134: -273.458151 | N134: =(L134*A134)/(B134*C134) -> -22.34420682
A135: 39 | B135: 39.486158 | C135: 11.99464992 | D135: 99.955416 | E135: =E134 -> 12 | F135: =F134 -> 11.65933224 | G135: 0.01570468541 | H135: 312.486158 | I135: 3.200141748 | J135: 2.162753691 | K135: -0.067735 | L135: -273.438457 | N135: -22.51602622
A136: 39.3 | B136: 39.489922 | C136: 11.99457648 | D136: 99.954804 | E136: 12 | F136: 11.65933224 | G136: 0.01592026202 | H136: 312.489922 | I136: 3.200103202 | J136: 2.156785283 | K136: -0.068011 | L136: -273.40401 | N136: -22.68434463
A137: 39.6 | B137: 39.494239 | C137: 11.99449728 | D137: 99.954144 | E137: 12 | F137: 11.65933224 | G137: 0.01615274659 | H137: 312.494239 | I137: 3.200058994 | J137: 2.150437946 | K137: -0.068542 | L137: -273.379506 | N137: -22.85311158
A138: 39.9 | B138: 39.500226 | C138: 11.99442012 | D138: 99.953501 | E138: 12 | F138: 11.65933224 | G138: 0.01637924293 | H138: 312.500226 | I138: 3.199997686 | J138: 2.144340642 | K138: -0.068542 | L138: -273.384883 | N138: -23.02335209
A139: 40.2 | B139: 39.507257 | C139: 11.99434188 | D139: 99.952849 | E139: 12 | F139: 11.65933224 | G139: 0.01660890951 | H139: 312.507257 | I139: 3.19992569 | J139: 2.13824278 | K139: -0.06903 | L139: -273.389668 | N139: -23.192889
A140: 40.5 | B140: 39.515341 | C140: 11.99425992 | D140: 99.952166 | E140: 12 | F140: 11.65933224 | G140: 0.01684949583 | H140: 312.515341 | I140: 3.199842916 | J140: 2.131944007 | K140: -0.06903 | L140: -273.337748 | N140: -23.35691312
A141: 40.8 | B141: 39.523052 | C141: 11.99417016 | D141: 99.951418 | E141: 12 | F141: 11.65933224 | G141: 0.01711297835 | H141: 312.523052 | I141: 3.199763965 | J141: 2.12514728 | K141: -0.069257 | L141: -273.218538 | N141: -23.51525251
A142: 41.1 | B142: 39.528171 | C142: 11.99408532 | D142: 99.950711 | E142: 12 | F142: 11.65933224 | G142: 0.01736201864 | H142: 312.528171 | I142: 3.199711555 | J142: 2.118817795 | K142: -0.069671 | L142: -273.034255 | N142: -23.66928318
A143: 41.4 | B143: 39.52842 | C143: 11.9940138 | D143: 99.950115 | E143: 12 | F143: 11.65933224 | G143: 0.01757195926 | H143: 312.52842 | I143: 3.199709006 | J143: 2.113551563 | K143: -0.069671 | L143: -272.913446 | N143: -23.8314943
A144: 41.7 | B144: 39.52484 | C144: 11.99395092 | D144: 99.949591 | E144: 12 | F144: 11.65933224 | G144: 0.01775653792 | H144: 312.52484 | I144: 3.199745659 | J144: 2.108972777 | K144: -0.070052 | L144: -272.813459 | N144: -23.99769112
A145: 42 | B145: 39.516568 | C145: 11.9938956 | D145: 99.94913 | E145: 12 | F145: 11.65933224 | G145: 0.01791892488 | H145: 312.516568 | I145: 3.199830353 | J145: 2.104983327 | K145: -0.070052 | L145: -272.740561 | N145: -24.16904756
A146: 42.3 | B146: 39.504479 | C146: 11.99383932 | D146: 99.948661 | E146: 12 | F146: 11.65933224 | G146: 0.01808412983 | H146: 312.504479 | I146: 3.199954136 | J146: 2.100961239 | K146: -0.070237 | L146: -272.758446 | N146: -24.35084352
A147: 42.6 | B147: 39.49017 | C147: 11.99377248 | D147: 99.948104 | E147: 12 | F147: 11.65933224 | G147: 0.01828033272 | H147: 312.49017 | I147: 3.200100662 | J147: 2.096231498 | K147: -0.070598 | L147: -272.86258 | N147: -24.54193327
A148: 42.9 | B148: 39.475666 | C148: 11.99371632 | D148: 99.947636 | E148: 12 | F148: 11.65933224 | G148: 0.01844518542 | H148: 312.475666 | I148: 3.2002492 | J148: 2.092296214 | K148: -0.070598 | L148: -273.038323 | N148: -24.73988416
A149: 43.2 | B149: 39.461663 | C149: 11.99365428 | D149: 99.947119 | E149: 12 | F149: 11.65933224 | G149: 0.01862729834 | H149: 312.461663 | I149: 3.200392619 | J149: 2.087989203 | K149: -0.070936 | L149: -273.252639 | N149: -24.94142153
A150: 43.5 | B150: 39.448398 | C150: 11.9935866 | D150: 99.946555 | E150: 12 | F150: 11.65933224 | G150: 0.01882596698 | H150: 312.448398 | I150: 3.200528492 | J150: 2.083337955 | K150: -0.070936 | L150: -273.531885 | N150: -25.14888696
A151: 43.8 | B151: 39.437661 | C151: 11.99351496 | D151: 99.945958 | E151: 12 | F151: 11.65933224 | G151: 0.01903625984 | H151: 312.437661 | I151: 3.200638479 | J151: 2.078467226 | K151: -0.071091 | L151: -273.855974 | N151: -25.35938394
A152: 44.1 | B152: 39.427849 | C152: 11.9934378 | D152: 99.945315 | E152: 12 | F152: 11.65933224 | G152: 0.01926275618 | H152: 312.427849 | I152: 3.200738997 | J152: 2.073280441 | K152: -0.07136 | L152: -274.18048 | N152: -25.56985999
A153: 44.4 | B153: 39.418905 | C153: 11.99335956 | D153: 99.944663 | E153: 12 | F153: 11.65933224 | G153: 0.01949242276 | H153: 312.418905 | I153: 3.200830628 | J153: 2.068082356 | K153: -0.07136 | L153: -274.442642 | N153: -25.77443486
A154: 44.7 | B154: 39.411936 | C154: 11.99328144 | D154: 99.944012 | E154: 12 | F154: 11.65933224 | G154: 0.0197217371 | H154: 312.411936 | I154: 3.20090203 | J154: 2.062952389 | K154: -0.071548 | L154: -274.669351 | N154: -25.97478314
A155: 45 | B155: 39.403244 | C155: 11.9932032 | D155: 99.94336 | E155: 12 | F155: 11.65933224 | G155: 0.01995140368 | H155: 312.403244 | I155: 3.200991088 | J155: 2.057873388 | K155: -0.071548 | L155: -274.873691 | N155: -26.17450746
A156: 45.3 | B156: 39.394735 | C156: 11.9931288 | D156: 99.94274 | E156: 12 | F156: 11.65933224 | G156: 0.02016979828 | H156: 312.394735 | I156: 3.201078277 | J156: 2.053097058 | K156: -0.071608 | L156: -275.013555 | N156: -26.36826902
A157: 45.6 | B157: 39.386039 | C157: 11.99306592 | D157: 99.942216 | E157: 12 | F157: 11.65933224 | G157: 0.02035437694 | H157: 312.386039 | I157: 3.201167386 | J157: 2.049100029 | K157: -0.071655 | L157: -275.070518 | N157: -26.55439191
A158: 45.9 | B158: 39.373889 | C158: 11.9930058 | D158: 99.941715 | E158: 12 | F158: 11.65933224 | G158: 0.02053085387 | H158: 312.373889 | I158: 3.201291898 | J158: 2.045311844 | K158: -0.071655 | L158: -275.089696 | N158: -26.7393381
A159: 46.2 | B159: 39.359824 | C159: 11.99295804 | D159: 99.941317 | E159: 12 | F159: 11.65933224 | G159: 0.02067104912 | H159: 312.359824 | I159: 3.201436046 | J159: 2.042325361 | K159: -0.071623 | L159: -275.080785 | N159: -26.92295768
A160: 46.5 | B160: 39.34218 | C160: 11.99292384 | D160: 99.941032 | E160: 12 | F160: 11.65933224 | G160: 0.02077144019 | H160: 312.34218 | I160: 3.201616893 | J160: 2.040199088 | K160: -0.071623 | L160: -275.105302 | N160: -27.1124283
A161: 46.8 | B161: 39.322622 | C161: 11.99290176 | D161: 99.940848 | E161: 12 | F161: 11.65933224 | G161: 0.02083625407 | H161: 312.322622 | I161: 3.201817382 | J161: 2.03883173 | K161: -0.071591 | L161: -275.13694 | N161: -27.30410914
A162: 47.1 | B162: 39.304477 | C162: 11.99287884 | D162: 99.940657 | E162: 12 | F162: 11.65933224 | G162: 0.0209035337 | H162: 312.304477 | I162: 3.202003409 | J162: 2.037416797 | K162: -0.071553 | L162: -275.165218 | N162: -27.49469938
A163: 47.4 | B163: 39.287016 | C163: 11.99286852 | D163: 99.940571 | E163: 12 | F163: 11.65933224 | G163: 0.02093382714 | H163: 312.287016 | I163: 3.202182444 | J163: 2.036781177 | K163: -0.071513 | L163: -275.132098 | N163: -27.67881452
A164: 47.7 | B164: 39.269559 | C164: 11.992857 | D164: 99.940475 | E164: 12 | F164: 11.65933224 | G164: 0.02096764308 | H164: 312.269559 | I164: 3.202361457 | J164: 2.036072722 | K164: -0.07144 | L164: -275.077767 | N164: -27.8609031
A165: 48 | B165: 39.256969 | C165: 11.99285412 | D165: 99.940451 | E165: 12 | F165: 11.65933224 | G165: 0.02097609706 | H165: 312.256969 | I165: 3.202490574 | J165: 2.035895785 | K165: -0.07144 | L165: -274.980398 | N165: -28.03519993
A166: 48.3 | B166: 39.246114 | C166: 11.99284644 | D166: 99.940387 | E166: 12 | F166: 11.65933224 | G166: 0.02099864102 | H166: 312.246114 | I166: 3.202601907 | J166: 2.035424297 | K166: -0.071416 | L166: -274.863091 | N166: -28.20620272
A167: 48.6 | B167: 39.23871 | C167: 11.99284176 | D167: 99.940348 | E167: 12 | F167: 11.65933224 | G167: 0.02101237875 | H167: 312.23871 | I167: 3.202677849 | J167: 2.035137229 | K167: -0.071403 | L167: -274.684991 | N167: -28.36836947
A168: 48.9 | B168: 39.234454 | C168: 11.99284176 | D168: 99.940348 | E168: 12 | F168: 11.65933224 | G168: 0.02101237875 | H168: 312.234454 | I168: 3.202721504 | J168: 2.035137229 | K168: -0.071402 | L168: -274.448284 | N168: -28.52197942
A169: 49.2 | B169: 39.230759 | C169: 11.99283888 | D169: 99.940324 | E169: 12 | F169: 11.65933224 | G169: 0.02102083273 | H169: 312.230759 | I169: 3.202759405 | J169: 2.034960665 | K169: -0.07144 | L169: -274.193281 | N169: -28.67300441
A170: 49.5 | B170: 39.230079 | C170: 11.99282736 | D170: 99.940228 | E170: 12 | F170: 11.65933224 | G170: 0.02105464867 | H170: 312.230079 | I170: 3.20276638 | J170: 2.034255108 | K170: -0.07144 | L170: -273.901916 | N170: -28.81771252
A171: 49.8 | B171: 39.229643 | C171: 11.99281704 | D171: 99.940142 | E171: 12 | F171: 11.65933224 | G171: 0.02108494211 | H171: 312.229643 | I171: 3.202770853 | J171: 2.033623998 | K171: -0.071474 | L171: -273.636958 | N171: -28.9646665
A172: 50.1 | B172: 39.228413 | C172: 11.99280456 | D172: 99.940038 | E172: 12 | F172: 11.65933224 | G172: 0.02112157605 | H172: 312.228413 | I172: 3.20278347 | J172: 2.032861992 | K172: -0.07152 | L172: -273.434296 | N172: -29.11851457
A173: 50.4 | B173: 39.226686 | C173: 11.99280168 | D173: 99.940014 | E173: 12 | F173: 11.65933224 | G173: 0.02113003003 | H173: 312.226686 | I173: 3.202801185 | J173: 2.03268633 | K173: -0.071576 | L173: -273.249381 | N173: -29.2743629
A174: 50.7 | B174: 39.224649 | C174: 11.99279028 | D174: 99.939919 | E174: 12 | F174: 11.65933224 | G174: 0.02116349372 | H174: 312.224649 | I174: 3.202822081 | J174: 2.031991684 | K174: -0.071716 | L174: -273.123188 | N174: -29.43657158
A175: 51 | B175: 39.221937 | C175: 11.99277876 | D175: 99.939823 | E175: 12 | F175: 11.65933224 | G175: 0.02119730966 | H175: 312.221937 | I175: 3.202849901 | J175: 2.031290828 | K175: -0.071716 | L175: -273.093706 | N175: -29.60963183
A176: 51.3 | B176: 39.220084 | C176: 11.99276736 | D176: 99.939728 | E176: 12 | F176: 11.65933224 | G176: 0.02123077335 | H176: 312.220084 | I176: 3.20286891 | J176: 2.030598361 | K176: -0.071798 | L176: -273.114359 | N176: -29.78749416
A177: 51.6 | B177: 39.217741 | C177: 11.99275692 | D177: 99.939641 | E177: 12 | F177: 11.65933224 | G177: 0.02126141904 | H177: 312.217741 | I177: 3.202892945 | J177: 2.029965153 | K177: -0.071883 | L177: -273.216286 | N177: -29.97468859
A178: 51.9 | B178: 39.21632 | C178: 11.99274636 | D178: 99.939553 | E178: 12 | F178: 11.65933224 | G178: 0.02129241699 | H178: 312.21632 | I178: 3.202907523 | J178: 2.029325585 | K178: -0.071973 | L178: -273.31144 | N178: -30.1605795
A179: 52.2 | B179: 39.215334 | C179: 11.99272344 | D179: 99.939362 | E179: 12 | F179: 11.65933224 | G179: 0.02135969661 | H179: 312.215334 | I179: 3.202917638 | J179: 2.027940593 | K179: -0.072157 | L179: -273.353981 | N179: -30.34046057
A180: 52.5 | B180: 39.214467 | C180: 11.9927016 | D180: 99.93918 | E180: 12 | F180: 11.65933224 | G180: 0.021423806 | H180: 312.214467 | I180: 3.202926532 | J180: 2.026624872 | K180: -0.072157 | L180: -273.360357 | N180: -30.51627304
A181: 52.8 | B181: 39.213852 | C181: 11.99267196 | D181: 99.938933 | E181: 12 | F181: 11.65933224 | G181: 0.02151081159 | H181: 312.213852 | I181: 3.202932841 | J181: 2.024845465 | K181: -0.072248 | L181: -273.28721 | N181: -30.68299644
A182: 53.1 | B182: 39.213481 | C182: 11.99263764 | D182: 99.938647 | E182: 12 | F182: 11.65933224 | G182: 0.02161155491 | H182: 312.213481 | I182: 3.202936647 | J182: 2.02279397 | K182: -0.072337 | L182: -273.162854 | N182: -30.84367047
A183: 53.4 | B183: 39.212862 | C183: 11.99260428 | D183: 99.938369 | E183: 12 | F183: 11.65933224 | G183: 0.02170948023 | H183: 312.212862 | I183: 3.202942997 | J183: 2.020808903 | K183: -0.072421 | L183: -273.005039 | N183: -31.00058403
A184: 53.7 | B184: 39.209714 | C184: 11.99255556 | D184: 99.937963 | E184: 12 | F184: 11.65933224 | G184: 0.02185249347 | H184: 312.209714 | I184: 3.202975292 | J184: 2.0179257 | K184: -0.072578 | L184: -272.837504 | N184: -31.15824155
A185: 54 | B185: 39.20404 | C185: 11.99251176 | D185: 99.937598 | E185: 12 | F185: 11.65933224 | G185: 0.02198106448 | H185: 312.20404 | I185: 3.203033503 | J185: 2.015349539 | K185: -0.072578 | L185: -272.773222 | N185: -31.32957596
A186: 54.3 | B186: 39.197805 | C186: 11.99245548 | D186: 99.937129 | E186: 12 | F186: 11.65933224 | G186: 0.02214626943 | H186: 312.197805 | I186: 3.203097472 | J186: 2.012061134 | K186: -0.07265 | L186: -272.790747 | N186: -31.51081251
A187: 54.6 | B187: 39.190091 | C187: 11.9923878 | D187: 99.936565 | E187: 12 | F187: 11.65933224 | G187: 0.02234493807 | H187: 312.190091 | I187: 3.203176618 | J187: 2.008138601 | K187: -0.072715 | L187: -272.918019 | N187: -31.70610672
A188: 54.9 | B188: 39.179725 | C188: 11.9923182 | D188: 99.935985 | E188: 12 | F188: 11.65933224 | G188: 0.0225492427 | H188: 312.179725 | I188: 3.203282981 | J188: 2.004140584 | K188: -0.072772 | L188: -273.192036 | N188: -31.92095327
A189: 55.2 | B189: 39.165725 | C189: 11.99223996 | D189: 99.935333 | E189: 12 | F189: 11.65933224 | G189: 0.02277890928 | H189: 312.165725 | I189: 3.203426641 | J189: 1.999688787 | K189: -0.072861 | L189: -273.591923 | N189: -32.15406382
A190: 55.5 | B190: 39.15006 | C190: 11.99216184 | D190: 99.934682 | E190: 12 | F190: 11.65933224 | G190: 0.02300822361 | H190: 312.15006 | I190: 3.203587403 | J190: 1.995287858 | K190: -0.072861 | L190: -274.082216 | N190: -32.39991921
A191: 55.8 | B191: 39.133837 | C191: 11.9920836 | D191: 99.93403 | E191: 12 | F191: 11.65933224 | G191: 0.0232378902 | H191: 312.133837 | I191: 3.203753908 | J191: 1.990923399 | K191: -0.072891 | L191: -274.591196 | N191: -32.64928902
A192: 56.1 | B192: 39.116812 | C192: 11.99199384 | D192: 99.933282 | E192: 12 | F192: 11.65933224 | G192: 0.02350137272 | H192: 312.116812 | I192: 3.203928662 | J192: 1.985968512 | K192: -0.072911 | L192: -275.120732 | N192: -32.90268427
A193: 56.4 | B193: 39.09911 | C193: 11.99191668 | D193: 99.932639 | E193: 12 | F193: 11.65933224 | G193: 0.02372786905 | H193: 312.09911 | I193: 3.204110387 | J193: 1.981752833 | K193: -0.072918 | L193: -275.584969 | N193: -33.14966595
A194: 56.7 | B194: 39.082765 | C194: 11.99184516 | D194: 99.932043 | E194: 12 | F194: 11.65933224 | G194: 0.02393780967 | H194: 312.082765 | I194: 3.204278198 | J194: 1.977880647 | K194: -0.072886 | L194: -275.961636 | N194: -33.38569921
A195: 57 | B195: 39.067157 | C195: 11.99178216 | D195: 99.931518 | E195: 12 | F195: 11.65933224 | G195: 0.02412274058 | H195: 312.067157 | I195: 3.20443846 | J195: 1.974497431 | K195: -0.072886 | L195: -276.191347 | N195: -33.60387692
A196: 57.3 | B196: 39.052539 | C196: 11.99173452 | D196: 99.931121 | E196: 12 | F196: 11.65933224 | G196: 0.02426258358 | H196: 312.052539 | I196: 3.204588571 | J196: 1.97195604 | K196: -0.072849 | L196: -276.300434 | N196: -33.80686575
A197: 57.6 | B197: 39.041184 | C197: 11.99168484 | D197: 99.930707 | E197: 12 | F197: 11.65933224 | G197: 0.02440841481 | H197: 312.041184 | I197: 3.204705184 | J197: 1.969321186 | K197: -0.072801 | L197: -276.285944 | N197: -33.99210724
A198: 57.9 | B198: 39.032915 | C198: 11.99164008 | D198: 99.930334 | E198: 12 | F198: 11.65933224 | G198: =(E198-C198)/(E198-F198) -> 0.02453980383 | H198: =273+B198 -> 312.032915 | I198: =1000/H198 -> 3.20479011 | J198: =-LOG(-LOG(1-G198)/H198*H198) -> 1.966960549 | K198: -0.072739 | L198: -276.17745 | N198: =(L198*A198)/(B198*C198) -> -34.16309497
A199: 58.2 | B199: 39.028101 | C199: 11.99159532 | D199: 99.929961 | E199: =E198 -> 12 | F199: =F198 -> 11.65933224 | G199: 0.02467119284 | H199: 312.028101 | I199: 3.204839554 | J199: 1.964612359 | K199: -0.072576 | L199: -275.993434 | N199: -34.32158618
A200: 58.5 | B200: 39.024586 | C200: 11.99155524 | D200: 99.929627 | E200: 12 | F200: 11.65933224 | G200: 0.02478884412 | H200: 312.024586 | I200: 3.204875657 | J200: 1.962520144 | K200: -0.072576 | L200: -275.849379 | N200: -34.48371601
A201: 58.8 | B201: 39.022057 | C201: 11.99151036 | D201: 99.929253 | E201: 12 | F201: 11.65933224 | G201: 0.02492058538 | H201: 312.022057 | I201: 3.204901633 | J201: 1.960188968 | K201: -0.072479 | L201: -275.733398 | N201: -34.6483576
A202: 59.1 | B202: 39.023043 | C202: 11.99145504 | D202: 99.928792 | E202: 12 | F202: 11.65933224 | G202: 0.02508297234 | H202: 312.023043 | I202: 3.204891505 | J202: 1.957332195 | K202: -0.07237 | L202: -275.655083 | N202: -34.81452467
... 4298 more rows

Sheet 10%
A4: Time(s) | B4: Sample Temperature(°C) | C4: TGA mg | D4: TG(%) | E4: Wi | F4: Wf | G4: α | H4: T | I4: 103/T | J4: LOG | K4: dTG(%/min) | M4: HeatFlow(mW) | O4: CP
A5: 0 | B5: 25.436153 | C5: 15 | D5: 100 | E5: =C5 -> 15 | F5: 14.57780595 | G5: =(E5-C5)/(E5-F5) -> 0 | H5: =273+B5 -> 298.436153 | I5: =1000/H5 -> 3.350800464 | J5: =-LOG(-LOG(1-G5)/H5*H5) ->  | K5: -0.12067 | M5: -305.849684 | O5: =(A5*M5)/(C5*B5) -> 0
A6: 0.3 | B6: 25.436153 | C6: 14.99992005 | D6: 99.999847 | E6: =E5 -> 15 | F6: =F5 -> 14.57780595 | G6: =(E6-C6)/(E6-F6) -> 0.0001893678985 | H6: 298.436153 | I6: 3.350800464 | J6: 4.084868205 | K6: -0.12067 | M6: -306.489614 | O6: =(A6*M6)/(C6*B6) -> -0.2409886806
A7: 0.6 | B7: 25.43171 | C7: 14.99985105 | D7: 99.999745 | E7: =E6 -> 15 | F7: =F6 -> 14.57780595 | G7: =(E7-C7)/(E7-F7) -> 0.0003527998559 | H7: =273+B7 -> 298.43171 | I7: =1000/H7 -> 3.35085035 | J7: =-LOG(-LOG(1-G7)/H7*H7) -> 3.814610669 | K7: -0.12067 | M7: -307.171369 | O7: -0.4831360836
A8: 0.9 | B8: 25.4277 | C8: 14.9997903 | D8: 99.999619 | E8: 15 | F8: 14.57780595 | G8: 0.0004966910358 | H8: 298.4277 | I8: 3.350895376 | J8: 3.666021489 | K8: -0.119623 | M8: -307.8136 | O8: -0.726336798
A9: 1.2 | B9: 25.421407 | C9: 14.9997438 | D9: 99.999542 | E9: 15 | F9: 14.57780595 | G9: 0.0006068299636 | H9: 298.421407 | I9: 3.350966038 | J9: 3.579016867 | K9: -0.119623 | M9: -308.396695 | O9: -0.9705268084
A10: 1.5 | B10: 25.412151 | C10: 14.99970195 | D10: 99.999441 | E10: 15 | F10: 14.57780595 | G10: 0.0007059549987 | H10: 298.412151 | I10: 3.351069977 | J10: 3.51328533 | K10: -0.118534 | M10: -308.749076 | O10: -1.214990462
A11: 1.8 | B11: 25.40092 | C11: 14.99966385 | D11: 99.999313 | E11: 15 | F11: 14.57780595 | G11: 0.0007961978621 | H11: 298.40092 | I11: 3.351196102 | J11: 3.461021732 | K11: -0.118534 | M11: -308.868425 | O11: -1.459200754
A12: 2.1 | B12: 25.38889 | C12: 14.9996412 | D12: 99.99911 | E12: 15 | F12: 14.57780595 | G12: 0.0008498461785 | H12: 298.38889 | I12: 3.351331211 | J12: 3.432690756 | K12: -0.117391 | M12: -308.828961 | O12: -1.702992481
A13: 2.4 | B13: 25.376551 | C13: 14.99962335 | D13: 99.998907 | E13: 15 | F13: 14.57780595 | G13: 0.0008921253154 | H13: 298.376551 | I13: 3.351469801 | J13: 3.411596031 | K13: -0.117391 | M13: -308.54443 | O13: -1.945431766
A14: 2.7 | B14: 25.365014 | C14: 14.9996079 | D14: 99.998754 | E14: 15 | F14: 14.57780595 | G14: 0.0009287198623 | H14: 298.365014 | I14: 3.351599394 | J14: 3.394129208 | K14: -0.116176 | M14: -308.055943 | O14: -2.186141874
A15: 3 | B15: 25.357302 | C15: 14.99958525 | D15: 99.998601 | E15: 15 | F15: 14.57780595 | G15: 0.0009823681788 | H15: 298.357302 | I15: 3.351686026 | J15: 3.369727997 | K15: -0.116176 | M15: -307.446794 | O15: -2.424984292
A16: 3.3 | B16: 25.353229 | C16: 14.9995542 | D16: 99.998474 | E16: 15 | F16: 14.57780595 | G16: 0.00105591256 | H16: 298.353229 | I16: 3.351731782 | J16: 3.338358344 | K16: -0.114878 | M16: -306.833145 | O16: -2.662591742
A17: 3.6 | B17: 25.35317 | C17: 14.9995209 | D17: 99.998321 | E17: 15 | F17: 14.57780595 | G17: 0.001134786243 | H17: 298.35317 | I17: 3.351732445 | J17: 3.307055094 | K17: -0.114878 | M17: -306.289536 | O17: -2.899512629
A18: 3.9 | B18: 25.358909 | C18: 14.99947905 | D18: 99.99822 | E18: 15 | F18: 14.57780595 | G18: 0.001233911278 | H18: 298.358909 | I18: 3.351667974 | J18: 3.270663677 | K18: -0.11351 | M18: -305.803487 | O18: -3.13545303
A19: 4.2 | B19: 25.368596 | C19: 14.99942655 | D19: 99.998067 | E19: 15 | F19: 14.57780595 | G19: 0.001358261681 | H19: 298.368596 | I19: 3.351559157 | J19: 3.22893713 | K19: -0.11351 | M19: -305.411618 | O19: -3.371038839
A20: 4.5 | B20: 25.381797 | C20: 14.99935755 | D20: 99.997915 | E20: 15 | F20: 14.57780595 | G20: 0.001521693638 | H20: 298.381797 | I20: 3.351410877 | J20: 3.179557822 | K20: -0.112115 | M20: -305.221881 | O20: -3.607722742
A21: 4.8 | B21: 25.395309 | C21: 14.999274 | D21: 99.997762 | E21: 15 | F21: 14.57780595 | G21: 0.001719588421 | H21: 298.395309 | I21: 3.351259118 | J21: 3.126417505 | K21: -0.112115 | M21: -305.141377 | O21: -3.845197036
A22: 5.1 | B22: 25.406722 | C22: 14.99918115 | D22: 99.997584 | E22: 15 | F22: 14.57780595 | G22: 0.00193951099 | H22: 298.406722 | I22: 3.351130944 | J22: 3.074101944 | K22: -0.110731 | M22: -305.123212 | O22: -4.083468763
A23: 5.4 | B23: 25.414681 | C23: 14.99907855 | D23: 99.997381 | E23: 15 | F23: 14.57780595 | G23: 0.002182527205 | H23: 298.414681 | I23: 3.351041566 | J23: 3.022781661 | K23: -0.110731 | M23: -305.174268 | O23: -4.323071604
A24: 5.7 | B24: 25.417642 | C24: 14.99896755 | D24: 99.997126 | E24: 15 | F24: 14.57780595 | G24: 0.002445439485 | H24: 298.417642 | I24: 3.351008316 | J24: 2.973327206 | K24: -0.109395 | M24: -305.281373 | O24: -4.564345782
A25: 6 | B25: 25.413508 | C25: 14.9988414 | D25: 99.996795 | E25: 15 | F25: 14.57780595 | G25: 0.002744235737 | H25: 298.413508 | I25: 3.351054738 | J25: 2.923197687 | K25: -0.109395 | M25: -305.416312 | O25: -4.807520539
A26: 6.3 | B26: 25.407033 | C26: 14.99870295 | D26: 99.996414 | E26: 15 | F26: 14.57780595 | G26: 0.003072165513 | H26: 298.407033 | I26: 3.351127451 | J26: 2.874103111 | K26: -0.108125 | M26: -305.515025 | O26: -5.050861585
A27: 6.6 | B27: 25.396729 | C27: 14.9985624 | D27: 99.996007 | E27: 15 | F27: 14.57780595 | G27: 0.003405069304 | H27: 298.396729 | I27: 3.35124317 | J27: 2.82934928 | K27: -0.108125 | M27: -305.575013 | O27: -5.294614631
A28: 6.9 | B28: 25.386116 | C28: 14.9984193 | D28: 99.995549 | E28: 15 | F28: 14.57780595 | G28: 0.003744012972 | H28: 298.386116 | I28: 3.351362367 | J28: 2.788064071 | K28: -0.10692 | M28: -305.593917 | O28: -5.537988442
A29: 7.2 | B29: 25.378341 | C29: 14.9982702 | D29: 99.995168 | E29: 15 | F29: 14.57780595 | G29: 0.004097168115 | H29: 298.378341 | I29: 3.351449695 | J29: 2.748840693 | K29: -0.10692 | M29: -305.57444 | O29: -5.780229992
A30: 7.5 | B30: 25.374517 | C30: 14.99813565 | D30: 99.994735 | E30: 15 | F30: 14.57780595 | G30: 0.004415860432 | H30: 298.374517 | I30: 3.351492648 | J30: 2.716239689 | K30: -0.105789 | M30: -305.535537 | O30: -6.021267651
A31: 7.8 | B31: 25.374329 | C31: 14.99800455 | D31: 99.994278 | E31: 15 | F31: 14.57780595 | G31: 0.004726381151 | H31: 298.374329 | I31: 3.351494759 | J31: 2.6866586 | K31: -0.105789 | M31: -305.504074 | O31: -6.26157463
A32: 8.1 | B32: 25.37871 | C32: 14.9978745 | D32: 99.993922 | E32: 15 | F32: 14.57780595 | G32: 0.005034414862 | H32: 298.37871 | I32: 3.351445551 | J32: 2.659171178 | K32: -0.104724 | M32: -305.410865 | O32: -6.499354768
A33: 8.4 | B33: 25.386178 | C33: 14.9977494 | D33: 99.993515 | E33: 15 | F33: 14.57780595 | G33: 0.005330724107 | H33: 298.386178 | I33: 3.351361671 | J33: 2.634269351 | K33: -0.104724 | M33: -305.253336 | O33: -6.734669556
A34: 8.7 | B34: 25.398024 | C34: 14.99762295 | D34: 99.993133 | E34: 15 | F34: 14.57780595 | G34: 0.005630230933 | H34: 298.398024 | I34: 3.351228626 | J34: 2.610464013 | K34: -0.103712 | M34: -305.116056 | O34: -6.968863441
A35: 9 | B35: 25.411167 | C35: 14.99749785 | D35: 99.992752 | E35: 15 | F35: 14.57780595 | G35: 0.005926540177 | H35: 298.411167 | I35: 3.351081027 | J35: 2.588124335 | K35: -0.103712 | M35: -304.995398 | O35: -7.202651089
A36: 9.3 | B36: 25.424553 | C36: 14.9973762 | D36: 99.992319 | E36: 15 | F36: 14.57780595 | G36: 0.006214677824 | H36: 298.424553 | I36: 3.350930712 | J36: 2.567444062 | K36: -0.102747 | M36: -304.882913 | O36: -7.436137678
A37: 9.6 | B37: 25.438679 | C37: 14.99726055 | D37: 99.991913 | E37: 15 | F37: 14.57780595 | G37: 0.006488603996 | H37: 298.438679 | I37: 3.350772103 | J37: 2.548651612 | K37: -0.102747 | M37: -304.817112 | O37: -7.670154028
A38: 9.9 | B38: 25.451018 | C38: 14.9971485 | D38: 99.991531 | E38: 15 | F38: 14.57780595 | G38: 0.006754003284 | H38: 298.451018 | I38: 3.35063357 | J38: 2.531183664 | K38: -0.101829 | M38: -304.854478 | O38: -7.907039774
A39: 10.2 | B39: 25.460207 | C39: 14.99703645 | D39: 99.991099 | E39: 15 | F39: 14.57780595 | G39: 0.007019402571 | H39: 298.460207 | I39: 3.350530411 | J39: 2.514386817 | K39: -0.101829 | M39: -304.979292 | O39: -8.147101863
A40: 10.5 | B40: 25.469276 | C40: 14.99693505 | D40: 99.990565 | E40: 15 | F40: 14.57780595 | G40: 0.007259576491 | H40: 298.469276 | I40: 3.350428605 | J40: 2.499723217 | K40: -0.100957 | M40: -305.105644 | O40: -8.387266261
A41: 10.8 | B41: 25.476864 | C41: 14.9968374 | D41: 99.989955 | E41: 15 | F41: 14.57780595 | G41: 0.007490868239 | H41: 298.476864 | I41: 3.350343429 | J41: 2.486051809 | K41: -0.100957 | M41: -305.296908 | O41: -8.629795609
A42: 11.1 | B42: 25.482046 | C42: 14.9967588 | D42: 99.989293 | E42: 15 | F42: 14.57780595 | G42: 0.007677038556 | H42: 298.482046 | I42: 3.350285263 | J42: 2.475349562 | K42: -0.100132 | M42: -305.565529 | O42: -8.875557391
A43: 11.4 | B43: 25.485071 | C43: 14.99667405 | D43: 99.988556 | E43: 15 | F43: 14.57780595 | G43: 0.007877775634 | H43: 298.485071 | I43: 3.35025131 | J43: 2.464095802 | K43: -0.100132 | M43: -305.851832 | O43: -9.122946697
A44: 11.7 | B44: 25.486246 | C44: 14.99660025 | D44: 99.987767 | E44: 15 | F44: 14.57780595 | G44: 0.008052576771 | H44: 298.486246 | I44: 3.350238121 | J44: 2.454526324 | K44: -0.099351 | M44: -306.095317 | O44: -9.370092135
A45: 12 | B45: 25.486801 | C45: 14.99653095 | D45: 99.986877 | E45: 15 | F45: 14.57780595 | G45: 0.008216719302 | H45: 298.486801 | I45: 3.350231892 | J45: 2.445726861 | K45: -0.099351 | M45: -306.256948 | O45: -9.615260618
A46: 12.3 | B46: 25.484954 | C46: 14.9964786 | D46: 99.985962 | E46: 15 | F46: 14.57780595 | G46: 0.008340714418 | H46: 298.484954 | I46: 3.350252623 | J46: 2.439194948 | K46: -0.098596 | M46: -306.428457 | O46: -9.861910563
A47: 12.6 | B47: 25.478166 | C47: 14.99644155 | D47: 99.984995 | E47: 15 | F47: 14.57780595 | G47: 0.008428470273 | H47: 298.478166 | I47: 3.350328814 | J47: 2.43463025 | K47: -0.098596 | M47: -306.632887 | O47: -10.111903
A48: 12.9 | B48: 25.46922 | C48: 14.99641425 | D48: 99.984029 | E48: 15 | F48: 14.57780595 | G48: 0.008493132483 | H48: 298.46922 | I48: 3.350429234 | J48: 2.43129697 | K48: -0.097857 | M48: -306.731231 | O48: -10.3596393
A49: 13.2 | B49: 25.45898 | C49: 14.99639985 | D49: 99.983037 | E49: 15 | F49: 14.57780595 | G49: 0.008527240022 | H49: 298.45898 | I49: 3.350544185 | J49: 2.429548922 | K49: -0.097857 | M49: -306.869726 | O49: -10.60962332
A50: 13.5 | B50: 25.446578 | C50: 14.9963964 | D50: 99.982071 | E50: 15 | F50: 14.57780595 | G50: 0.008535411619 | H50: 298.446578 | I50: 3.350683418 | J50: 2.429131152 | K50: -0.097146 | M50: -307.105416 | O50: -10.86437994
A51: 13.8 | B51: 25.432883 | C51: 14.9963964 | D51: 99.98113 | E51: 15 | F51: 14.57780595 | G51: 0.008535411619 | H51: 298.432883 | I51: 3.35083718 | J51: 2.429131152 | K51: -0.097146 | M51: -307.32499 | O51: -11.11973551
A52: 14.1 | B52: 25.418817 | C52: 14.99640945 | D52: 99.980189 | E52: 15 | F52: 14.57780595 | G52: 0.008504501662 | H52: 298.418817 | I52: 3.350995122 | J52: 2.430713512 | K52: -0.096469 | M52: -307.493346 | O52: -11.37397347
A53: 14.4 | B53: 25.405429 | C53: 14.9964381 | D53: 99.979299 | E53: 15 | F53: 14.57780595 | G53: 0.008436641871 | H53: 298.405429 | I53: 3.351145465 | J53: 2.434207608 | K53: -0.096469 | M53: -307.562171 | O53: -11.62467334
A54: 14.7 | B54: 25.393769 | C54: 14.99646555 | D54: 99.978434 | E54: 15 | F54: 14.57780595 | G54: 0.008371624375 | H54: 298.393769 | I54: 3.351276414 | J54: 2.437581707 | K54: -0.095837 | M54: -307.539627 | O54: -11.87141095
A55: 15 | B55: 25.382911 | C55: 14.9965023 | D55: 99.977519 | E55: 15 | F55: 14.57780595 | G55: 0.008284579093 | H55: 298.382911 | I55: 3.351398365 | J55: 2.442140026 | K55: -0.095837 | M55: -307.494827 | O55: -12.11707142
A56: 15.3 | B56: 25.373349 | C56: 14.99653455 | D56: 99.976629 | E56: 15 | F56: 14.57780595 | G56: 0.008208192418 | H56: 298.373349 | I56: 3.351505767 | J56: 2.446179648 | K56: -0.095262 | M56: -307.296392 | O56: -12.35606506
A57: 15.6 | B57: 25.36712 | C57: 14.9965632 | D57: 99.975815 | E57: 15 | F57: 14.57780595 | G57: 0.008140332627 | H57: 298.36712 | I57: 3.351575737 | J57: 2.449799862 | K57: -0.095262 | M57: -306.950437 | O57: -12.58722365
A58: 15.9 | B58: 25.360888 | C58: 14.99659065 | D58: 99.975001 | E58: 15 | F58: 14.57780595 | G58: 0.008075315131 | H58: 298.360888 | I58: 3.351645743 | J58: 2.453296748 | K58: -0.094746 | M58: -306.661003 | O58: -12.82031461
A59: 16.2 | B59: 25.352807 | C59: 14.99660505 | D59: 99.974187 | E59: 15 | F59: 14.57780595 | G59: 0.008041207592 | H59: 298.352807 | I59: 3.351736523 | J59: 2.45514241 | K59: -0.094746 | M59: -306.351178 | O59: -13.0531571
A60: 16.5 | B60: 25.347932 | C60: 14.9966145 | D60: 99.973399 | E60: 15 | F60: 14.57780595 | G60: 0.008018824519 | H60: 298.347932 | I60: 3.35179129 | J60: 2.456357867 | K60: -0.094275 | M60: -305.963597 | O60: -13.28060748
A61: 16.8 | B61: 25.344478 | C61: 14.9966145 | D61: 99.972687 | E61: 15 | F61: 14.57780595 | G61: 0.008018824519 | H61: 298.344478 | I61: 3.351830095 | J61: 2.456357867 | K61: -0.094275 | M61: -305.624676 | O61: -13.50893522
A62: 17.1 | B62: 25.342688 | C62: 14.9966097 | D62: 99.972051 | E62: 15 | F62: 14.57780595 | G62: 0.008030193699 | H62: 298.342688 | I62: 3.351850205 | J62: 2.45574007 | K62: -0.093842 | M62: -305.331227 | O62: -13.7379385
A63: 17.4 | B63: 25.342934 | C63: 14.99658705 | D63: 99.97139 | E63: 15 | F63: 14.57780595 | G63: 0.008083842015 | H63: 298.342934 | I63: 3.351847441 | J63: 2.452836546 | K63: -0.093842 | M63: -305.100956 | O63: -13.96829799
A64: 17.7 | B64: 25.343922 | C64: 14.9965488 | D64: 99.970703 | E64: 15 | F64: 14.57780595 | G64: 0.008174440166 | H64: 298.343922 | I64: 3.351836341 | J64: 2.447976537 | K64: -0.093449 | M64: -304.951433 | O64: -14.20164971
A65: 18 | B65: 25.347129 | C65: 14.9965023 | D65: 99.970067 | E65: 15 | F65: 14.57780595 | G65: 0.008284579093 | H65: 298.347129 | I65: 3.351800312 | J65: 2.442140026 | K65: -0.093449 | M65: -304.828674 | O65: -14.43476003
A66: 18.3 | B66: 25.352988 | C66: 14.99644635 | D66: 99.969406 | E66: 15 | F66: 14.57780595 | G66: 0.008417101094 | H66: 298.352988 | I66: 3.35173449 | J66: 2.435218952 | K66: -0.09309 | M66: -304.726834 | O66: -14.66710092
A67: 18.6 | B67: 25.36033 | C67: 14.9963868 | D67: 99.968821 | E67: 15 | F67: 14.57780595 | G67: 0.008558149979 | H67: 298.36033 | I67: 3.351652011 | J67: 2.427970756 | K67: -0.09309 | M67: -304.752465 | O67: -14.90454207
A68: 18.9 | B68: 25.370325 | C68: 14.99631645 | D68: 99.968185 | E68: 15 | F68: 14.57780595 | G68: 0.008724779518 | H68: 298.370325 | I68: 3.351539735 | J68: 2.419559742 | K68: -0.092775 | M68: -304.753593 | O68: -15.1390984
A69: 19.2 | B69: 25.379335 | C69: 14.9962509 | D69: 99.967549 | E69: 15 | F69: 14.57780595 | G69: 0.008880039877 | H69: 298.379335 | I69: 3.35143853 | J69: 2.411865324 | K69: -0.092775 | M69: -304.802007 | O69: -15.37645122
A70: 19.5 | B70: 25.38643 | C70: 14.9961948 | D70: 99.966889 | E70: 15 | F70: 14.57780595 | G70: 0.009012917165 | H70: 298.38643 | I70: 3.35135884 | J70: 2.405385789 | K70: -0.092501 | M70: -304.9668 | O70: =(A70*M70)/(C70*B70) -> -15.62084305
A71: 19.8 | B71: 25.394018 | C71: 14.9961258 | D71: 99.966253 | E71: =E70 -> 15 | F71: =F70 -> 14.57780595 | G71: =(E71-C71)/(E71-F71) -> 0.009176349122 | H71: =273+B71 -> 298.394018 | I71: =1000/H71 -> 3.351273617 | J71: =-LOG(-LOG(1-G71)/H71*H71) -> 2.397545481 | K71: -0.092501 | M71: -305.215409 | O71: -15.86942341
A72: 20.1 | B72: 25.401357 | C72: 14.9960613 | D72: 99.965566 | E72: 15 | F72: 14.57780595 | G72: 0.009329122473 | H72: 298.401357 | I72: 3.351191194 | J72: 2.390341182 | K72: -0.092263 | M72: -305.546412 | O72: -16.12275002
A73: 20.4 | B73: 25.404999 | C73: 14.99599575 | D73: 99.964955 | E73: 15 | F73: 14.57780595 | G73: 0.009484382833 | H73: 298.404999 | I73: 3.351150294 | J73: 2.38313892 | K73: -0.092263 | M73: -305.97251 | O73: -16.38393008
A74: 20.7 | B74: 25.404569 | C74: 14.9959266 | D74: 99.964371 | E74: 15 | F74: 14.57780595 | G74: 0.009648170077 | H74: 298.404569 | I74: 3.351155123 | J74: 2.375667193 | K74: -0.092049 | M74: -306.453582 | O74: -16.65136766
A75: 21 | B75: 25.401482 | C75: 14.9958564 | D75: 99.963786 | E75: 15 | F75: 14.57780595 | G75: 0.00981444433 | H75: 298.401482 | I75: 3.351189791 | J75: 2.368210026 | K75: -0.092049 | M75: -307.004689 | O75: -16.92520646
A76: 21.3 | B76: 25.398458 | C76: 14.99578605 | D76: 99.963277 | E76: 15 | F76: 14.57780595 | G76: 0.009981073869 | H76: 298.398458 | I76: 3.351223752 | J76: 2.360861988 | K76: -0.091853 | M76: -307.498506 | O76: -17.19673614
A77: 21.6 | B77: 25.396421 | C77: 14.9957169 | D77: 99.962743 | E77: 15 | F77: 14.57780595 | G77: 0.01014486111 | H77: 298.396421 | I77: 3.351246629 | J77: 2.353757285 | K77: -0.091853 | M77: -307.729963 | O77: -17.45355042
A78: 21.9 | B78: 25.395189 | C78: 14.99564655 | D78: 99.962285 | E78: 15 | F78: 14.57780595 | G78: 0.01031149065 | H78: 298.395189 | I78: 3.351260466 | J78: 2.346645444 | K78: -0.091665 | M78: -307.746731 | O78: -17.69786665
A79: 22.2 | B79: 25.39445 | C79: 14.9955726 | D79: 99.961827 | E79: 15 | F79: 14.57780595 | G79: 0.01048664708 | H79: 298.39445 | I79: 3.351268765 | J79: 2.339291877 | K79: -0.091665 | M79: -307.688873 | O79: -17.93754074
A80: 22.5 | B80: 25.392969 | C80: 14.99548905 | D80: 99.961471 | E80: 15 | F80: 14.57780595 | G80: 0.01068454186 | H80: 298.392969 | I80: 3.351285398 | J80: 2.331129269 | K80: -0.091486 | M80: -307.482589 | O80: -18.16891239
A81: 22.8 | B81: 25.389513 | C81: 14.9954058 | D81: 99.961115 | E81: 15 | F81: 14.57780595 | G81: 0.01088172607 | H81: 298.389513 | I81: 3.351324214 | J81: 2.323144179 | K81: -0.091486 | M81: -307.076662 | O81: -18.38946372
A82: 23.1 | B82: 25.384334 | C82: 14.99532225 | D82: 99.960785 | E82: 15 | F82: 14.57780595 | G82: 0.01107962085 | H82: 298.384334 | I82: 3.351382382 | J82: 2.315273699 | K82: -0.091314 | M82: -306.614692 | O82: -18.6073002
A83: 23.4 | B83: 25.376622 | C83: 14.99523765 | D83: 99.960403 | E83: 15 | F83: 14.57780595 | G83: 0.01128000264 | H83: 298.376622 | I83: 3.351469003 | J83: 2.307445475 | K83: -0.091314 | M83: -306.16419 | O83: -18.82708514
A84: 23.7 | B84: 25.365578 | C84: 14.9951541 | D84: 99.960022 | E84: 15 | F84: 14.57780595 | G84: 0.01147789743 | H84: 298.365578 | I84: 3.351593058 | J84: 2.299848953 | K84: -0.091149 | M84: -305.735824 | O84: -19.05017542
A85: 24 | B85: 25.351701 | C85: 14.9950755 | D85: 99.959564 | E85: 15 | F85: 14.57780595 | G85: 0.01166406774 | H85: 298.351701 | I85: 3.351748948 | J85: 2.292820439 | K85: -0.091149 | M85: -305.345372 | O85: -19.27732738
A86: 24.3 | B86: 25.336462 | C86: 14.99500035 | D86: 99.959055 | E86: 15 | F86: 14.57780595 | G86: 0.01184206646 | H86: 298.336462 | I86: 3.351920155 | J86: 2.286203943 | K86: -0.090999 | M86: -305.006906 | O86: -19.50848287
A87: 24.6 | B87: 25.322271 | C87: 14.99492655 | D87: 99.958547 | E87: 15 | F87: 14.57780595 | G87: 0.0120168676 | H87: 298.322271 | I87: 3.352079604 | J87: 2.279801822 | K87: -0.090999 | M87: -304.824187 | O87: -19.7486556
A88: 24.9 | B88: 25.308327 | C88: 14.9948574 | D88: 99.957885 | E88: 15 | F88: 14.57780595 | G88: 0.01218065484 | H88: 298.308327 | I88: 3.352236292 | J88: 2.273886533 | K88: -0.090869 | M88: -304.717451 | O88: -19.99359528
A89: 25.2 | B89: 25.296728 | C89: 14.9947953 | D89: 99.95725 | E89: 15 | F89: 14.57780595 | G89: 0.01232774361 | H89: 298.296728 | I89: 3.352366641 | J89: 2.268641307 | K89: -0.090869 | M89: -304.601592 | O89: -20.23614661
A90: 25.5 | B90: 25.288956 | C90: 14.99473095 | D90: 99.956639 | E90: 15 | F90: 14.57780595 | G90: 0.01248016167 | H90: 298.288956 | I90: 3.352453988 | J90: 2.263271246 | K90: -0.090762 | M90: -304.456554 | O90: -20.47368087
A91: 25.8 | B91: 25.284698 | C91: 14.99467605 | D91: 99.956055 | E91: 15 | F91: 14.57780595 | G91: 0.01261019666 | H91: 298.284698 | I91: 3.352501844 | J91: 2.258741062 | K91: -0.090762 | M91: -304.366306 | O91: -20.7119706
A92: 26.1 | B92: 25.284635 | C92: 14.9946201 | D92: 99.955495 | E92: 15 | F92: 14.57780595 | G92: 0.01274271866 | H92: 298.284635 | I92: 3.352502552 | J92: 2.254171743 | K92: -0.090676 | M92: -304.264767 | O92: -20.9459478
A93: 26.4 | B93: 25.289942 | C93: 14.99456415 | D93: 99.955012 | E93: 15 | F93: 14.57780595 | G93: 0.01287524066 | H93: 298.289942 | I93: 3.352442906 | J93: 2.249649395 | K93: -0.090676 | M93: -304.067906 | O93: -21.16863381
A94: 26.7 | B94: 25.299813 | C94: 14.99451765 | D94: 99.954631 | E94: 15 | F94: 14.57780595 | G94: 0.01298537959 | H94: 298.299813 | I94: 3.352331971 | J94: 2.245925923 | K94: -0.090607 | M94: -303.820891 | O94: -21.3835144
A95: 27 | B95: 25.312828 | C95: 14.9944746 | D95: 99.954351 | E95: 15 | F95: 14.57780595 | G95: 0.01308734692 | H95: 298.312828 | I95: 3.352185713 | J95: 2.242506573 | K95: -0.090607 | M95: -303.577175 | O95: -21.59538537
A96: 27.3 | B96: 25.324919 | C96: 14.9944341 | D96: 99.954198 | E96: 15 | F96: 14.57780595 | G96: 0.01318327437 | H96: 298.324919 | I96: 3.35204985 | J96: 2.239313836 | K96: -0.090545 | M96: -303.368895 | O96: -21.80999429
A97: 27.6 | B97: 25.335902 | C97: 14.994396 | D97: 99.954122 | E97: 15 | F97: 14.57780595 | G97: 0.01327351724 | H97: 298.335902 | I97: 3.351926447 | J97: 2.236331294 | K97: -0.090545 | M97: -303.243827 | O97: -22.03107577
A98: 27.9 | B98: 25.345893 | C98: 14.99436855 | D98: 99.954097 | E98: 15 | F98: 14.57780595 | G98: 0.01333853473 | H98: 298.345893 | I98: 3.351814198 | J98: 2.234194911 | K98: -0.090486 | M98: -303.200298 | O98: -22.25861044
A99: 28.2 | B99: 25.35342 | C99: 14.99433165 | D99: 99.954097 | E99: 15 | F99: 14.57780595 | G99: 0.0134259353 | H99: 298.35342 | I99: 3.351729637 | J99: 2.231339292 | K99: -0.090486 | M99: -303.269299 | O99: -22.4964449
A100: 28.5 | B100: 25.356813 | C100: 14.994303 | D100: 99.954097 | E100: 15 | F100: 14.57780595 | G100: 0.01349379509 | H100: 298.356813 | I100: 3.35169152 | J100: 2.229134828 | K100: -0.090435 | M100: -303.48452 | O100: -22.7489027
A101: 28.8 | B101: 25.358974 | C101: 14.99427555 | D101: 99.954097 | E101: 15 | F101: 14.57780595 | G101: 0.01355881259 | H101: 298.358974 | I101: 3.351667244 | J101: 2.227033002 | K101: -0.090435 | M101: -303.614218 | O101: -22.99627148
A102: 29.1 | B102: 25.361381 | C102: 14.99425305 | D102: 99.954097 | E102: 15 | F102: 14.57780595 | G102: 0.01361210562 | H102: 298.361381 | I102: 3.351640204 | J102: 2.225317644 | K102: -0.090391 | M102: -303.649866 | O102: -23.23637349
A103: 29.4 | B103: 25.364218 | C103: 14.99423745 | D103: 99.95402 | E103: 15 | F103: 14.57780595 | G103: 0.01364905545 | H103: 298.364218 | I103: 3.351608335 | J103: 2.224132241 | K103: -0.090391 | M103: -303.634401 | O103: -23.47212685
A104: 29.7 | B104: 25.369154 | C104: 14.9942196 | D104: 99.953867 | E104: 15 | F104: 14.57780595 | G104: 0.01369133459 | H104: 298.369154 | I104: 3.351552889 | J104: 2.222779768 | K104: -0.090356 | M104: -303.477356 | O104: -23.69479137
A105: 30 | B105: 25.375264 | C105: 14.9942052 | D105: 99.953664 | E105: 15 | F105: 14.57780595 | G105: 0.01372544213 | H105: 298.375264 | I105: 3.351484257 | J105: 2.221691717 | K105: -0.090356 | M105: -303.213996 | O105: -23.90762744
A106: 30.3 | B106: 25.382605 | C106: 14.99419095 | D106: 99.953384 | E106: 15 | F106: 14.57780595 | G106: 0.01375919438 | H106: 298.382605 | I106: 3.351401802 | J106: 2.22061764 | K106: -0.090283 | M106: -302.854962 | O106: -24.11115936
A107: 30.6 | B107: 25.389578 | C107: 14.9941779 | D107: 99.953105 | E107: 15 | F107: 14.57780595 | G107: 0.01379010434 | H107: 298.389578 | I107: 3.351323484 | J107: 2.219636304 | K107: -0.090249 | M107: -302.387887 | O107: -24.30567435
A108: 30.9 | B108: 25.395561 | C108: 14.9941635 | D108: 99.952774 | E108: 15 | F108: 14.57780595 | G108: 0.01382421188 | H108: 298.395561 | I108: 3.351256288 | J108: 2.218555982 | K108: -0.090249 | M108: -301.945603 | O108: -24.50231596
A109: 31.2 | B109: 25.401298 | C109: 14.9941503 | D109: 99.952469 | E109: 15 | F109: 14.57780595 | G109: 0.01385547712 | H109: 298.401298 | I109: 3.351191857 | J109: 2.217568009 | K109: -0.090216 | M109: -301.495552 | O109: -24.69776955
A110: 31.5 | B110: 25.40574 | C110: 14.994135 | D110: 99.952265 | E110: 15 | F110: 14.57780595 | G110: 0.01389171638 | H110: 298.40574 | I110: 3.351141972 | J110: 2.216425625 | K110: -0.090184 | M110: -301.19874 | O110: -24.90637018
A111: 31.8 | B111: 25.405247 | C111: 14.9941218 | D111: 99.952087 | E111: 15 | F111: 14.57780595 | G111: 0.01392298162 | H111: 298.405247 | I111: 3.351147508 | J111: 2.215442415 | K111: -0.090134 | M111: -301.126082 | O111: -25.13801827
A112: 32.1 | B112: 25.400496 | C112: 14.99409915 | D112: 99.95196 | E112: 15 | F112: 14.57780595 | G112: 0.01397662994 | H112: 298.400496 | I112: 3.351200864 | J112: 2.213760411 | K112: -0.090124 | M112: -301.189339 | O112: -25.3852855
A113: 32.4 | B113: 25.392969 | C113: 14.9940801 | D113: 99.951884 | E113: 15 | F113: 14.57780595 | G113: 0.01402175137 | H113: 298.392969 | I113: 3.351285398 | J113: 2.212350702 | K113: -0.090124 | M113: -301.391509 | O113: -25.64736273
A114: 32.7 | B114: 25.383717 | C114: 14.9940657 | D114: 99.951833 | E114: 15 | F114: 14.57780595 | G114: 0.01405585891 | H114: 298.383717 | I114: 3.351389312 | J114: 2.211288081 | K114: -0.090135 | M114: -301.764057 | O114: -25.9263056
A115: 33 | B115: 25.372734 | C115: 14.99405265 | D115: 99.951833 | E115: 15 | F115: 14.57780595 | G115: 0.01408676887 | H115: 298.372734 | I115: 3.351512675 | J115: 2.210327289 | K115: -0.090135 | M115: -302.205428 | O115: -26.21379522
A116: 33.3 | B116: 25.359531 | C116: 14.9940252 | D116: 99.951833 | E116: 15 | F116: 14.57780595 | G116: 0.01415178636 | H116: 298.359531 | I116: 3.351660986 | J116: 2.208313128 | K116: -0.09016 | M116: -302.699636 | O116: -26.50920346
A117: 33.6 | B117: 25.346392 | C117: 14.99399655 | D117: 99.951757 | E117: 15 | F117: 14.57780595 | G117: 0.01421964616 | H117: 298.346392 | I117: 3.351808592 | J117: 2.20622069 | K117: -0.090248 | M117: -303.080152 | O117: -26.79558358
A118: 33.9 | B118: 25.3351 | C118: 14.9939538 | D118: 99.951629 | E118: 15 | F118: 14.57780595 | G118: 0.01432090291 | H118: 298.3351 | I118: 3.351935458 | J118: 2.203116827 | K118: -0.090248 | M118: -303.277331 | O118: -27.06455286
A119: 34.2 | B119: 25.325475 | C119: 14.99391675 | D119: 99.951477 | E119: 15 | F119: 14.57780595 | G119: 0.01440865877 | H119: 298.325475 | I119: 3.352043603 | J119: 2.200444384 | K119: -0.090374 | M119: -303.338688 | O119: -27.32003272
A120: 34.5 | B120: 25.318691 | C120: 14.9938893 | D120: 99.951197 | E120: 15 | F120: 14.57780595 | G120: 0.01447367626 | H120: 298.318691 | I120: 3.352119831 | J120: 2.198474795 | K120: -0.090374 | M120: -303.191479 | O120: -27.55373886
A121: 34.8 | B121: 25.316225 | C121: 14.9938512 | D121: 99.950892 | E121: 15 | F121: 14.57780595 | G121: 0.01456391913 | H121: 298.316225 | I121: 3.352147541 | J121: 2.195755555 | K121: -0.090447 | M121: -302.929299 | O121: -27.77207826
A122: 35.1 | B122: 25.318015 | C122: 14.9938155 | D122: 99.950434 | E122: 15 | F122: 14.57780595 | G122: 0.0146484774 | H122: 298.318015 | I122: 3.352127427 | J122: 2.19322274 | K122: -0.090601 | M122: -302.700762 | O122: -27.9884479
A123: 35.4 | B123: 25.321284 | C123: 14.99378805 | D123: 99.949977 | E123: 15 | F123: 14.57780595 | G123: 0.0147134949 | H123: 298.321284 | I123: 3.352090694 | J123: 2.191285089 | K123: -0.090601 | M123: -302.475133 | O123: -28.20303502
A124: 35.7 | B124: 25.325108 | C124: 14.9937594 | D124: 99.949443 | E124: 15 | F124: 14.57780595 | G124: 0.01478135469 | H124: 298.325108 | I124: 3.352047726 | J124: 2.189271774 | K124: -0.090757 | M124: -302.321597 | O124: -28.42336849
A125: 36 | B125: 25.330662 | C125: 14.99374515 | D125: 99.948934 | E125: 15 | F125: 14.57780595 | G125: 0.01481510694 | H125: 298.330662 | I125: 3.351985322 | J125: 2.188273801 | K125: -0.090757 | M125: -302.258493 | O125: -28.64998169
A126: 36.3 | B126: 25.338311 | C126: 14.99373195 | D126: 99.9484 | E126: 15 | F126: 14.57780595 | G126: 0.01484637218 | H126: 298.338311 | I126: 3.351899381 | J126: 2.187351374 | K126: -0.090838 | M126: -302.280817 | O126: -28.88216918
A127: 36.6 | B127: 25.346268 | C127: 14.9937177 | D127: 99.947891 | E127: 15 | F127: 14.57780595 | G127: 0.01488012444 | H127: 298.346268 | I127: 3.351809985 | J127: 2.186357733 | K127: -0.091013 | M127: -302.435127 | O127: -29.12661162
A128: 36.9 | B128: 25.351571 | C128: 14.9937033 | D128: 99.947306 | E128: 15 | F128: 14.57780595 | G128: 0.01491423197 | H128: 298.351571 | I128: 3.351750409 | J128: 2.185355903 | K128: -0.091013 | M128: -302.624939 | O128: -29.37766616
A129: 37.2 | B129: 25.355644 | C129: 14.99367945 | D129: 99.946721 | E129: 15 | F129: 14.57780595 | G129: 0.01497072259 | H129: 298.355644 | I129: 3.351704652 | J129: 2.183701613 | K129: -0.091213 | M129: -302.808473 | O129: -29.6297574
A130: 37.5 | B130: 25.359281 | C130: 14.99363895 | D130: 99.946187 | E130: 15 | F130: 14.57780595 | G130: 0.01506665004 | H130: 298.359281 | I130: 3.351663795 | J130: 2.18090658 | K130: -0.091213 | M130: -303.054478 | O130: -29.88876625
A131: 37.8 | B131: 25.361501 | C131: 14.99360085 | D131: 99.945653 | E131: 15 | F131: 14.57780595 | G131: 0.0151568929 | H131: 298.361501 | I131: 3.351638856 | J131: 2.178293253 | K131: -0.091321 | M131: -303.228767 | O131: -30.14264101
A132: 38.1 | B132: 25.359648 | C132: 14.9935449 | D132: 99.945145 | E132: 15 | F132: 14.57780595 | G132: 0.0152894149 | H132: 298.359648 | I132: 3.351659672 | J132: 2.174483422 | K132: -0.09156 | M132: -303.321683 | O132: -30.39351206
A133: 38.4 | B133: 25.355208 | C133: 14.99347575 | D133: 99.944611 | E133: 15 | F133: 14.57780595 | G133: 0.01545320215 | H133: 298.355208 | I133: 3.35170955 | J133: 2.169819774 | K133: -0.09156 | M133: -303.347344 | O133: -30.64092854
A134: 38.7 | B134: 25.347804 | C134: 14.9933958 | D134: 99.944102 | E134: 15 | F134: 14.57780595 | G134: 0.01564257005 | H134: 298.347804 | I134: 3.351792728 | J134: 2.16448849 | K134: -0.09182 | M134: -303.378809 | O134: =(A134*M134)/(C134*B134) -> -30.89269957
A135: 39 | B135: 25.340279 | C135: 14.9933124 | D135: 99.943619 | E135: =E134 -> 15 | F135: =F134 -> 14.57780595 | G135: =(E135-C135)/(E135-F135) -> 0.01584010954 | H135: =273+B135 -> 298.340279 | I135: =1000/H135 -> 3.35187727 | J135: =-LOG(-LOG(1-G135)/H135*H135) -> 2.158994952 | K135: -0.09182 | M135: -303.275775 | O135: -31.13101968
A136: 39.3 | B136: 25.332139 | C136: 14.9932206 | D136: 99.94311 | E136: 15 | F136: 14.57780595 | G136: 0.0160575451 | H136: 298.332139 | I136: 3.351968726 | J136: 2.15302613 | K136: -0.091957 | M136: -303.112809 | O136: -31.36389898
A137: 39.6 | B137: 25.324673 | C137: 14.9931216 | D137: 99.942525 | E137: 15 | F137: 14.57780595 | G137: 0.01629203443 | H137: 298.324673 | I137: 3.352052614 | J137: 2.146678346 | K137: -0.092237 | M137: -302.997451 | O137: -31.60081266
A138: 39.9 | B138: 25.319245 | C138: 14.99302515 | D138: 99.941991 | E138: 15 | F138: 14.57780595 | G138: 0.01652048389 | H138: 298.319245 | I138: 3.352113606 | J138: 2.140580606 | K138: -0.092237 | M138: -302.945494 | O138: -31.84178255
A139: 40.2 | B139: 25.315543 | C139: 14.99292735 | D139: 99.941457 | E139: 15 | F139: 14.57780595 | G139: 0.01675213092 | H139: 298.315543 | I139: 3.352155204 | J139: 2.134482302 | K139: -0.092509 | M139: -302.927122 | O139: -32.08414927
A140: 40.5 | B140: 25.313938 | C140: 14.9928249 | D140: 99.940897 | E140: 15 | F140: 14.57780595 | G140: 0.01699479185 | H140: 298.313938 | I140: 3.35217324 | J140: 2.128183065 | K140: -0.092509 | M140: -302.835082 | O140: -32.31603181
A141: 40.8 | B141: 25.31437 | C141: 14.9927127 | D141: 99.940338 | E141: 15 | F141: 14.57780595 | G141: 0.01726054642 | H141: 298.31437 | I141: 3.352168385 | J141: 2.12138583 | K141: -0.092646 | M141: -302.761117 | O141: -32.54714656
A142: 41.1 | B142: 25.317329 | C142: 14.99260665 | D142: 99.939804 | E142: 15 | F142: 14.57780595 | G142: 0.01751173424 | H142: 298.317329 | I142: 3.352135135 | J142: 2.115055865 | K142: -0.092922 | M142: -302.778147 | O142: -32.78470774
A143: 41.4 | B143: 25.322759 | C143: 14.99251725 | D143: 99.939295 | E143: 15 | F143: 14.57780595 | G143: 0.01772348521 | H143: 298.322759 | I143: 3.35207412 | J143: 2.109789229 | K143: -0.092922 | M143: -302.784694 | O143: -33.01784159
A144: 41.7 | B144: 25.328929 | C144: 14.99243865 | D144: 99.938863 | E144: 15 | F144: 14.57780595 | G144: 0.01790965552 | H144: 298.328929 | I144: 3.352004793 | J144: 2.105210087 | K144: -0.093216 | M144: -302.769932 | O144: -33.24755333
A145: 42 | B145: 25.335654 | C145: 14.9923695 | D145: 99.938507 | E145: 15 | F145: 14.57780595 | G145: 0.01807344277 | H145: 298.335654 | I145: 3.351929233 | J145: 2.101220323 | K145: -0.093216 | M145: -302.759106 | O145: -33.47681312
A146: 42.3 | B146: 25.342686 | C146: 14.99229915 | D146: 99.938177 | E146: 15 | F146: 14.57780595 | G146: 0.01824007231 | H146: 298.342686 | I146: 3.351850228 | J146: 2.097197916 | K146: -0.09338 | M146: -302.744142 | O146: -33.70507003
A147: 42.6 | B147: 25.348054 | C147: 14.9922156 | D147: 99.937769 | E147: 15 | F147: 14.57780595 | G147: 0.01843796709 | H147: 298.348054 | I147: 3.35178992 | J147: 2.092467796 | K147: -0.093753 | M147: -302.706155 | O147: -33.93285553
A148: 42.9 | B148: 25.35151 | C148: 14.9921454 | D148: 99.937337 | E148: 15 | F148: 14.57780595 | G148: 0.01860424134 | H148: 298.35151 | I148: 3.351751094 | J148: 2.088532194 | K148: -0.093753 | M148: -302.614418 | O148: -34.15696625
A149: 43.2 | B149: 25.350337 | C149: 14.99206785 | D149: 99.936905 | E149: 15 | F149: 14.57780595 | G149: 0.01878792465 | H149: 298.350337 | I149: 3.351764272 | J149: 2.084224831 | K149: -0.094179 | M149: -302.505382 | O149: -34.38520172
A150: 43.5 | B150: 25.347807 | C150: 14.99198325 | D150: 99.936473 | E150: 15 | F150: 14.57780595 | G150: 0.01898830644 | H150: 298.347807 | I150: 3.351792695 | J150: 2.079573199 | K150: -0.094179 | M150: -302.391813 | O150: -34.61463893
A151: 43.8 | B151: 25.344105 | C151: 14.9918937 | D151: 99.935939 | E151: 15 | F151: 14.57780595 | G151: 0.0192004127 | H151: 298.344105 | I151: 3.351834285 | J151: 2.074702064 | K151: -0.094409 | M151: -302.214518 | O151: -34.83822186
A152: 44.1 | B152: 25.340158 | C152: 14.99179725 | D152: 99.935405 | E152: 15 | F152: 14.57780595 | G152: 0.01942886215 | H152: 298.340158 | I152: 3.35187863 | J152: 2.069514841 | K152: -0.094894 | M152: -301.91561 | O152: -35.04783042
A153: 44.4 | B153: 25.337199 | C153: 14.99169945 | D153: 99.934845 | E153: 15 | F153: 14.57780595 | G153: 0.01966050919 | H153: 298.337199 | I153: 3.351911875 | J153: 2.064316311 | K153: -0.094894 | M153: -301.557989 | O153: -35.24880021
A154: 44.7 | B154: 25.335226 | C154: 14.9916018 | D154: 99.934209 | E154: 15 | F154: 14.57780595 | G154: 0.01989180094 | H154: 298.335226 | I154: 3.351934042 | J154: 2.059185901 | K154: -0.095393 | M154: -301.175758 | O154: -35.44497826
A155: 45 | B155: 25.33325 | C155: 14.991504 | D155: 99.933599 | E155: 15 | F155: 14.57780595 | G155: 0.02012344797 | H155: 298.33325 | I155: 3.351956244 | J155: 2.054106454 | K155: -0.095393 | M155: -300.827534 | O155: -35.64461953
A156: 45.3 | B156: 25.332756 | C156: 14.991411 | D156: 99.932937 | E156: 15 | F156: 14.57780595 | G156: 0.02034372583 | H156: 298.332756 | I156: 3.351961794 | J156: 2.049329701 | K156: -0.09564 | M156: -300.425469 | O156: -35.83521372
A157: 45.6 | B157: 25.333804 | C157: 14.9913324 | D157: 99.932353 | E157: 15 | F157: 14.57780595 | G157: 0.02052989615 | H157: 298.333804 | I157: 3.351950019 | J157: 2.045332315 | K157: -0.096118 | M157: -299.912026 | O157: -36.00958226
A158: 45.9 | B158: 25.335222 | C158: 14.99125725 | D158: 99.931793 | E158: 15 | F158: 14.57780595 | G158: 0.02070789486 | H158: 298.335222 | I158: 3.351934087 | J158: 2.041543787 | K158: -0.096118 | M158: -299.4959 | O158: -36.1943512
A159: 46.2 | B159: 25.336639 | C159: 14.99119755 | D159: 99.931285 | E159: 15 | F159: 14.57780595 | G159: 0.02084929904 | H159: 298.336639 | I159: 3.351918167 | J159: 2.038557033 | K159: -0.096568 | M159: -299.159267 | O159: -36.38807701
A160: 46.5 | B160: 25.337564 | C160: 14.9911548 | D160: 99.930751 | E160: 15 | F160: 14.57780595 | G160: 0.02095055579 | H160: 298.337564 | I160: 3.351907774 | J160: 2.036430565 | K160: -0.096568 | M160: -298.908667 | O160: -36.59245212
A161: 46.8 | B161: 25.340093 | C161: 14.9911272 | D161: 99.930242 | E161: 15 | F161: 14.57780595 | G161: 0.02101592858 | H161: 298.340093 | I161: 3.35187936 | J161: 2.035063081 | K161: -0.096779 | M161: -298.682228 | O161: -36.79702787
A162: 47.1 | B162: 25.342808 | C162: 14.99109855 | D162: 99.929631 | E162: 15 | F162: 14.57780595 | G162: 0.02108378837 | H162: 298.342808 | I162: 3.351848857 | J162: 2.033648018 | K162: -0.096978 | M162: -298.487424 | O162: -37.0048589
A163: 47.4 | B163: 25.343366 | C163: 14.99108565 | D163: 99.929097 | E163: 15 | F163: 14.57780595 | G163: 0.02111434304 | H163: 298.343366 | I163: 3.351842588 | J163: 2.033012339 | K163: -0.097156 | M163: -298.321186 | O163: -37.21903062
A164: 47.7 | B164: 25.342934 | C164: 14.99107125 | D164: 99.928563 | E164: 15 | F164: 14.57780595 | G164: 0.02114845058 | H164: 298.342934 | I164: 3.351847441 | J164: 2.032303818 | K164: -0.097444 | M164: -298.077273 | O164: -37.42464441
A165: 48 | B165: 25.341515 | C165: 14.99106765 | D165: 99.927877 | E165: 15 | F165: 14.57780595 | G165: 0.02115697746 | H165: 298.341515 | I165: 3.351863384 | J165: 2.032126865 | K165: -0.097444 | M165: -297.801003 | O165: -37.62723057
A166: 48.3 | B166: 25.339851 | C166: 14.99105805 | D166: 99.92719 | E166: 15 | F166: 14.57780595 | G166: 0.02117971582 | H166: 298.339851 | I166: 3.351882079 | J166: 2.031655333 | K166: -0.097548 | M166: -297.516558 | O166: -37.82874461
A167: 48.6 | B167: 25.337384 | C167: 14.9910522 | D167: 99.926503 | E167: 15 | F167: 14.57780595 | G167: 0.02119357201 | H167: 298.337384 | I167: 3.351909796 | J167: 2.031368239 | K167: -0.09762 | M167: -297.242665 | O167: -38.03238194
A168: 48.9 | B168: 25.335224 | C168: 14.9910522 | D168: 99.925791 | E168: 15 | F168: 14.57780595 | G168: 0.02119357201 | H168: 298.335224 | I168: 3.351934065 | J168: 2.031368239 | K168: -0.097655 | M168: -296.987374 | O168: -38.23754319
A169: 49.2 | B169: 25.334484 | C169: 14.9910486 | D169: 99.925054 | E169: 15 | F169: 14.57780595 | G169: 0.02120209889 | H169: 298.334484 | I169: 3.351942379 | J169: 2.031191658 | K169: -0.097607 | M169: -296.724679 | O169: -38.43923147
A170: 49.5 | B170: 25.334299 | C170: 14.9910342 | D170: 99.924316 | E170: 15 | F170: 14.57780595 | G170: 0.02123620643 | H170: 298.334299 | I170: 3.351944457 | J170: 2.030486036 | K170: -0.097607 | M170: -296.545509 | O170: -38.65058427
A171: 49.8 | B171: 25.333252 | C171: 14.9910213 | D171: 99.92363 | E171: 15 | F171: 14.57780595 | G171: 0.0212667611 | H171: 298.333252 | I171: 3.351956221 | J171: 2.029854867 | K171: -0.097519 | M171: -296.457106 | O171: -38.87487835
A172: 50.1 | B172: 25.333745 | C172: 14.9910057 | D172: 99.922969 | E172: 15 | F172: 14.57780595 | G172: 0.02130371094 | H172: 298.333745 | I172: 3.351950682 | J172: 2.02909279 | K172: -0.097388 | M172: -296.484693 | O172: -39.11198324
A173: 50.4 | B173: 25.336953 | C173: 14.9910021 | D173: 99.922307 | E173: 15 | F173: 14.57780595 | G173: 0.02131223782 | H173: 298.336953 | I173: 3.351914639 | J173: 2.028917112 | K173: -0.097216 | M173: -296.624108 | O173: -39.35971371
A174: 50.7 | B174: 25.340714 | C174: 14.99098785 | D174: 99.921671 | E174: 15 | F174: 14.57780595 | G174: 0.02134599007 | H174: 298.340714 | I174: 3.351872383 | J174: 2.0282224 | K174: -0.096737 | M174: -296.846996 | O174: -39.61790608
A175: 51 | B175: 25.342753 | C175: 14.99097345 | D175: 99.921137 | E175: 15 | F175: 14.57780595 | G175: 0.02138009761 | H175: 298.342753 | I175: 3.351849475 | J175: 2.027521479 | K175: -0.096737 | M175: -297.10384 | O175: -39.88364255
A176: 51.3 | B176: 25.34337 | C176: 14.9909592 | D176: 99.920603 | E176: 15 | F176: 14.57780595 | G176: 0.02141384986 | H176: 298.34337 | I176: 3.351842543 | J176: 2.026828947 | K176: -0.096432 | M176: -297.436113 | O176: -40.16217977
A177: 51.6 | B177: 25.344168 | C177: 14.99094615 | D177: 99.92012 | E177: 15 | F177: 14.57780595 | G177: 0.02144475982 | H177: 298.344168 | I177: 3.351833578 | J177: 2.026195679 | K177: -0.096083 | M177: -297.765973 | O177: -40.44060893
A178: 51.9 | B178: 25.343492 | C178: 14.99093295 | D178: 99.919586 | E178: 15 | F178: 14.57780595 | G178: 0.02147602506 | H178: 298.343492 | I178: 3.351841172 | J178: 2.025556051 | K178: -0.095693 | M178: -298.137976 | O178: -40.72766766
A179: 52.2 | B179: 25.340345 | C179: 14.9909043 | D179: 99.919077 | E179: 15 | F179: 14.57780595 | G179: 0.02154388486 | H179: 298.340345 | I179: 3.351876529 | J179: 2.024170929 | K179: -0.094781 | M179: -298.440584 | O179: -41.00983568
A180: 52.5 | B180: 25.334609 | C180: 14.990877 | D180: 99.918594 | E180: 15 | F180: 14.57780595 | G180: 0.02160854707 | H180: 298.334609 | I180: 3.351940974 | J180: 2.022855083 | K180: -0.094781 | M180: -298.698127 | O180: -41.29053936
A181: 52.8 | B181: 25.329181 | C181: 14.99083995 | D181: 99.918137 | E181: 15 | F181: 14.57780595 | G181: 0.02169630292 | H181: 298.329181 | I181: 3.352001962 | J181: 2.021075507 | K181: -0.094259 | M181: -298.917627 | O181: -41.5660096
A182: 53.1 | B182: 25.323074 | C182: 14.99079705 | D182: 99.917704 | E182: 15 | F182: 14.57780595 | G182: 0.02179791496 | H182: 298.323074 | I182: 3.352070581 | J182: 2.019023816 | K182: -0.093695 | M182: -299.032716 | O182: -41.82847949
A183: 53.4 | B183: 25.316166 | C183: 14.99075535 | D183: 99.917272 | E183: 15 | F183: 14.57780595 | G183: 0.02189668471 | H183: 298.316166 | I183: 3.352148204 | J183: 2.017038559 | K183: -0.09309 | M183: -299.078955 | O183: -42.08290002
A184: 53.7 | B184: 25.311661 | C184: 14.99069445 | D184: 99.916814 | E184: 15 | F184: 14.57780595 | G184: 0.02204093118 | H184: 298.311661 | I184: 3.352198827 | J184: 2.014155078 | K184: -0.091768 | M184: -299.013787 | O184: -42.31780193
A185: 54 | B185: 25.310675 | C185: 14.9906397 | D185: 99.916305 | E185: 15 | F185: 14.57780595 | G185: 0.02217061088 | H185: 298.310675 | I185: 3.352209907 | J185: 2.011578668 | K185: -0.091768 | M185: -298.9246 | O185: -42.54333419
A186: 54.3 | B186: 25.312278 | C186: 14.99056935 | D186: 99.915797 | E186: 15 | F186: 14.57780595 | G186: 0.02233724042 | H186: 298.312278 | I186: 3.352191893 | J186: 2.008289941 | K186: -0.091051 | M186: -298.732894 | O186: -42.74974379
A187: 54.6 | B187: 25.315793 | C187: 14.99048475 | D187: 99.915365 | E187: 15 | F187: 14.57780595 | G187: 0.02253762221 | H187: 298.315793 | I187: 3.352152395 | J187: 2.004367022 | K187: -0.0903 | M187: -298.425002 | O187: -42.93590638
A188: 54.9 | B188: 25.321469 | C188: 14.99039775 | D188: 99.914881 | E188: 15 | F188: 14.57780595 | G188: 0.0227436886 | H188: 298.321469 | I188: 3.352088616 | J188: 2.000368608 | K188: -0.089518 | M188: -298.111314 | O188: -43.11702122
A189: 55.2 | B189: 25.33066 | C189: 14.99029995 | D189: 99.914423 | E189: 15 | F189: 14.57780595 | G189: 0.02297533563 | H189: 298.33066 | I189: 3.351985344 | J189: 1.995916364 | K189: -0.087879 | M189: -297.774091 | O189: -43.28816304
A190: 55.5 | B190: 25.341517 | C190: 14.9902023 | D190: 99.913991 | E190: 15 | F190: 14.57780595 | G190: 0.02320662738 | H190: 298.341517 | I190: 3.351863361 | J190: 1.991514988 | K190: -0.087879 | M190: -297.426495 | O190: -43.45427748
A191: 55.8 | B191: 25.350834 | C191: 14.9901045 | D191: 99.913559 | E191: 15 | F191: 14.57780595 | G191: 0.02343827441 | H191: 298.350834 | I191: 3.351758688 | J191: 1.987150082 | K191: -0.087028 | M191: -297.110875 | O191: -43.62704877
A192: 56.1 | B192: 25.358359 | C192: 14.9899923 | D192: 99.913203 | E192: 15 | F192: 14.57780595 | G192: 0.02370402899 | H192: 298.358359 | I192: 3.351674152 | J192: 1.982194682 | K192: -0.086157 | M192: -296.819052 | O192: -43.80584673
A193: 56.4 | B193: 25.362865 | C193: 14.98989585 | D193: 99.912872 | E193: 15 | F193: 14.57780595 | G193: 0.02393247844 | H193: 298.362865 | I193: 3.351623534 | J193: 1.977978561 | K193: -0.085272 | M193: -296.635109 | O193: -44.00527408
A194: 56.7 | B194: 25.363918 | C194: 14.98980645 | D194: 99.912567 | E194: 15 | F194: 14.57780595 | G194: 0.02414422941 | H194: 298.363918 | I194: 3.351611705 | J194: 1.974105966 | K194: -0.083468 | M194: -296.541934 | O194: -44.22387653
A195: 57 | B195: 25.362313 | C195: 14.9897277 | D195: 99.912363 | E195: 15 | F195: 14.57780595 | G195: 0.02433075502 | H195: 298.362313 | I195: 3.351629735 | J195: 1.970722389 | K195: -0.083468 | M195: -296.472306 | O195: -44.45047288
A196: 57.3 | B196: 25.361696 | C196: 14.98966815 | D196: 99.912135 | E196: 15 | F196: 14.57780595 | G196: 0.0244718039 | H196: 298.361696 | I196: 3.351636666 | J196: 1.968180726 | K196: -0.082553 | M196: -296.412389 | O196: -44.67665637
A197: 57.6 | B197: 25.360953 | C197: 14.98960605 | D197: 99.911881 | E197: 15 | F197: 14.57780595 | G197: 0.02461889266 | H197: 298.360953 | I197: 3.351645012 | J197: 1.965545587 | K197: -0.081629 | M197: -296.354125 | O197: -44.90323928
A198: 57.9 | B198: 25.36169 | C198: 14.9895501 | D198: 99.911575 | E198: 15 | F198: 14.57780595 | G198: 0.02475141466 | H198: 298.36169 | I198: 3.351636733 | J198: 1.963184694 | K198: -0.080695 | M198: -296.276399 | O198: =(A198*M198)/(C198*B198) -> -45.12412914
A199: 58.2 | B199: 25.363482 | C199: 14.98949415 | D199: 99.91127 | E199: =E198 -> 15 | F199: =F198 -> 14.57780595 | G199: =(E199-C199)/(E199-F199) -> 0.02488393666 | H199: =273+B199 -> 298.363482 | I199: =1000/H199 -> 3.351616603 | J199: =-LOG(-LOG(1-G199)/H199*H199) -> 1.960836247 | K199: -0.07879 | M199: -296.184871 | O199: -45.34088616
A200: 58.5 | B200: 25.366997 | C200: 14.98944405 | D200: 99.91099 | E200: 15 | F200: 14.57780595 | G200: 0.02500260248 | H200: 298.366997 | I200: 3.351577118 | J200: 1.958743802 | K200: -0.07879 | M200: -296.070764 | O200: -45.55088377
A201: 58.8 | B201: 25.371869 | C201: 14.98938795 | D201: 99.910634 | E201: 15 | F201: 14.57780595 | G201: 0.02513547976 | H201: 298.371869 | I201: 3.351522392 | J201: 1.956412369 | K201: -0.07782 | M201: -296.029569 | O201: -45.76948846
A202: 59.1 | B202: 25.37662 | C202: 14.9893188 | D202: 99.910278 | E202: 15 | F202: 14.57780595 | G202: 0.02529926701 | H202: 298.37662 | I202: 3.351469026 | J202: 1.953555278 | K202: -0.076837 | M202: -296.001306 | O202: -45.99021451
A203: 59.4 | B203: 25.381373 | C203: 14.989239 | D203: 99.909871 | E203: 15 | F203: 14.57780595 | G203: 0.02548827962 | H203: 298.381373 | I203: 3.351415639 | J203: 1.950280762 | K203: -0.07584 | M203: -296.007014 | O203: -46.21614862
... 4297 more rows

Sheet 15%
A4: Time(s) | B4: Sample Temperature(°C) | C4: TGA mg | D4: TG(%) | E4: Wi | F4: Wf | G4: α | H4: T | I4: 103/T | J4: LOG | K4: dTG(%/min) | M4: HeatFlow(mW) | O4: CP
A5: 0 | B5: 39.753547 | C5: 16 | D5: 100 | E5: =C5 -> 16 | F5: 15.45915984 | G5: =(E5-C5)/(E5-F5) -> 0 | H5: =273+B5 -> 312.753547 | I5: =1000/H5 -> 3.197405784 | J5: =-LOG(-LOG(1-G5)/H5*H5) ->  | K5: -0.100204 | M5: -271.379437 | O5: =(M5*A5)/(B5*C5) -> 0
A6: 0.3 | B6: 39.753547 | C6: 15.99994464 | D6: 99.999654 | E6: =E5 -> 16 | F6: =F5 -> 15.45915984 | G6: =(E6-C6)/(E6-F6) -> 0.0001023592627 | H6: =273+B6 -> 312.753547 | I6: =1000/H6 -> 3.197405784 | J6: =-LOG(-LOG(1-G6)/H6*H6) -> 4.352066312 | K6: -0.100204 | M6: -271.450877 | O6: =(M6*A6)/(B6*C6) -> -0.1280318849
A7: 0.6 | B7: 39.73695 | C7: 15.99988928 | D7: 99.999308 | E7: =E6 -> 16 | F7: =F6 -> 15.45915984 | G7: =(E7-C7)/(E7-F7) -> 0.0002047185253 | H7: =273+B7 -> 312.73695 | I7: =1000/H7 -> 3.19757547 | J7: =-LOG(-LOG(1-G7)/H7*H7) -> 4.051014086 | K7: -0.100204 | M7: -271.612032 | O7: -0.2563236908
A8: 0.9 | B8: 39.719061 | C8: 15.99983216 | D8: 99.998951 | E8: 16 | F8: 15.45915984 | G8: 0.0003103319842 | H8: 312.719061 | I8: 3.197758387 | J8: 3.870321754 | K8: -0.100424 | M8: -271.880135 | O8: -0.3850397677
A9: 1.2 | B9: 39.702039 | C9: 15.99977488 | D9: 99.998593 | E9: 16 | F9: 15.45915984 | G9: 0.0004162412791 | H9: 312.702039 | I9: 3.197932457 | J9: 3.74278014 | K9: -0.100424 | M9: -272.204938 | O9: -0.5142218917
A10: 1.5 | B10: 39.684766 | C10: 15.99970624 | D10: 99.998164 | E10: 16 | F10: 15.45915984 | G10: 0.0005431549314 | H10: 312.684766 | I10: 3.198109114 | J10: 3.62717399 | K10: -0.100616 | M10: -272.573704 | O10: -0.6439310723
A11: 1.8 | B11: 39.668356 | C11: 15.99963952 | D11: 99.997747 | E11: 16 | F11: 15.45915984 | G11: 0.0006665185514 | H11: 312.668356 | I11: 3.198276963 | J11: 3.538258674 | K11: -0.100616 | M11: -272.950503 | O11: -0.7741087992
A12: 2.1 | B12: 39.653053 | C12: 15.99957264 | D12: 99.997329 | E12: 16 | F12: 15.45915984 | G12: 0.0007901780075 | H12: 312.653053 | I12: 3.198433505 | J12: 3.464319109 | K12: -0.100779 | M12: -273.333565 | O12: -0.9047471995
A13: 2.4 | B13: 39.639669 | C13: 15.99949824 | D13: 99.996864 | E13: 16 | F13: 15.45915984 | G13: 0.0009277417565 | H13: 312.639669 | I13: 3.198570428 | J13: 3.39458705 | K13: -0.100779 | M13: -273.682024 | O13: -1.035669371
A14: 2.7 | B14: 39.629674 | C14: 15.99942016 | D14: 99.996376 | E14: 16 | F14: 15.45915984 | G14: 0.001072109734 | H14: 312.629674 | I14: 3.198672689 | J14: 3.33174354 | K14: -0.100931 | M14: -273.929263 | O14: -1.166480411
A15: 3 | B15: 39.621096 | C15: 15.99935344 | D15: 99.995959 | E15: 16 | F15: 15.45915984 | G15: 0.001195473354 | H15: 312.621096 | I15: 3.198760457 | J15: 3.284416065 | K15: -0.100931 | M15: -274.068552 | O15: -1.297034544
A16: 3.3 | B16: 39.613997 | C16: 15.99928272 | D16: 99.995517 | E16: 16 | F16: 15.45915984 | G16: 0.001326232874 | H16: 312.613997 | I16: 3.198833096 | J16: 3.239307753 | K16: -0.101086 | M16: -274.092355 | O16: -1.427123919
A17: 3.6 | B17: 39.609615 | C17: 15.99920272 | D17: 99.995017 | E17: 16 | F17: 15.45915984 | G17: 0.001474150884 | H17: 312.609615 | I17: 3.198877936 | J17: 3.193353447 | K17: -0.101086 | M17: -274.005516 | O17: -1.55654917
A18: 3.9 | B18: 39.606654 | C18: 15.99913792 | D18: 99.994612 | E18: 16 | F18: 15.45915984 | G18: 0.001593964472 | H18: 312.606654 | I18: 3.198908236 | J18: 3.159390697 | K18: -0.101247 | M18: -273.817517 | O18: -1.685237437
A19: 4.2 | B19: 39.605542 | C19: 15.99906736 | D19: 99.994171 | E19: 16 | F19: 15.45915984 | G19: 0.001724428156 | H19: 312.605542 | I19: 3.198919615 | J19: 3.125195859 | K19: -0.101247 | M19: -273.553157 | O19: -1.813177803
A20: 4.5 | B20: 39.606222 | C20: 15.99899856 | D20: 99.993741 | E20: 16 | F20: 15.45915984 | G20: 0.001851637645 | H20: 312.606222 | I20: 3.198912656 | J20: 3.094257299 | K20: -0.101408 | M20: -273.254804 | O20: -1.940546719
A21: 4.8 | B21: 39.607269 | C21: 15.99893184 | D21: 99.993324 | E21: 16 | F21: 15.45915984 | G21: 0.001975001265 | H21: 312.607269 | I21: 3.198901942 | J21: 3.066219091 | K21: -0.101408 | M21: -272.932828 | O21: -2.067431487
A22: 5.1 | B22: 39.609061 | C22: 15.99887264 | D22: 99.992954 | E22: 16 | F22: 15.45915984 | G22: 0.002084460592 | H22: 312.609061 | I22: 3.198883605 | J22: 3.042768971 | K22: -0.101582 | M22: -272.633401 | O22: -2.194144923
A23: 5.4 | B23: 39.610605 | C23: 15.9988136 | D23: 99.992585 | E23: 16 | F23: 15.45915984 | G23: 0.002193624083 | H23: 312.610605 | I23: 3.198867806 | J23: 3.020576708 | K23: -0.101582 | M23: -272.349797 | O23: -2.320713675
A24: 5.7 | B24: 39.61135 | C24: 15.99875824 | D24: 99.992239 | E24: 16 | F24: 15.45915984 | G24: 0.002295983346 | H24: 312.61135 | I24: 3.198860182 | J24: 3.000747911 | K24: -0.101756 | M24: -272.141817 | O24: -2.447733976
A25: 6 | B25: 39.61258 | C25: 15.99868016 | D25: 99.991751 | E25: 16 | F25: 15.45915984 | G25: 0.002440351323 | H25: 312.61258 | I25: 3.198847596 | J25: 2.97423288 | K25: -0.101756 | M25: -272.014174 | O25: -2.575286193
A26: 6.3 | B26: 39.612641 | C26: 15.99860192 | D26: 99.991262 | E26: 16 | F26: 15.45915984 | G26: 0.002585015136 | H26: 312.612641 | I26: 3.198846972 | J26: 2.949190664 | K26: -0.101904 | M26: -271.950881 | O26: -2.703430375
A27: 6.6 | B27: 39.610421 | C27: 15.99851216 | D27: 99.990701 | E27: 16 | F27: 15.45915984 | G27: 0.002750979143 | H27: 312.610421 | I27: 3.198869688 | J27: 2.922130338 | K27: -0.101904 | M27: -271.9739 | O27: -2.832579517
A28: 6.9 | B28: 39.607028 | C28: 15.99841504 | D28: 99.990094 | E28: 16 | F28: 15.45915984 | G28: 0.002930551607 | H28: 312.607028 | I28: 3.198904409 | J28: 2.894629175 | K28: -0.102012 | M28: -272.096262 | O28: -2.962937234
A29: 7.2 | B29: 39.601599 | C29: 15.99831584 | D29: 99.989474 | E29: 16 | F29: 15.45915984 | G29: 0.003113969939 | H29: 312.601599 | I29: 3.198959964 | J29: 2.868224204 | K29: -0.102012 | M29: -272.261322 | O29: -3.09407942
A30: 7.5 | B30: 39.596174 | C30: 15.99821088 | D30: 99.988818 | E30: 16 | F30: 15.45915984 | G30: 0.003308038368 | H30: 312.596174 | I30: 3.199015481 | J30: 2.841925827 | K30: -0.102073 | M30: -272.419409 | O30: -3.225333806
A31: 7.8 | B31: 39.591115 | C31: 15.99810032 | D31: 99.988127 | E31: 16 | F31: 15.45915984 | G31: 0.003512461057 | H31: 312.591115 | I31: 3.199067254 | J31: 2.815840331 | K31: -0.102073 | M31: -272.532935 | O31: -3.356197019
A32: 8.1 | B32: 39.587351 | C32: 15.99798384 | D32: 99.987399 | E32: 16 | F32: 15.45915984 | G32: 0.003727829679 | H32: 312.587351 | I32: 3.199105776 | J32: 2.789948879 | K32: -0.10209 | M32: -272.581202 | O32: -3.486255606
A33: 8.4 | B33: 39.585128 | C33: 15.99788096 | D33: 99.986756 | E33: 16 | F33: 15.45915984 | G33: 0.003918052239 | H33: 312.585128 | I33: 3.199128527 | J33: 2.76829328 | K33: -0.10209 | M33: -272.555405 | O33: -3.615260286
A34: 8.7 | B34: 39.583397 | C34: 15.99777984 | D34: 99.986124 | E34: 16 | F34: 15.45915984 | G34: 0.004105020604 | H34: 312.583397 | I34: 3.199146243 | J34: 2.748007425 | K34: -0.102086 | M34: -272.449102 | O34: -3.743103669
A35: 9 | B35: 39.584077 | C35: 15.99768064 | D35: 99.985504 | E35: 16 | F35: 15.45915984 | G35: 0.004288438935 | H35: 312.584077 | I35: 3.199139283 | J35: 2.728983567 | K35: -0.102086 | M35: -272.227487 | O35: -3.868984038
A36: 9.3 | B36: 39.585743 | C36: 15.9975872 | D36: 99.98492 | E36: 16 | F36: 15.45915984 | G36: 0.004461207171 | H36: 312.585743 | I36: 3.199122233 | J36: 2.711792753 | K36: -0.102084 | M36: -271.949802 | O36: -3.993727315
A37: 9.6 | B37: 39.58679 | C37: 15.99750528 | D37: 99.984408 | E37: 16 | F37: 15.45915984 | G37: 0.004612675213 | H37: 312.58679 | I37: 3.199111517 | J37: 2.697259252 | K37: -0.102084 | M37: -271.627687 | O37: -4.117586384
A38: 9.9 | B38: 39.587221 | C38: 15.99742704 | D38: 99.983919 | E38: 16 | F38: 15.45915984 | G38: 0.004757339026 | H38: 312.587221 | I38: 3.199107106 | J38: 2.68381649 | K38: -0.102095 | M38: -271.275086 | O38: -4.240723439
A39: 10.2 | B39: 39.58457 | C39: 15.99734688 | D39: 99.983418 | E39: 16 | F39: 15.45915984 | G39: 0.004905552872 | H39: 312.58457 | I39: 3.199134237 | J39: 2.670460317 | K39: -0.102095 | M39: -271.000647 | O39: -4.365124208
A40: 10.5 | B40: 39.579698 | C40: 15.99728208 | D40: 99.983013 | E40: 16 | F40: 15.45915984 | G40: 0.005025366459 | H40: 312.579698 | I40: 3.199184101 | J40: 2.659954416 | K40: -0.10212 | M40: -270.798068 | O40: -4.490722114
A41: 10.8 | B41: 39.573226 | C41: 15.99721136 | D41: 99.982571 | E41: 16 | F41: 15.45915984 | G41: 0.00515612598 | H41: 312.573226 | I41: 3.199250341 | J41: 2.648770117 | K41: -0.10212 | M41: -270.662946 | O41: -4.617499125
A42: 11.1 | B42: 39.56385 | C42: 15.99713312 | D42: 99.982082 | E42: 16 | F42: 15.45915984 | G42: 0.005300789793 | H42: 312.56385 | I42: 3.19934631 | J42: 2.636721504 | K42: -0.102142 | M42: -270.625606 | O42: -4.746256004
A43: 11.4 | B43: 39.551639 | C43: 15.99706272 | D43: 99.981642 | E43: 16 | F43: 15.45915984 | G43: 0.005430957642 | H43: 312.551639 | I43: 3.199471304 | J43: 2.626157278 | K43: -0.102142 | M43: -270.629676 | O43: -4.876132926
A44: 11.7 | B44: 39.536275 | C44: 15.99699392 | D44: 99.981212 | E44: 16 | F44: 15.45915984 | G44: 0.00555816713 | H44: 312.536275 | I44: 3.199628587 | J44: 2.616074342 | K44: -0.102141 | M44: -270.754456 | O44: -5.008726825
A45: 12 | B45: 39.519185 | C45: 15.9969272 | D45: 99.980795 | E45: 16 | F45: 15.45915984 | G45: 0.00568153075 | H45: 312.519185 | I45: 3.199803558 | J45: 2.606513668 | K45: -0.102141 | M45: -270.926829 | O45: -5.142670651
A46: 12.3 | B46: 39.500612 | C46: 15.99686816 | D46: 99.980426 | E46: 16 | F46: 15.45915984 | G46: 0.005790694241 | H46: 312.500612 | I46: 3.199993733 | J46: 2.598224577 | K46: -0.102107 | M46: -271.075054 | O46: -5.276620671
A47: 12.6 | B47: 39.480683 | C47: 15.99680896 | D47: 99.980056 | E47: 16 | F47: 15.45915984 | G47: 0.005900153568 | H47: 312.480683 | I47: 3.200197818 | J47: 2.59006801 | K47: -0.102107 | M47: -271.191203 | O47: -5.410384463
A48: 12.9 | B48: 39.459398 | C48: 15.99674224 | D48: 99.979639 | E48: 16 | F48: 15.45915984 | G48: 0.006023517189 | H48: 312.459398 | I48: 3.200415819 | J48: 2.58105425 | K48: -0.10204 | M48: -271.2682 | O48: -5.54378774
A49: 13.2 | B49: 39.439411 | C49: 15.99668304 | D49: 99.979269 | E49: 16 | F49: 15.45915984 | G49: 0.006132976516 | H49: 312.439411 | I49: 3.200620552 | J49: 2.573209212 | K49: -0.10204 | M49: -271.293777 | O49: -5.676143978
A50: 13.5 | B50: 39.422317 | C50: 15.99662592 | D50: 99.978912 | E50: 16 | F50: 15.45915984 | G50: 0.006238589975 | H50: 312.422317 | I50: 3.200795672 | J50: 2.565771018 | K50: -0.101948 | M50: -271.305416 | O50: -5.807934331
A51: 13.8 | B51: 39.407703 | C51: 15.99657824 | D51: 99.978614 | E51: 16 | F51: 15.45915984 | G51: 0.006326749108 | H51: 312.407703 | I51: 3.200945401 | J51: 2.559657605 | K51: -0.101948 | M51: -271.270995 | O51: -5.938465406
A52: 14.1 | B52: 39.397585 | C52: 15.99654384 | D52: 99.978399 | E52: 16 | F52: 15.45915984 | G52: 0.006390353852 | H52: 312.397585 | I52: 3.201049073 | J52: 2.555299425 | K52: -0.101833 | M52: -271.203917 | O52: -6.067633056
A53: 14.4 | B53: 39.392469 | C53: 15.9965152 | D53: 99.97822 | E53: 16 | F53: 15.45915984 | G53: 0.0064433085 | H53: 312.392469 | I53: 3.201101496 | J53: 2.551703846 | K53: -0.101833 | M53: -271.114594 | O53: -6.195506305
A54: 14.7 | B54: 39.392347 | C54: 15.99649232 | D54: 99.978077 | E54: 16 | F54: 15.45915984 | G54: 0.006485613051 | H54: 312.392347 | I54: 3.201102747 | J54: 2.548852501 | K54: -0.101705 | M54: -270.989004 | O54: -6.321678202
A55: 15 | B55: 39.395308 | C55: 15.99648096 | D55: 99.978006 | E55: 16 | F55: 15.45915984 | G55: 0.006506617408 | H55: 312.395308 | I55: 3.201072405 | J55: 2.547443678 | K55: -0.101705 | M55: -270.876258 | O55: -6.447528146
A56: 15.3 | B56: 39.401352 | C56: 15.99646576 | D56: 99.977911 | E56: 16 | F56: 15.45915984 | G56: 0.00653472183 | H56: 312.401352 | I56: 3.201010475 | J56: 2.545565708 | K56: -0.101571 | M56: -270.783265 | O56: -6.573218764
A57: 15.6 | B57: 39.409002 | C57: 15.99644848 | D57: 99.977803 | E57: 16 | F57: 15.45915984 | G57: 0.00656667212 | H57: 312.409002 | I57: 3.200932091 | J57: 2.543440505 | K57: -0.101571 | M57: -270.734904 | O57: -6.699614902
A58: 15.9 | B58: 39.420109 | C58: 15.9964256 | D58: 99.97766 | E58: 16 | F58: 15.45915984 | G58: 0.006608976671 | H58: 312.420109 | I58: 3.200818293 | J58: 2.540642381 | K58: -0.101425 | M58: -270.717689 | O58: -6.826105357
A59: 16.2 | B59: 39.430593 | C59: 15.99639504 | D59: 99.977469 | E59: 16 | F59: 15.45915984 | G59: 0.00666548135 | H59: 312.430593 | I59: 3.200710886 | J59: 2.536932744 | K59: -0.101425 | M59: -270.697986 | O59: -6.95255783
A60: 16.5 | B60: 39.440649 | C60: 15.99635504 | D60: 99.977219 | E60: 16 | F60: 15.45915984 | G60: 0.006739440355 | H60: 312.440649 | I60: 3.20060787 | J60: 2.532124277 | K60: -0.101256 | M60: -270.695415 | O60: -7.079453876
A61: 16.8 | B61: 39.448669 | C61: 15.99629968 | D61: 99.976873 | E61: 16 | F61: 15.45915984 | G61: 0.006841799618 | H61: 312.448669 | I61: 3.200525716 | J61: 2.525555408 | K61: -0.101256 | M61: -270.700524 | O61: -7.20686674
A62: 17.1 | B62: 39.454041 | C62: 15.99623488 | D62: 99.976468 | E62: 16 | F62: 15.45915984 | G62: 0.006961613206 | H62: 312.454041 | I62: 3.200470689 | J62: 2.5179897 | K62: -0.101056 | M62: -270.640633 | O62: -7.332968965
A63: 17.4 | B63: 39.456203 | C63: 15.99616048 | D63: 99.976003 | E63: 16 | F63: 15.45915984 | G63: 0.007099176955 | H63: 312.456203 | I63: 3.200448544 | J63: 2.509461541 | K63: -0.101056 | M63: -270.519818 | O63: -7.45791266
A64: 17.7 | B64: 39.455401 | C64: 15.99606512 | D64: 99.975407 | E64: 16 | F64: 15.45915984 | G64: 0.007275495222 | H64: 312.455401 | I64: 3.200456759 | J64: 2.498768465 | K64: -0.100822 | M64: -270.336288 | O64: -7.58154972
A65: 18 | B65: 39.452742 | C65: 15.99595648 | D65: 99.974728 | E65: 16 | F65: 15.45915984 | G65: 0.007476367879 | H65: 312.452742 | I65: 3.200483995 | J65: 2.486896473 | K65: -0.100822 | M65: -270.095984 | O65: -7.703768534
A66: 18.3 | B66: 39.449658 | C66: 15.99584576 | D66: 99.974036 | E66: 16 | F66: 15.45915984 | G66: 0.007681086405 | H66: 312.449658 | I66: 3.200515585 | J66: 2.475119749 | K66: -0.100562 | M66: -269.788569 | O66: -7.823916088
A67: 18.6 | B67: 39.446758 | C67: 15.99573136 | D67: 99.973321 | E67: 16 | F67: 15.45915984 | G67: 0.007892609158 | H67: 312.446758 | I67: 3.200545291 | J67: 2.46327557 | K67: -0.100562 | M67: -269.416655 | O67: -7.941855235
A68: 18.9 | B68: 39.443606 | C68: 15.99561504 | D68: 99.972594 | E68: 16 | F68: 15.45915984 | G68: 0.008107681944 | H68: 312.443606 | I68: 3.200577579 | J68: 2.451552448 | K68: -0.100279 | M68: -268.969303 | O68: -8.057252356
A69: 19.2 | B69: 39.440458 | C69: 15.99549104 | D69: 99.971819 | E69: 16 | F69: 15.45915984 | G69: 0.008336954859 | H69: 312.440458 | I69: 3.200609826 | J69: 2.439391572 | K69: -0.100279 | M69: -268.542848 | O69: -8.172883207
A70: 19.5 | B70: 39.434723 | C70: 15.99535744 | D70: 99.970984 | E70: 16 | F70: 15.45915984 | G70: 0.008583977935 | H70: 312.434723 | I70: 3.200668576 | J70: 2.426656408 | K70: -0.099989 | M70: -268.120828 | O70: =(M70*A70)/(B70*C70) -> -8.288814477
A71: 19.8 | B71: 39.427441 | C71: 15.995224 | D71: 99.97015 | E71: =E70 -> 16 | F71: =F70 -> 15.45915984 | G71: =(E71-C71)/(E71-F71) -> 0.008830705175 | H71: =273+B71 -> 312.427441 | I71: =1000/H71 -> 3.200743177 | J71: =-LOG(-LOG(1-G71)/H71*H71) -> 2.414295647 | K71: -0.099989 | M71: -267.751877 | O71: -8.406375732
A72: 20.1 | B72: 39.419299 | C72: 15.99507904 | D72: 99.969244 | E72: 16 | F72: 15.45915984 | G72: 0.009098732609 | H72: 312.419299 | I72: 3.200826592 | J72: 2.40125149 | K72: -0.099699 | M72: -267.480181 | O72: -8.526923731
A73: 20.4 | B73: 39.409246 | C73: 15.9949264 | D73: 99.96829 | E73: 16 | F73: 15.45915984 | G73: 0.009380960171 | H73: 312.409246 | I73: 3.200929591 | J73: 2.38792334 | K73: -0.099699 | M73: -267.320384 | O73: -8.651309954
A74: 20.7 | B74: 39.398877 | C74: 15.99477776 | D74: 99.967361 | E74: 16 | F74: 15.45915984 | G74: 0.009655791833 | H74: 312.398877 | I74: 3.201035835 | J74: 2.375322581 | K74: -0.09941 | M74: -267.282131 | O74: -8.779670504
A75: 21 | B75: 39.387781 | C75: 15.99463264 | D75: 99.966454 | E75: 16 | F75: 15.45915984 | G75: 0.009924115103 | H75: 312.387781 | I75: 3.201149535 | J75: 2.363359937 | K75: -0.09941 | M75: -267.340431 | O75: -8.911445477
A76: 21.3 | B76: 39.376494 | C76: 15.99448016 | D76: 99.965501 | E76: 16 | F76: 15.45915984 | G76: 0.01020604683 | H76: 312.376494 | I76: 3.201265201 | J76: 2.351132434 | K76: -0.09911 | M76: -267.463361 | O76: -9.045586412
A77: 21.6 | B77: 39.36428 | C77: 15.99432368 | D77: 99.964523 | E77: 16 | F77: 15.45915984 | G77: 0.01049537446 | H77: 312.36428 | I77: 3.201390377 | J77: 2.338928679 | K77: -0.09911 | M77: -267.649298 | O77: -9.182303998
A78: 21.9 | B78: 39.351575 | C78: 15.99416736 | D78: 99.963546 | E78: 16 | F78: 15.45915984 | G78: 0.01078440625 | H78: 312.351575 | I78: 3.201520594 | J78: 2.327067054 | K78: -0.098796 | M78: -267.810722 | O78: -9.318549573
A79: 22.2 | B79: 39.339055 | C79: 15.99402032 | D79: 99.962627 | E79: 16 | F79: 15.45915984 | G79: 0.01105627955 | H79: 312.339055 | I79: 3.201648926 | J79: 2.316194703 | K79: -0.098796 | M79: -267.914641 | O79: -9.452960768
A80: 22.5 | B80: 39.325602 | C80: 15.9938736 | D80: 99.96171 | E80: 16 | F80: 15.45915984 | G80: 0.01132756118 | H80: 312.325602 | I80: 3.201786833 | J80: 2.305607835 | K80: -0.098471 | M80: -267.969021 | O80: -9.586014216
A81: 22.8 | B81: 39.311411 | C81: 15.99374016 | D81: 99.960876 | E81: 16 | F81: 15.45915984 | G81: 0.01157428842 | H81: 312.311411 | I81: 3.201932317 | J81: 2.296195858 | K81: -0.098471 | M81: -268.007635 | O81: -9.718815668
A82: 23.1 | B82: 39.297347 | C82: 15.99360656 | D82: 99.960041 | E82: 16 | F82: 15.45915984 | G82: 0.01182131149 | H82: 312.297347 | I82: 3.202076513 | J82: 2.286970328 | K82: -0.098138 | M82: -268.045352 | O82: -9.851687349
A83: 23.4 | B83: 39.285629 | C83: 15.99348256 | D83: 99.959266 | E83: 16 | F83: 15.45915984 | G83: 0.01205058441 | H83: 312.285629 | I83: 3.202196666 | J83: 2.278577594 | K83: -0.098138 | M83: -268.03102 | O83: -9.982151672
A84: 23.7 | B84: 39.274831 | C84: 15.99336816 | D84: 99.958551 | E84: 16 | F84: 15.45915984 | G84: 0.01226210716 | H84: 312.274831 | I84: 3.202307393 | J84: 2.270974194 | K84: -0.0978 | M84: -268.01005 | O84: -10.11218872
A85: 24 | B85: 39.264653 | C85: 15.9932632 | D85: 99.957895 | E85: 16 | F85: 15.45915984 | G85: 0.01245617559 | H85: 312.264653 | I85: 3.20241177 | J85: 2.264111999 | K85: -0.0978 | M85: -268.005744 | O85: -10.24274818
A86: 24.3 | B86: 39.253366 | C86: 15.99316976 | D86: 99.957311 | E86: 16 | F86: 15.45915984 | G86: 0.01262894383 | H86: 312.253366 | I86: 3.202527527 | J86: 2.258091776 | K86: -0.097468 | M86: -268.058803 | O86: -10.37587896
A87: 24.6 | B87: 39.241461 | C87: 15.99308384 | D87: 99.956774 | E87: 16 | F87: 15.45915984 | G87: 0.01278780777 | H87: 312.241461 | I87: 3.202649631 | J87: 2.252627842 | K87: -0.097468 | M87: -268.158669 | O87: -10.51113384
A88: 24.9 | B88: 39.227893 | C88: 15.99299424 | D88: 99.956214 | E88: 16 | F88: 15.45915984 | G88: 0.01295347594 | H88: 312.227893 | I88: 3.202788804 | J88: 2.247001254 | K88: -0.09715 | M88: -268.284692 | O88: -10.6480597
A89: 25.2 | B89: 39.212595 | C89: 15.99291792 | D89: 99.955737 | E89: 16 | F89: 15.45915984 | G89: 0.01309458972 | H89: 312.212595 | I89: 3.202945736 | J89: 2.242264702 | K89: -0.09715 | M89: -268.430373 | O89: -10.78645916
A90: 25.5 | B90: 39.195008 | C90: 15.99284352 | D90: 99.955272 | E90: 16 | F90: 15.45915984 | G90: 0.01323215347 | H90: 312.195008 | I90: 3.203126169 | J90: 2.237695865 | K90: -0.096849 | M90: -268.599792 | O90: -10.92670975
A91: 25.8 | B91: 39.177673 | C91: 15.99277488 | D91: 99.954843 | E91: 16 | F91: 15.45915984 | G91: 0.01335906712 | H91: 312.177673 | I91: 3.203304036 | J91: 2.233522394 | K91: -0.096849 | M91: -268.711018 | O91: -11.06477837
A92: 26.1 | B92: 39.161137 | C92: 15.99271968 | D92: 99.954498 | E92: 16 | F92: 15.45915984 | G92: 0.01346113055 | H92: 312.161137 | I92: 3.203473724 | J92: 2.230194577 | K92: -0.096564 | M92: -268.752919 | O92: -11.19994989
A93: 26.4 | B93: 39.147753 | C93: 15.99266432 | D93: 99.954152 | E93: 16 | F93: 15.45915984 | G93: 0.01356348981 | H93: 312.147753 | I93: 3.20361108 | J93: 2.226882187 | K93: -0.096564 | M93: -268.715476 | O93: -11.3310184
A94: 26.7 | B94: 39.139607 | C94: 15.99261472 | D94: 99.953842 | E94: 16 | F94: 15.45915984 | G94: 0.01365519898 | H94: 312.139607 | I94: 3.203694685 | J94: 2.223935457 | K94: -0.096303 | M94: -268.60468 | O94: -11.45747455
A95: 27 | B95: 39.137261 | C95: 15.99257088 | D95: 99.953568 | E95: 16 | F95: 15.45915984 | G95: 0.01373625805 | H95: 312.137261 | I95: 3.203718764 | J95: 2.221347243 | K95: -0.096303 | M95: -268.430662 | O95: -11.57942979
A96: 27.3 | B96: 39.14034 | C96: 15.99252704 | D96: 99.953294 | E96: 16 | F96: 15.45915984 | G96: 0.01381731712 | H96: 312.14034 | I96: 3.203687162 | J96: 2.218774153 | K96: -0.096072 | M96: -268.196169 | O96: -11.69697413
A97: 27.6 | B97: 39.1475 | C97: 15.99248496 | D97: 99.953031 | E97: 16 | F97: 15.45915984 | G97: 0.01389512199 | H97: 312.1475 | I97: 3.203613676 | J97: 2.216318421 | K97: -0.096072 | M97: -267.932251 | O97: -11.81174578
A98: 27.9 | B98: 39.15706 | C98: 15.99244496 | D98: 99.952781 | E98: 16 | F98: 15.45915984 | G98: 0.01396908099 | H98: 312.15706 | I98: 3.203515564 | J98: 2.213996701 | K98: -0.095868 | M98: -267.714763 | O98: -11.92755926
A99: 28.2 | B99: 39.168224 | C99: 15.99241056 | D99: 99.952566 | E99: 16 | F99: 15.45915984 | G99: 0.01403268574 | H99: 312.168224 | I99: 3.203400997 | J99: 2.212009762 | K99: -0.095868 | M99: -267.570672 | O99: -12.04591536
A100: 28.5 | B100: 39.17914 | C100: 15.99237824 | D100: 99.952364 | E100: 16 | F100: 15.45915984 | G100: 0.01409244461 | H100: 312.17914 | I100: 3.203288983 | J100: 2.210151094 | K100: -0.09569 | M100: -267.449629 | O100: -12.16519033
A101: 28.8 | B101: 39.186912 | C101: 15.99234576 | D101: 99.952161 | E101: 16 | F101: 15.45915984 | G101: 0.01415249933 | H101: 312.186912 | I101: 3.203209236 | J101: 2.208291092 | K101: -0.09569 | M101: -267.407843 | O101: -12.28891149
A102: 29.1 | B102: 39.191168 | C102: 15.99230384 | D102: 99.951899 | E102: 16 | F102: 15.45915984 | G102: 0.01423000836 | H102: 312.191168 | I102: 3.203165568 | J102: 2.205902047 | K102: -0.095533 | M102: -267.440776 | O102: -12.41713416
A103: 29.4 | B103: 39.1916 | C103: 15.99227136 | D103: 99.951696 | E103: 16 | F103: 15.45915984 | G103: 0.01429006308 | H103: 312.1916 | I103: 3.203161136 | J103: 2.204059859 | K103: -0.095533 | M103: -267.564829 | O103: -12.55085209
A104: 29.7 | B104: 39.187221 | C104: 15.99223712 | D104: 99.951482 | E104: 16 | F104: 15.45915984 | G104: 0.01435337198 | H104: 312.187221 | I104: 3.203206066 | J104: 2.202126151 | K104: -0.095394 | M104: -267.716455 | O104: -12.6875518
A105: 30 | B105: 39.177169 | C105: 15.99220656 | D105: 99.951291 | E105: 16 | F105: 15.45915984 | G105: 0.01440987666 | H105: 312.177169 | I105: 3.203309208 | J105: 2.200407409 | K105: -0.095394 | M105: -267.901987 | O105: -12.82790541
A106: 30.3 | B106: 39.163097 | C106: 15.99217024 | D106: 99.951064 | E106: 16 | F106: 15.45915984 | G106: 0.01447703144 | H106: 312.163097 | I106: 3.20345361 | J106: 2.198373395 | K106: -0.095227 | M106: -268.102483 | O106: -12.97056911
A107: 30.6 | B107: 39.14687 | C107: 15.99213216 | D107: 99.950826 | E107: 16 | F107: 15.45915984 | G107: 0.01454744041 | H107: 312.14687 | I107: 3.203620142 | J107: 2.196250849 | K107: -0.095153 | M107: -268.311654 | O107: -13.1146755
A108: 30.9 | B108: 39.130892 | C108: 15.9920864 | D108: 99.95054 | E108: 16 | F108: 15.45915984 | G108: 0.01463204951 | H108: 312.130892 | I108: 3.203784136 | J108: 2.193713675 | K108: -0.095153 | M108: -268.462604 | O108: -13.25614978
A109: 31.2 | B109: 39.114726 | C109: 15.99205008 | D109: 99.950313 | E109: 16 | F109: 15.45915984 | G109: 0.01469920429 | H109: 312.114726 | I109: 3.203950076 | J109: 2.191710248 | K109: -0.095084 | M109: -268.579652 | O109: -13.39625073
A110: 31.5 | B110: 39.098006 | C110: 15.99200624 | D110: 99.950039 | E110: 16 | F110: 15.45915984 | G110: 0.01478026336 | H110: 312.098006 | I110: 3.204121721 | J110: 2.18930408 | K110: -0.09502 | M110: -268.764551 | O110: -13.54019693
A111: 31.8 | B111: 39.08406 | C111: 15.9919624 | D111: 99.949765 | E111: 16 | F111: 15.45915984 | G111: 0.01486132243 | H111: 312.08406 | I111: 3.204264902 | J111: 2.186910974 | K111: -0.094917 | M111: -268.90115 | O111: -13.68101592
A112: 32.1 | B112: 39.071475 | C112: 15.99190528 | D112: 99.949408 | E112: 16 | F112: 15.45915984 | G112: 0.01496693589 | H112: 312.071475 | I112: 3.204394122 | J112: 2.18381231 | K112: -0.094876 | M112: -269.00671 | O112: -13.82000276
A113: 32.4 | B113: 39.060253 | C113: 15.99184608 | D113: 99.949038 | E113: 16 | F113: 15.45915984 | G113: 0.01507639521 | H113: 312.060253 | I113: 3.204509355 | J113: 2.180623624 | K113: -0.094876 | M113: -269.130796 | O113: -13.95965718
A114: 32.7 | B114: 39.048164 | C114: 15.99177744 | D114: 99.948609 | E114: 16 | F114: 15.45915984 | G114: 0.01520330887 | H114: 312.048164 | I114: 3.2046335 | J114: 2.176955108 | K114: -0.094806 | M114: -269.275449 | O114: -14.10091049
A115: 33 | B115: 39.036136 | C115: 15.99170864 | D115: 99.948179 | E115: 16 | F115: 15.45915984 | G115: 0.01533051836 | H115: 312.036136 | I115: 3.204757029 | J115: 2.173308407 | K115: -0.094806 | M115: -269.377184 | O115: -14.2401006
A116: 33.3 | B116: 39.024475 | C116: 15.99163056 | D116: 99.947691 | E116: 16 | F116: 15.45915984 | G116: 0.01547488633 | H116: 312.024475 | I116: 3.204876797 | J116: 2.169206022 | K116: -0.094772 | M116: -269.405352 | O116: -14.37542309
A117: 33.6 | B117: 39.015218 | C117: 15.99155808 | D117: 99.947238 | E117: 16 | F117: 15.45915984 | G117: 0.01560890005 | H117: 312.015218 | I117: 3.204971881 | J117: 2.165431707 | K117: -0.094703 | M117: -269.366345 | O117: -14.50633803
A118: 33.9 | B118: 39.009605 | C118: 15.99148176 | D118: 99.946761 | E118: 16 | F118: 15.45915984 | G118: 0.01575001383 | H118: 312.009605 | I118: 3.205029537 | J118: 2.161492018 | K118: -0.094703 | M118: -269.314957 | O118: -14.63524213
A119: 34.2 | B119: 39.007568 | C119: 15.99139216 | D119: 99.946201 | E119: 16 | F119: 15.45915984 | G119: 0.015915682 | H119: 312.007568 | I119: 3.205050462 | J119: 2.156911249 | K119: -0.094621 | M119: -269.180726 | O119: -14.75825188
A120: 34.5 | B120: 39.009108 | C120: 15.99130256 | D120: 99.945641 | E120: 16 | F120: 15.45915984 | G120: 0.01608135017 | H120: 312.009108 | I120: 3.205034643 | J120: 2.152377532 | K120: -0.094621 | M120: -268.935242 | O120: -14.87362926
A121: 34.8 | B121: 39.0133 | C121: 15.99120704 | D121: 99.945044 | E121: 16 | F121: 15.45915984 | G121: 0.01625796428 | H121: 312.0133 | I121: 3.204991582 | J121: 2.147595 | K121: -0.094566 | M121: -268.635022 | O121: -14.98469617
A122: 35.1 | B122: 39.017923 | C122: 15.9911136 | D122: 99.94446 | E122: 16 | F122: 15.45915984 | G122: 0.01643073251 | H122: 312.017923 | I122: 3.204944095 | J122: 2.142966205 | K122: -0.094415 | M122: -268.33884 | O122: -15.09551029
A123: 35.4 | B123: 39.023474 | C123: 15.99102784 | D123: 99.943924 | E123: 16 | F123: 15.45915984 | G123: 0.01658930062 | H123: 312.023474 | I123: 3.204887078 | J123: 2.13876014 | K123: -0.094415 | M123: -268.0076 | O123: -15.203657
A124: 35.7 | B124: 39.028346 | C124: 15.9909496 | D124: 99.943435 | E124: 16 | F124: 15.45915984 | G124: 0.01673396443 | H124: 312.028346 | I124: 3.204837037 | J124: 2.134957519 | K124: -0.094203 | M124: -267.660125 | O124: -15.31078618
A125: 36 | B125: 39.031922 | C125: 15.99087136 | D125: 99.942946 | E125: 16 | F125: 15.45915984 | G125: 0.01687862824 | H125: 312.031922 | I125: 3.204800309 | J125: 2.131187353 | K125: -0.094203 | M125: -267.343357 | O125: -15.41983871
A126: 36.3 | B126: 39.034024 | C126: 15.99079888 | D126: 99.942493 | E126: 16 | F126: 15.45915984 | G126: 0.01701264196 | H126: 312.034024 | I126: 3.20477872 | J126: 2.127723221 | K126: -0.094078 | M126: -267.101166 | O126: -15.53348574
A127: 36.6 | B127: 39.03094 | C127: 15.99073024 | D127: 99.942064 | E127: 16 | F127: 15.45915984 | G127: 0.01713955561 | H127: 312.03094 | I127: 3.204810395 | J127: 2.124467468 | K127: -0.0938 | M127: -266.946067 | O127: -15.65407119
A128: 36.9 | B128: 39.024158 | C128: 15.99066352 | D128: 99.941647 | E128: 16 | F128: 15.45915984 | G128: 0.01726291923 | H128: 312.024158 | I128: 3.204880053 | J128: 2.121325609 | K128: -0.0938 | M128: -266.867286 | O128: -15.78053341
A129: 37.2 | B129: 39.016509 | C129: 15.99060448 | D129: 99.941278 | E129: 16 | F129: 15.45915984 | G129: 0.01737208272 | H129: 312.016509 | I129: 3.20495862 | J129: 2.118563907 | K129: -0.093508 | M129: -266.851521 | O129: -15.91106803
A130: 37.5 | B130: 39.005838 | C130: 15.99053568 | D130: 99.940848 | E130: 16 | F130: 15.45915984 | G130: 0.01749929221 | H130: 312.005838 | I130: 3.205068233 | J130: 2.115367281 | K130: -0.093508 | M130: -266.90729 | O130: -16.04719308
A131: 37.8 | B131: 38.992079 | C131: 15.99046512 | D131: 99.940407 | E131: 16 | F131: 15.45915984 | G131: 0.0176297559 | H131: 311.992079 | I131: 3.205209578 | J131: 2.112112714 | K131: -0.093364 | M131: -266.94986 | O131: -16.18393066
A132: 38.1 | B132: 38.975608 | C132: 15.99038128 | D132: 99.939883 | E132: 16 | F132: 15.45915984 | G132: 0.01778477397 | H132: 311.975608 | I132: 3.2053788 | J132: 2.108276497 | K132: -0.093081 | M132: -266.933913 | O132: -16.31837881
A133: 38.4 | B133: 38.957593 | C133: 15.99028384 | D133: 99.939274 | E133: 16 | F133: 15.45915984 | G133: 0.01796493811 | H133: 311.957593 | I133: 3.205563905 | J133: 2.103859407 | K133: -0.093081 | M133: -266.893593 | O133: -16.45209027
A134: 38.7 | B134: 38.941118 | C134: 15.9901752 | D134: 99.938595 | E134: 16 | F134: 15.45915984 | G134: 0.01816581076 | H134: 311.941118 | I134: 3.205733205 | J134: 2.09898606 | K134: -0.092798 | M134: -266.827862 | O134: =(M134*A134)/(B134*C134) -> -16.58366451
A135: 39 | B135: 38.92551 | C135: 15.99006464 | D135: 99.937904 | E135: =E134 -> 16 | F135: =F134 -> 15.45915984 | G135: =(E135-C135)/(E135-F135) -> 0.01837023345 | H135: =273+B135 -> 311.92551 | I135: =1000/H135 -> 3.205893612 | J135: =-LOG(-LOG(1-G135)/H135*H135) -> 2.094081094 | K135: -0.092798 | M135: -266.734473 | O135: -16.71318514
A136: 39.3 | B136: 38.91015 | C136: 15.98994256 | D136: 99.937141 | E136: 16 | F136: 15.45915984 | G136: 0.01859595634 | H136: 311.91015 | I136: 3.206051486 | J136: 2.088727468 | K136: -0.092648 | M136: -266.632083 | O136: -16.84205756
A137: 39.6 | B137: 38.897691 | C137: 15.98981856 | D137: 99.936366 | E137: 16 | F137: 15.45915984 | G137: 0.01882522925 | H137: 311.897691 | I137: 3.206179555 | J137: 2.083355137 | K137: -0.092319 | M137: -266.494402 | O137: -16.96742424
A138: 39.9 | B138: 38.888188 | C138: 15.98969648 | D138: 99.935603 | E138: 16 | F138: 15.45915984 | G138: 0.01905095213 | H138: 311.888188 | I138: 3.206277244 | J138: 2.078128923 | K138: -0.092319 | M138: -266.363722 | O138: -17.09188818
A139: 40.2 | B139: 38.880665 | C139: 15.98957248 | D139: 99.934828 | E139: 16 | F139: 15.45915984 | G139: 0.01928022505 | H139: 311.880665 | I139: 3.206354584 | J139: 2.072882915 | K139: -0.091936 | M139: -266.254285 | O139: -17.21678764
A140: 40.5 | B140: 38.874736 | C140: 15.98945808 | D140: 99.934113 | E140: 16 | F140: 15.45915984 | G140: 0.0194917478 | H140: 311.874736 | I140: 3.20641554 | J140: 2.068097543 | K140: -0.091936 | M140: -266.16891 | O140: -17.34247798
A141: 40.8 | B141: 38.869245 | C141: 15.98935312 | D141: 99.933457 | E141: 16 | F141: 15.45915984 | G141: 0.01968581623 | H141: 311.869245 | I141: 3.206471994 | J141: 2.063752058 | K141: -0.091722 | M141: -266.158729 | O141: -17.47285521
A142: 41.1 | B142: 38.865608 | C142: 15.98925968 | D142: 99.932873 | E142: 16 | F142: 15.45915984 | G142: 0.01985858447 | H142: 311.865608 | I142: 3.206509388 | J142: 2.059919051 | K142: -0.091263 | M142: -266.206415 | O142: -17.60623591
A143: 41.4 | B143: 38.863204 | C143: 15.989172 | D143: 99.932325 | E143: 16 | F143: 15.45915984 | G143: 0.0200207026 | H143: 311.863204 | I143: 3.206534106 | J143: 2.056352226 | K143: -0.091263 | M143: -266.287931 | O143: -17.74137386
A144: 41.7 | B144: 38.861783 | C144: 15.98908992 | D144: 99.931812 | E144: 16 | F144: 15.45915984 | G144: 0.02017246648 | H144: 311.861783 | I144: 3.206548716 | J144: 2.053039021 | K144: -0.090775 | M144: -266.447897 | O144: -17.88141508
A145: 42 | B145: 38.862089 | C145: 15.98901552 | D145: 99.931347 | E145: 16 | F145: 15.45915984 | G145: 0.02031003023 | H145: 311.862089 | I145: 3.20654557 | J145: 2.050057069 | K145: -0.090775 | M145: -266.673748 | O145: -18.02526628
A146: 42.3 | B146: 38.863816 | C146: 15.98893744 | D146: 99.930859 | E146: 16 | F146: 15.45915984 | G146: 0.02045439821 | H146: 311.863816 | I146: 3.206527813 | J146: 2.04694904 | K146: -0.090524 | M146: -266.860794 | O146: -18.16603291
A147: 42.6 | B147: 38.867029 | C147: 15.9888496 | D147: 99.93031 | E147: 16 | F147: 15.45915984 | G147: 0.02061681218 | H147: 311.867029 | I147: 3.206494778 | J147: 2.04347835 | K147: -0.090013 | M147: -267.029904 | O147: -18.30505074
A148: 42.9 | B148: 38.8703 | C148: 15.98876192 | D148: 99.929762 | E148: 16 | F148: 15.45915984 | G148: 0.02077893032 | H148: 311.8703 | I148: 3.206461147 | J148: 2.040040855 | K148: -0.090013 | M148: -267.141588 | O148: -18.44021869
A149: 43.2 | B149: 38.874311 | C149: 15.98867408 | D149: 99.929213 | E149: 16 | F149: 15.45915984 | G149: 0.0209413443 | H149: 311.874311 | I149: 3.206419909 | J149: 2.036623592 | K149: -0.089496 | M149: -267.226467 | O149: -18.57325675
A150: 43.5 | B150: 38.879863 | C150: 15.98858448 | D150: 99.928653 | E150: 16 | F150: 15.45915984 | G150: 0.02110701247 | H150: 311.879863 | I150: 3.20636283 | J150: 2.033164766 | K150: -0.089496 | M150: -267.285929 | O150: -18.70383279
A151: 43.8 | B151: 38.886274 | C151: 15.98849472 | D151: 99.928092 | E151: 16 | F151: 15.45915984 | G151: 0.02127297647 | H151: 311.886274 | I151: 3.206296921 | J151: 2.029726585 | K151: -0.089236 | M151: -267.26075 | O151: -18.82805176
A152: 44.1 | B152: 38.89084 | C152: 15.98840144 | D152: 99.927509 | E152: 16 | F152: 15.45915984 | G152: 0.02144544887 | H152: 311.89084 | I152: 3.206249982 | J152: 2.026181573 | K152: -0.08871 | M152: -267.213385 | O152: -18.95153668
A153: 44.4 | B153: 38.895093 | C153: 15.98830032 | D153: 99.926877 | E153: 16 | F153: 15.45915984 | G153: 0.02163241724 | H153: 311.895093 | I153: 3.206206261 | J153: 2.02237032 | K153: -0.08871 | M153: -267.14694 | O153: -19.07374897
A154: 44.7 | B154: 38.900954 | C154: 15.98820112 | D154: 99.926257 | E154: 16 | F154: 15.45915984 | G154: 0.02181583557 | H154: 311.900954 | I154: 3.206146013 | J154: 2.018662955 | K154: -0.088162 | M154: -267.026147 | O154: -19.19117022
A155: 45 | B155: 38.907552 | C155: 15.9881 | D155: 99.925625 | E155: 16 | F155: 15.45915984 | G155: 0.02200280393 | H155: 311.907552 | I155: 3.206078191 | J155: 2.014915422 | K155: -0.088162 | M155: -266.857305 | O155: -19.30460177
A156: 45.3 | B156: 38.912366 | C156: 15.98801232 | D156: 99.925077 | E156: 16 | F156: 15.45915984 | G156: 0.02216492207 | H156: 311.912366 | I156: 3.206028709 | J156: 2.011691377 | K156: -0.087874 | M156: -266.687231 | O156: -19.4186177
A157: 45.6 | B157: 38.914651 | C157: 15.98793216 | D157: 99.924576 | E157: 16 | F157: 15.45915984 | G157: 0.02231313592 | H157: 311.914651 | I157: 3.206005222 | J157: 2.008764182 | K157: -0.087271 | M157: -266.521234 | O157: -19.53400171
A158: 45.9 | B158: 38.913169 | C158: 15.9878616 | D158: 99.924135 | E158: 16 | F158: 15.45915984 | G158: 0.0224435996 | H158: 311.913169 | I158: 3.206020455 | J158: 2.006203412 | K158: -0.087271 | M158: -266.439447 | O158: -19.65731644
A159: 46.2 | B159: 38.905455 | C159: 15.98779872 | D159: 99.923742 | E159: 16 | F159: 15.45915984 | G159: 0.02255986316 | H159: 311.905455 | I159: 3.206099746 | J159: 2.003933734 | K159: -0.086643 | M159: -266.424026 | O159: -19.78865111
A160: 46.5 | B160: 38.89194 | C160: 15.98774336 | D160: 99.923396 | E160: 16 | F160: 15.45915984 | G160: 0.02266222242 | H160: 311.89194 | I160: 3.206238674 | J160: 2.001945043 | K160: -0.086643 | M160: -266.493262 | O160: -19.92931678
A161: 46.8 | B161: 38.872565 | C161: 15.9876976 | D161: 99.92311 | E161: 16 | F161: 15.45915984 | G161: 0.02274683152 | H161: 311.872565 | I161: 3.20643786 | J161: 2.000307902 | K161: -0.086324 | M161: -266.633497 | O161: -20.07850801
A162: 47.1 | B162: 38.850237 | C162: 15.98765376 | D162: 99.922836 | E162: 16 | F162: 15.45915984 | G162: 0.02282789059 | H162: 311.850237 | I162: 3.206667436 | J162: 1.998745087 | K162: -0.086006 | M162: -266.809548 | O162: -20.23223531
A163: 47.4 | B163: 38.825306 | C163: 15.98760416 | D163: 99.922526 | E163: 16 | F163: 15.45915984 | G163: 0.02291959976 | H163: 311.825306 | I163: 3.206923815 | J163: 1.996983538 | K163: -0.085692 | M163: -266.976193 | O163: -20.38696622
A164: 47.7 | B164: 38.795688 | C164: 15.98756224 | D164: 99.922264 | E164: 16 | F164: 15.45915984 | G164: 0.02299710879 | H164: 311.795688 | I164: 3.207228446 | J164: 1.995500168 | K164: -0.085082 | M164: -267.141459 | O164: -20.54442385
A165: 48 | B165: 38.767001 | C165: 15.98751632 | D165: 99.921977 | E165: 16 | F165: 15.45915984 | G165: 0.02308201373 | H165: 311.767001 | I165: 3.207523557 | J165: 1.993880915 | K165: -0.085082 | M165: -267.271615 | O165: -20.69907171
A166: 48.3 | B166: 38.742017 | C166: 15.98747248 | D166: 99.921703 | E166: 16 | F166: 15.45915984 | G166: 0.0231630728 | H166: 311.742017 | I166: 3.207780618 | J166: 1.992340489 | K166: -0.084791 | M166: -267.324974 | O166: -20.84609088
A167: 48.6 | B167: 38.721163 | C167: 15.98742672 | D167: 99.921417 | E167: 16 | F167: 15.45915984 | G167: 0.0232476819 | H167: 311.721163 | I167: 3.207995217 | J167: 1.990738272 | K167: -0.08451 | M167: -267.326792 | O167: -20.98706928
A168: 48.9 | B168: 38.706045 | C168: 15.98736944 | D168: 99.921059 | E168: 16 | F168: 15.45915984 | G168: 0.0233535912 | H168: 311.706045 | I168: 3.208150808 | J168: 1.988740798 | K168: -0.084242 | M168: -267.200887 | O168: -21.11499323
A169: 49.2 | B169: 38.696298 | C169: 15.98730848 | D169: 99.920678 | E169: 16 | F169: 15.45915984 | G169: 0.02346630472 | H169: 311.696298 | I169: 3.208251129 | J169: 1.986624803 | K169: -0.083735 | M169: -266.999917 | O169: -21.23398251
A170: 49.5 | B170: 38.691614 | C170: 15.98723984 | D170: 99.920249 | E170: 16 | F170: 15.45915984 | G170: 0.02359321837 | H170: 311.691614 | I170: 3.208299342 | J170: 1.98425421 | K170: -0.083735 | M170: -266.769139 | O170: -21.34766846
A171: 49.8 | B171: 38.692233 | C171: 15.98717504 | D171: 99.919844 | E171: 16 | F171: 15.45915984 | G171: 0.02371303196 | H171: 311.692233 | I171: 3.20829297 | J171: 1.98202777 | K171: -0.083497 | M171: -266.528333 | O171: -21.45740515
A172: 50.1 | B172: 38.693837 | C172: 15.98711008 | D172: 99.919438 | E172: 16 | F172: 15.45915984 | G172: 0.02383314139 | H172: 311.693837 | I172: 3.20827646 | J172: 1.979806958 | K172: -0.08327 | M172: -266.301861 | O172: -21.56751775
A173: 50.4 | B173: 38.695687 | C173: 15.98705856 | D173: 99.919116 | E173: 16 | F173: 15.45915984 | G173: 0.02392840058 | H173: 311.695687 | I173: 3.208257418 | J173: 1.978053471 | K173: -0.083056 | M173: -266.109423 | O173: -21.6800192
A174: 50.7 | B174: 38.695255 | C174: 15.98701472 | D174: 99.918842 | E174: 16 | F174: 15.45915984 | G174: 0.02400945965 | H174: 311.695255 | I174: 3.208261865 | J174: 1.976566794 | K174: -0.082672 | M174: -265.990853 | O174: -21.79965265
A175: 51 | B175: 38.689952 | C175: 15.98698032 | D175: 99.918627 | E175: 16 | F175: 15.45915984 | G175: 0.0240730644 | H175: 311.689952 | I175: 3.208316449 | J175: 1.975403708 | K175: -0.082672 | M175: -265.993562 | O175: -21.93192086
A176: 51.3 | B176: 38.680518 | C176: 15.98694608 | D176: 99.918413 | E176: 16 | F176: 15.45915984 | G176: 0.0241363733 | H176: 311.680518 | I176: 3.208413559 | J176: 1.974249042 | K176: -0.082504 | M176: -266.011961 | O176: -22.06788633
A177: 51.6 | B177: 38.667871 | C177: 15.98691376 | D177: 99.918211 | E177: 16 | F177: 15.45915984 | G177: 0.02419613218 | H177: 311.667871 | I177: 3.208543751 | J177: 1.973161864 | K177: -0.082353 | M177: -266.039406 | O177: -22.20653394
A178: 51.9 | B178: 38.652814 | C178: 15.98687936 | D178: 99.917996 | E178: 16 | F178: 15.45915984 | G178: 0.02425973692 | H178: 311.652814 | I178: 3.208698767 | J178: 1.972007629 | K178: -0.082221 | M178: -266.027026 | O178: -22.34335072
A179: 52.2 | B179: 38.639739 | C179: 15.98685456 | D179: 99.917841 | E179: 16 | F179: 15.45915984 | G179: 0.02430559151 | H179: 311.639739 | I179: 3.20883339 | J179: 1.971177358 | K179: -0.082009 | M179: -265.942869 | O179: -22.47303067
A180: 52.5 | B180: 38.628632 | C180: 15.98682016 | D180: 99.917626 | E180: 16 | F180: 15.45915984 | G180: 0.02436919625 | H180: 311.628632 | I180: 3.208947758 | J180: 1.970028249 | K180: -0.082009 | M180: -265.743941 | O180: -22.59182197
A181: 52.8 | B181: 38.62407 | C181: 15.98678592 | D181: 99.917412 | E181: 16 | F181: 15.45915984 | G181: 0.02443250516 | H181: 311.62407 | I181: 3.208994735 | J181: 1.968887422 | K181: -0.081929 | M181: -265.425609 | O181: -22.69642996
A182: 53.1 | B182: 38.625977 | C182: 15.98675344 | D182: 99.917209 | E182: 16 | F182: 15.45915984 | G182: 0.02449255987 | H182: 311.625977 | I182: 3.208975098 | J182: 1.967807931 | K182: -0.081864 | M182: -265.0746 | O182: -22.79412268
A183: 53.4 | B183: 38.633752 | C183: 15.98671152 | D183: 99.916947 | E183: 16 | F183: 15.45915984 | G183: 0.02457006891 | H183: 311.633752 | I183: 3.208895037 | J183: 1.966418552 | K183: -0.081816 | M183: -264.752886 | O183: -22.89053452
A184: 53.7 | B184: 38.645046 | C184: 15.98666944 | D184: 99.916684 | E184: 16 | F184: 15.45915984 | G184: 0.02464787378 | H184: 311.645046 | I184: 3.208778746 | J184: 1.965028215 | K184: -0.081762 | M184: -264.470381 | O184: -22.98791078
A185: 54 | B185: 38.661766 | C185: 15.98661232 | D185: 99.916327 | E185: 16 | F185: 15.45915984 | G185: 0.02475348724 | H185: 311.661766 | I185: 3.208606602 | J185: 1.96314787 | K185: -0.081762 | M185: -264.335213 | O185: -23.09461089
A186: 54.3 | B186: 38.678734 | C186: 15.98655136 | D186: 99.915946 | E186: 16 | F186: 15.45915984 | G186: 0.02486620076 | H186: 311.678734 | I186: 3.208431923 | J186: 1.961149832 | K186: -0.081754 | M186: -264.341642 | O186: -23.21337969
A187: 54.6 | B187: 38.69441 | C187: 15.9864864 | D187: 99.91554 | E187: 16 | F187: 15.45915984 | G187: 0.02498631019 | H187: 311.69441 | I187: 3.208270562 | J187: 1.959030505 | K187: -0.081755 | M187: -264.464783 | O187: -23.34313809
A188: 54.9 | B188: 38.704344 | C188: 15.98641968 | D188: 99.915123 | E188: 16 | F188: 15.45915984 | G188: 0.02510967381 | H188: 311.704344 | I188: 3.208168315 | J188: 1.956864201 | K188: -0.081762 | M188: -264.772455 | O188: -23.49276994
A189: 55.2 | B189: 38.707986 | C189: 15.98635104 | D189: 99.914694 | E189: 16 | F189: 15.45915984 | G189: 0.02523658746 | H189: 311.707986 | I189: 3.208130831 | J189: 1.954646493 | K189: -0.081795 | M189: -265.182718 | O189: -23.65562216
A190: 55.5 | B190: 38.704837 | C190: 15.98629184 | D190: 99.914324 | E190: 16 | F190: 15.45915984 | G190: 0.02534604679 | H190: 311.704837 | I190: 3.208163241 | J190: 1.952742607 | K190: -0.081795 | M190: -265.742338 | O190: -23.83640495
A191: 55.8 | B191: 38.695026 | C191: 15.98622128 | D191: 99.913883 | E191: 16 | F191: 15.45915984 | G191: 0.02547651047 | H191: 311.695026 | I191: 3.208264222 | J191: 1.950483954 | K191: -0.081817 | M191: -266.314702 | O191: -24.0230629
A192: 56.1 | B192: 38.677996 | C192: 15.98614304 | D192: 99.913394 | E192: 16 | F192: 15.45915984 | G192: 0.02562117429 | H192: 311.677996 | I192: 3.20843952 | J192: 1.947992767 | K192: -0.081841 | M192: -266.854038 | O192: -24.21190612
A193: 56.4 | B193: 38.657204 | C193: 15.98605344 | D193: 99.912834 | E193: 16 | F193: 15.45915984 | G193: 0.02578684246 | H193: 311.657204 | I193: 3.208653569 | J193: 1.945156868 | K193: -0.081864 | M193: -267.349715 | O193: -24.3998485
A194: 56.7 | B194: 38.635238 | C194: 15.98596192 | D194: 99.912262 | E194: 16 | F194: 15.45915984 | G194: 0.02595606066 | H194: 311.635238 | I194: 3.208879735 | J194: 1.942278698 | K194: -0.081892 | M194: -267.775649 | O194: -24.58282409
A195: 57 | B195: 38.61315 | C195: 15.98587216 | D195: 99.911701 | E195: 16 | F195: 15.45915984 | G195: 0.02612202467 | H195: 311.61315 | I195: 3.209107189 | J195: 1.939473804 | K195: -0.081892 | M195: -268.052329 | O195: -24.7527168
A196: 57.3 | B196: 38.591865 | C196: 15.9857864 | D196: 99.911165 | E196: 16 | F196: 15.45915984 | G196: 0.02628059277 | H196: 311.591865 | I196: 3.209326405 | J196: 1.93681028 | K196: -0.081892 | M196: -268.179826 | O196: -24.90869381
A197: 57.6 | B197: 38.574847 | C197: 15.9856968 | D197: 99.910605 | E197: 16 | F197: 15.45915984 | G197: 0.02644626094 | H197: 311.574847 | I197: 3.209501696 | J197: 1.934044374 | K197: -0.081884 | M197: -268.13247 | O197: -25.04586923
A198: 57.9 | B198: 38.564481 | C198: 15.98560896 | D198: 99.910056 | E198: 16 | F198: 15.45915984 | G198: 0.02660867492 | H198: 311.564481 | I198: 3.209608479 | J198: 1.931349338 | K198: -0.081867 | M198: -267.985881 | O198: =(M198*A198)/(B198*C198) -> -25.16945439
A199: 58.2 | B199: 38.556404 | C199: 15.98551936 | D199: 99.909496 | E199: =E198 -> 16 | F199: =F198 -> 15.45915984 | G199: =(E199-C199)/(E199-F199) -> 0.02677434309 | H199: =273+B199 -> 311.556404 | I199: =1000/H199 -> 3.209691687 | J199: =-LOG(-LOG(1-G199)/H199*H199) -> 1.928616967 | K199: -0.081803 | M199: -267.743368 | O199: -25.2824079
A200: 58.5 | B200: 38.55023 | C200: 15.9854336 | D200: 99.90896 | E200: 16 | F200: 15.45915984 | G200: 0.0269329112 | H200: 311.55023 | I200: 3.209755294 | J200: 1.92601727 | K200: -0.081803 | M200: -267.393344 | O200: -25.38370806
A201: 58.8 | B201: 38.546157 | C201: 15.98535536 | D201: 99.908471 | E201: 16 | F201: 15.45915984 | G201: 0.02707757501 | H201: 311.546157 | I201: 3.209797256 | J201: 1.923658664 | K201: -0.081756 | M201: -266.970297 | O201: -25.47633139
A202: 59.1 | B202: 38.5432 | C202: 15.98527728 | D202: 99.907983 | E202: 16 | F202: 15.45915984 | G202: 0.02722194299 | H202: 311.5432 | I202: 3.209827722 | J202: 1.921317235 | K202: -0.081701 | M202: -266.49588 | O202: -25.56289509
A203: 59.4 | B203: 38.53931 | C203: 15.98519888 | D203: 99.907493 | E203: 16 | F203: 15.45915984 | G203: 0.02736690264 | H203: 311.53931 | I203: 3.209867801 | J203: 1.918978497 | K203: -0.081641 | M203: -266.020985 | O203: -25.64958622
... 4297 more rows

Sheet 20%
A4: Time(s) | B4: Sample Temperature(°C) | C4: TGA mg | D4: TG(%) | E4: Wi | F4: Wf | G4: α | H4: T | I4: 103/T | J4: LOG | L4: dTG(%/min) | N4: HeatFlow(mW) | P4: CP
A5: 0 | B5: 40.182945 | C5: 11 | D5: 100 | E5: =C5 -> 11 | F5: 10.81730265 | G5: =(E5-C5)/(E5-F5) -> 0 | H5: =273+B5 -> 313.182945 | I5: =1000/H5 -> 3.193021893 | J5: =-LOG(-LOG(1-G5)/H5*H5) ->  | L5: -0.142211 | N5: -368.858973 | P5: =(N5*A5)/(B5*C5) -> 0
A6: 0.3 | B6: 40.182945 | C6: 10.99984358 | D6: 99.998578 | E6: =E5 -> 11 | F6: =F5 -> 10.81730265 | G6: =(E6-C6)/(E6-F6) -> 0.0008561700539 | H6: =273+B6 -> 313.182945 | I6: =1000/H6 -> 3.193021893 | J6: =-LOG(-LOG(1-G6)/H6*H6) -> 3.429469674 | L6: -0.142211 | N6: -368.935822 | P6: =(N6*A6)/(B6*C6) -> -0.2504054677
A7: 0.6 | B7: 40.178688 | C7: 10.9997063 | D7: 99.99733 | E7: =E6 -> 11 | F7: =F6 -> 10.81730265 | G7: =(E7-C7)/(E7-F7) -> 0.001607576684 | H7: =273+B7 -> 313.178688 | I7: =1000/H7 -> 3.193065296 | J7: =-LOG(-LOG(1-G7)/H7*H7) -> 3.155694675 | L7: -0.142211 | N7: -368.887475 | P7: -0.5008046119
A8: 0.9 | B8: 40.178505 | C8: 10.99958035 | D8: 99.996185 | E8: 11 | F8: 10.81730265 | G8: 0.002296968183 | H8: 313.178505 | I8: 3.193067161 | J8: 3.000561451 | L8: -0.142378 | N8: -368.751618 | P8: -0.7509422757
A9: 1.2 | B9: 40.180908 | C9: 10.99946595 | D9: 99.995145 | E9: 11 | F9: 10.81730265 | G9: 0.002923140374 | H9: 313.180908 | I9: 3.193042661 | J9: 2.895730491 | L9: -0.142378 | N9: -368.480755 | P9: -1.000471474
A10: 1.5 | B10: 40.185906 | C10: 10.99935716 | D10: 99.994156 | E10: 11 | F10: 10.81730265 | G10: 0.003518606044 | H10: 313.185906 | I10: 3.192991705 | J10: 2.815079866 | L10: -0.142447 | N10: -368.136756 | P10: -1.249278805
A11: 1.8 | B11: 40.191396 | C11: 10.99924661 | D11: 99.993151 | E11: 11 | F11: 10.81730265 | G11: 0.004123705133 | H11: 313.191396 | I11: 3.192935734 | J11: 2.746031092 | L11: -0.142447 | N11: -367.788106 | P11: -1.497525254
A12: 2.1 | B12: 40.194854 | C12: 10.99913793 | D12: 99.992163 | E12: 11 | F12: 10.81730265 | G12: 0.004718568715 | H12: 313.194854 | I12: 3.192900481 | J12: 2.68737876 | L12: -0.142446 | N12: -367.527873 | P12: -1.745743655
A13: 2.4 | B13: 40.197322 | C13: 10.99903684 | D13: 99.991244 | E13: 11 | F13: 10.81730265 | G13: 0.00527188818 | H13: 313.197322 | I13: 3.192875321 | J13: 2.6391022 | L13: -0.142446 | N13: -367.332279 | P13: -1.993969714
A14: 2.7 | B14: 40.198866 | C14: 10.99893762 | D14: 99.990342 | E14: 11 | F14: 10.81730265 | G14: 0.005814972138 | H14: 313.198866 | I14: 3.192859581 | J14: 2.596402275 | L14: -0.142429 | N14: -367.228059 | P14: -2.242513574
A15: 3 | B15: 40.198312 | C15: 10.99883455 | D15: 99.989405 | E15: 11 | F15: 10.81730265 | G15: 0.006379129199 | H15: 313.198312 | I15: 3.192865228 | J15: 2.556065384 | L15: -0.142429 | N15: -367.178351 | P15: -2.491402156
A16: 3.3 | B16: 40.195962 | C16: 10.99872785 | D16: 99.988435 | E16: 11 | F16: 10.81730265 | G16: 0.006963155185 | H16: 313.195962 | I16: 3.192889185 | J16: 2.517893179 | L16: -0.142471 | N16: -367.159639 | P16: -2.740589509
A17: 3.6 | B17: 40.192076 | C17: 10.99861334 | D17: 99.987394 | E17: 11 | F17: 10.81730265 | G17: 0.007589929465 | H17: 313.192076 | I17: 3.192928802 | J17: 2.48032458 | L17: -0.142471 | N17: -367.148838 | P17: -2.989966244
A18: 3.9 | B18: 40.189173 | C18: 10.99849135 | D18: 99.986285 | E18: 11 | F18: 10.81730265 | G18: 0.008257645773 | H18: 313.189173 | I18: 3.192958398 | J18: 2.443560114 | L18: -0.142616 | N18: -367.10112 | P18: -3.238978979
A19: 4.2 | B19: 40.185967 | C19: 10.99836727 | D19: 99.985157 | E19: 11 | F19: 10.81730265 | G19: 0.008936801765 | H19: 313.185967 | I19: 3.192991083 | J19: 2.409085697 | L19: -0.142616 | N19: -366.994307 | P19: -3.487433832
A20: 4.5 | B20: 40.18202 | C20: 10.99824143 | D20: 99.984013 | E20: 11 | F20: 10.81730265 | G20: 0.009625591176 | H20: 313.18202 | I20: 3.193031324 | J20: 2.376689674 | L20: -0.142873 | N20: -366.839541 | P20: -3.735370122
A21: 4.8 | B21: 40.176778 | C21: 10.99810602 | D21: 99.982782 | E21: 11 | F21: 10.81730265 | G21: 0.0103667623 | H21: 313.176778 | I21: 3.19308477 | J21: 2.34431165 | L21: -0.142873 | N21: -366.669677 | P21: -3.983118491
A22: 5.1 | B22: 40.169129 | C22: 10.99798007 | D22: 99.981637 | E22: 11 | F22: 10.81730265 | G22: 0.0110561538 | H22: 313.169129 | I22: 3.193162759 | J22: 2.31619967 | L22: -0.143214 | N22: -366.536596 | P22: -4.231381424
A23: 5.4 | B23: 40.160372 | C23: 10.99786193 | D23: 99.980563 | E23: 11 | F23: 10.81730265 | G23: 0.011702797 | H23: 313.160372 | I23: 3.19325205 | J23: 2.291372308 | L23: -0.143214 | N23: -366.434835 | P23: -4.480067142
A24: 5.7 | B24: 40.149574 | C24: 10.99774555 | D24: 99.979505 | E24: 11 | F24: 10.81730265 | G24: 0.01233980679 | H24: 313.149574 | I24: 3.19336216 | J24: 2.268213894 | L24: -0.143606 | N24: -366.435154 | P24: -4.730285762
A25: 6 | B25: 40.136564 | C25: 10.99763874 | D25: 99.978534 | E25: 11 | F25: 10.81730265 | G25: 0.01292443486 | H25: 313.136564 | I25: 3.193494836 | J25: 2.247982389 | L25: -0.143606 | N25: -366.511856 | P25: -4.981953136
A26: 6.3 | B26: 40.122745 | C26: 10.99753765 | D26: 99.977615 | E26: 11 | F26: 10.81730265 | G26: 0.01347775433 | H26: 313.122745 | I26: 3.193635774 | J26: 2.229654926 | L26: -0.144016 | N26: -366.665308 | P26: -5.235091485
A27: 6.6 | B27: 40.108306 | C27: 10.99745559 | D27: 99.976869 | E27: 11 | F27: 10.81730265 | G27: 0.01392691246 | H27: 313.108306 | I27: 3.193783048 | J27: 2.215318955 | L27: -0.144016 | N27: -366.879963 | P27: -5.489608745
A28: 6.9 | B28: 40.094299 | C28: 10.99738123 | D28: 99.976193 | E28: 11 | F28: 10.81730265 | G28: 0.01433392438 | H28: 313.094299 | I28: 3.19392593 | J28: 2.202719256 | L28: -0.144407 | N28: -367.10444 | P28: -5.744692975
A29: 7.2 | B29: 40.07999 | C29: 10.99731061 | D29: 99.975551 | E29: 11 | F29: 10.81730265 | G29: 0.01472046529 | H29: 313.07999 | I29: 3.194071905 | J29: 2.191077862 | L29: -0.144407 | N29: -367.394074 | P29: -6.001371995
A30: 7.5 | B30: 40.066293 | C30: 10.99724769 | D30: 99.974979 | E30: 11 | F30: 10.81730265 | G30: 0.01506486 | H30: 313.066293 | I30: 3.194211649 | J30: 2.180958574 | L30: -0.144777 | N30: -367.678035 | P30: -6.25843549
A31: 7.8 | B31: 40.053952 | C31: 10.99718466 | D31: 99.974406 | E31: 11 | F31: 10.81730265 | G31: 0.01540985679 | H31: 313.053952 | I31: 3.194337569 | J31: 2.171049192 | L31: -0.144777 | N31: -367.873143 | P31: -6.514270598
A32: 8.1 | B32: 40.041492 | C32: 10.997118 | D32: 99.9738 | E32: 11 | F32: 10.81730265 | G32: 0.01577472251 | H32: 313.041492 | I32: 3.194464713 | J32: 2.160805793 | L32: -0.145132 | N32: -367.993595 | P32: -6.769181238
A33: 8.4 | B33: 40.029212 | C33: 10.99704925 | D33: 99.973175 | E33: 11 | F33: 10.81730265 | G33: 0.01615102792 | H33: 313.029212 | I33: 3.194590031 | J33: 2.150484537 | L33: -0.145132 | N33: -368.050231 | P33: -7.023169821
A34: 8.7 | B34: 40.016997 | C34: 10.99697302 | D34: 99.972482 | E34: 11 | F34: 10.81730265 | G34: 0.01656827535 | H34: 313.016997 | I34: 3.194714695 | J34: 2.139315543 | L34: -0.145463 | N34: -368.044014 | P34: -7.276145198
A35: 9 | B35: 40.004534 | C35: 10.99689481 | D35: 99.971771 | E35: 11 | F35: 10.81730265 | G35: 0.01699636037 | H35: 313.004534 | I35: 3.1948419 | J35: 2.128142638 | L35: -0.145463 | N35: -367.984942 | P35: -7.528236784
A36: 9.3 | B36: 39.994168 | C36: 10.9968166 | D36: 99.97106 | E36: 11 | F36: 10.81730265 | G36: 0.0174244454 | H36: 312.994168 | I36: 3.194947709 | J36: 2.117245294 | L36: -0.145769 | N36: -367.850154 | P36: -7.77839945
A37: 9.6 | B37: 39.984547 | C37: 10.99673839 | D37: 99.970349 | E37: 11 | F37: 10.81730265 | G37: 0.01785253043 | H37: 312.984547 | I37: 3.19504592 | J37: 2.10661013 | L37: -0.145769 | N37: -367.728899 | P37: -8.028657307
A38: 9.9 | B38: 39.976528 | C38: 10.99666018 | D38: 99.969638 | E38: 11 | F38: 10.81730265 | G38: 0.01828061546 | H38: 312.976528 | I38: 3.195127783 | J38: 2.096224718 | L38: -0.146035 | N38: -367.654346 | P38: -8.279593626
A39: 10.2 | B39: 39.970915 | C39: 10.99659352 | D39: 99.969032 | E39: 11 | F39: 10.81730265 | G39: 0.01864548117 | H39: 312.970915 | I39: 3.195185086 | J39: 2.087561467 | L39: -0.146035 | N39: -367.604902 | P39: -8.530592641
A40: 10.5 | B40: 39.965852 | C40: 10.99652675 | D40: 99.968425 | E40: 11 | F40: 10.81730265 | G40: 0.01901094898 | H40: 312.965852 | I40: 3.195236776 | J40: 2.079050639 | L40: -0.146217 | N40: -367.59162 | P40: -8.782340891
A41: 10.8 | B41: 39.962272 | C41: 10.996458 | D41: 99.9678 | E41: 11 | F41: 10.81730265 | G41: 0.01938725439 | H41: 312.962272 | I41: 3.195273327 | J41: 2.070455082 | L41: -0.146217 | N41: -367.612486 | P41: -9.034643452
A42: 11.1 | B42: 39.961531 | C42: 10.99638375 | D42: 99.967125 | E42: 11 | F42: 10.81730265 | G42: 0.01979366422 | H42: 312.961531 | I42: 3.195280892 | J42: 2.061355475 | L42: -0.146254 | N42: -367.661169 | P42: -9.287070377
A43: 11.4 | B43: 39.959315 | C43: 10.99631687 | D43: 99.966517 | E43: 11 | F43: 10.81730265 | G43: 0.02015973412 | H43: 312.959315 | I43: 3.195303517 | J43: 2.053316035 | L43: -0.146254 | N43: -367.744978 | P43: -9.540833595
A44: 11.7 | B44: 39.956782 | C44: 10.99624625 | D44: 99.965875 | E44: 11 | F44: 10.81730265 | G44: 0.02054627503 | H44: 312.956782 | I44: 3.195329379 | J44: 2.044982352 | L44: -0.146119 | N44: -367.769508 | P44: -9.793244999
A45: 12 | B45: 39.95363 | C45: 10.99617002 | D45: 99.965182 | E45: 11 | F45: 10.81730265 | G45: 0.02096352246 | H45: 312.95363 | I45: 3.195361562 | J45: 2.03615899 | L45: -0.146119 | N45: -367.758494 | P45: -10.04491506
A46: 12.3 | B46: 39.949312 | C46: 10.99608609 | D46: 99.964419 | E46: 11 | F46: 10.81730265 | G46: 0.0214229161 | H46: 312.949312 | I46: 3.195405651 | J46: 2.026643109 | L46: -0.145789 | N46: -367.724203 | P46: -10.29626925
A47: 12.6 | B47: 39.943272 | C47: 10.99600216 | D47: 99.963656 | E47: 11 | F47: 10.81730265 | G47: 0.02188230973 | H47: 312.943272 | I47: 3.195467324 | J47: 2.017326943 | L47: -0.145789 | N47: -367.658073 | P47: -10.54717611
A48: 12.9 | B48: 39.935007 | C48: 10.99591251 | D48: 99.962841 | E48: 11 | F48: 10.81730265 | G48: 0.02237301198 | H48: 312.935007 | I48: 3.19555172 | J48: 2.007587089 | L48: -0.145231 | N48: -367.537301 | P48: -10.79707434
A49: 13.2 | B49: 39.923843 | C49: 10.99582286 | D49: 99.962026 | E49: 11 | F49: 10.81730265 | G49: 0.02286371422 | H49: 312.923843 | I49: 3.195665726 | J49: 1.998056156 | L49: -0.145231 | N49: -367.403003 | P49: -11.04731046
A50: 13.5 | B50: 39.915269 | C50: 10.99573332 | D50: 99.961212 | E50: 11 | F50: 10.81730265 | G50: 0.02335381438 | H50: 312.915269 | I50: 3.195753289 | J50: 1.988736599 | L50: -0.144451 | N50: -367.215819 | P50: -11.2951471
A51: 13.8 | B51: 39.906073 | C51: 10.99565885 | D51: 99.960535 | E51: 11 | F51: 10.81730265 | G51: 0.0237614284 | H51: 312.906073 | I51: 3.195847209 | J51: 1.981131591 | L51: -0.144451 | N51: -366.965296 | P51: -11.54101038
A52: 14.1 | B52: 39.897376 | C52: 10.99559593 | D52: 99.959963 | E52: 11 | F52: 10.81730265 | G52: 0.0241058231 | H52: 312.897376 | I52: 3.195936038 | J52: 1.974805861 | L52: -0.143453 | N52: -366.702871 | P52: -11.78610531
A53: 14.4 | B53: 39.891271 | C53: 10.9955406 | D53: 99.95946 | E53: 11 | F53: 10.81730265 | G53: 0.02440867369 | H53: 312.891271 | I53: 3.195998395 | J53: 1.969316523 | L53: -0.143453 | N53: -366.408312 | P53: -12.02910592
A54: 14.7 | B54: 39.887561 | C54: 10.99547394 | D54: 99.958854 | E54: 11 | F54: 10.81730265 | G54: 0.02477353941 | H54: 312.887561 | I54: 3.196036291 | J54: 1.962791755 | L54: -0.14226 | N54: -366.139078 | P54: -12.27190496
A55: 15 | B55: 39.886078 | C55: 10.99540706 | D55: 99.958246 | E55: 11 | F55: 10.81730265 | G55: 0.0251396093 | H55: 312.886078 | I55: 3.19605144 | J55: 1.956340108 | L55: -0.14226 | N55: -365.903747 | P55: -12.51484484
A56: 15.3 | B56: 39.884718 | C56: 10.99534425 | D56: 99.957675 | E56: 11 | F56: 10.81730265 | G56: 0.02548340192 | H56: 312.884718 | I56: 3.196065332 | J56: 1.950364963 | L56: -0.140888 | N56: -365.694974 | P56: -12.75836626
A57: 15.6 | B57: 39.881639 | C57: 10.99528309 | D57: 99.957119 | E57: 11 | F57: 10.81730265 | G57: 0.02581816321 | H57: 312.881639 | I57: 3.196096783 | J57: 1.944622742 | L57: -0.140888 | N57: -365.592901 | P57: -13.00597572
A58: 15.9 | B58: 39.877879 | C58: 10.99523535 | D58: 99.956685 | E58: 11 | F58: 10.81730265 | G58: 0.02607946968 | H58: 312.877879 | I58: 3.196135192 | J58: 1.94019133 | L58: -0.139368 | N58: -365.629174 | P58: -13.25871345
A59: 16.2 | B59: 39.872576 | C59: 10.99518013 | D59: 99.956183 | E59: 11 | F59: 10.81730265 | G59: 0.02638171818 | H59: 312.872576 | I59: 3.196189365 | J59: 1.935119907 | L59: -0.139368 | N59: -365.694246 | P59: -13.51314691
A60: 16.5 | B60: 39.866042 | C60: 10.99512667 | D60: 99.955697 | E60: 11 | F60: 10.81730265 | G60: 0.02667433326 | H60: 312.866042 | I60: 3.196256115 | J60: 1.930264431 | L60: -0.137751 | N60: -365.812807 | P60: -13.77017606
A61: 16.8 | B61: 39.859008 | C61: 10.99507145 | D61: 99.955195 | E61: 11 | F61: 10.81730265 | G61: 0.02697658176 | H61: 312.859008 | I61: 3.196327977 | J61: 1.925303949 | L61: -0.137751 | N61: -365.970965 | P61: -14.0291504
A62: 17.1 | B62: 39.851665 | C62: 10.99500457 | D62: 99.954587 | E62: 11 | F62: 10.81730265 | G62: 0.02734265166 | H62: 312.851665 | I62: 3.196402998 | J62: 1.919368903 | L62: -0.136083 | N62: -366.146052 | P62: -14.28922191
A63: 17.4 | B63: 39.844761 | C63: 10.99493791 | D63: 99.953981 | E63: 11 | F63: 10.81730265 | G63: 0.02770751738 | H63: 312.844761 | I63: 3.196473538 | J63: 1.913530825 | L63: -0.136083 | N63: -366.337786 | P63: -14.55013281
A64: 17.7 | B64: 39.837975 | C64: 10.99487488 | D64: 99.953408 | E64: 11 | F64: 10.81730265 | G64: 0.02805251417 | H64: 312.837975 | I64: 3.196542875 | J64: 1.908079949 | L64: -0.134403 | N64: -366.47985 | P64: -14.80934399
A65: 18 | B65: 39.831124 | C65: 10.9948025 | D65: 99.95275 | E65: 11 | F65: 10.81730265 | G65: 0.0284486885 | H65: 312.831124 | I65: 3.196612879 | J65: 1.901901383 | L65: -0.134403 | N65: -366.580913 | P65: -15.06719327
A66: 18.3 | B66: 39.824518 | C66: 10.99472616 | D66: 99.952056 | E66: 11 | F66: 10.81730265 | G66: 0.02886653802 | H66: 312.824518 | I66: 3.196680383 | J66: 1.895475972 | L66: -0.132742 | N66: -366.714377 | P66: -15.32653853
A67: 18.6 | B67: 39.818661 | C67: 10.99464421 | D67: 99.951311 | E67: 11 | F67: 10.81730265 | G67: 0.02931509406 | H67: 312.818661 | I67: 3.196740235 | J67: 1.888679554 | L67: -0.132742 | N67: -366.778084 | P67: -15.5829074
A68: 18.9 | B68: 39.812311 | C68: 10.99455445 | D68: 99.950495 | E68: 11 | F68: 10.81730265 | G68: 0.0298063984 | H68: 312.812311 | I68: 3.196805128 | J68: 1.881351959 | L68: -0.13115 | N68: -366.749334 | P68: -15.83565807
A69: 19.2 | B69: 39.804287 | C69: 10.99447635 | D69: 99.949785 | E69: 11 | F69: 10.81730265 | G69: 0.03023388133 | H69: 312.804287 | I69: 3.196887132 | J69: 1.875072343 | L69: -0.13115 | N69: -366.709018 | P69: -16.08860616
A70: 19.5 | B70: 39.794353 | C70: 10.99440188 | D70: 99.949108 | E70: 11 | F70: 10.81730265 | G70: 0.03064149535 | H70: 312.794353 | I70: 3.196988662 | J70: 1.869165471 | L70: -0.129654 | N70: -366.666349 | P70: =(N70*A70)/(B70*C70) -> -16.34227859
A71: 19.8 | B71: 39.78448 | C71: 10.99433522 | D71: 99.948502 | E71: =E70 -> 11 | F71: =F70 -> 10.81730265 | G71: =(E71-C71)/(E71-F71) -> 0.03100636107 | H71: =273+B71 -> 312.78448 | I71: =1000/H71 -> 3.197089574 | J71: =-LOG(-LOG(1-G71)/H71*H71) -> 1.863943304 | L71: -0.129654 | N71: -366.567441 | P71: -16.59343954
A72: 20.1 | B72: 39.77609 | C72: 10.99426845 | D72: 99.947895 | E72: 11 | F72: 10.81730265 | G72: 0.03137182887 | H72: 312.77609 | I72: 3.197175334 | J72: 1.858772784 | L72: -0.128291 | N72: -366.384584 | P72: -16.84010607
A73: 20.4 | B73: 39.768135 | C73: 10.9942074 | D73: 99.94734 | E73: 11 | F73: 10.81730265 | G73: 0.03170598807 | H73: 312.768135 | I73: 3.197256651 | J73: 1.854096805 | L73: -0.128291 | N73: -366.148714 | P73: -17.0839594
A74: 20.7 | B74: 39.760421 | C74: 10.99415966 | D74: 99.946906 | E74: 11 | F74: 10.81730265 | G74: 0.03196729454 | H74: 312.760421 | I74: 3.197335509 | J74: 1.850473922 | L74: -0.127102 | N74: -365.917347 | P74: -17.32767645
A75: 21 | B75: 39.754686 | C75: 10.99411577 | D75: 99.946507 | E75: 11 | F75: 10.81730265 | G75: 0.03220752791 | H75: 312.754686 | I75: 3.197394139 | J75: 1.84716881 | L75: -0.127102 | N75: -365.631957 | P75: -17.56769603
A76: 21.3 | B76: 39.750556 | C76: 10.99406055 | D76: 99.946005 | E76: 11 | F76: 10.81730265 | G76: 0.03250977641 | H76: 312.750556 | I76: 3.197436362 | J76: 1.843044764 | L76: -0.126105 | N76: -365.282219 | P76: -17.803558
A77: 21.6 | B77: 39.748825 | C77: 10.99400335 | D77: 99.945485 | E77: 11 | F77: 10.81730265 | G77: 0.03282286251 | H77: 312.748825 | I77: 3.197454059 | J77: 1.838812401 | L77: -0.126105 | N77: -364.957948 | P77: -18.03916442
A78: 21.9 | B78: 39.748641 | C78: 10.99393273 | D78: 99.944843 | E78: 11 | F78: 10.81730265 | G78: 0.03320940342 | H78: 312.748641 | I78: 3.19745594 | J78: 1.833641464 | L78: -0.125308 | N78: -364.653478 | P78: -18.27465197
A79: 22.2 | B79: 39.746051 | C79: 10.99384121 | D79: 99.944011 | E79: 11 | F79: 10.81730265 | G79: 0.03371034117 | H79: 312.746051 | I79: 3.19748242 | J79: 1.827027485 | L79: -0.125308 | N79: -364.427951 | P79: -18.51489307
A80: 22.5 | B80: 39.742662 | C80: 10.99372857 | D80: 99.942987 | E80: 11 | F80: 10.81730265 | G80: 0.03432687995 | H80: 312.742662 | I80: 3.197517069 | J80: 1.819018507 | L80: -0.124697 | N80: -364.223981 | P80: -18.75638297
A81: 22.8 | B81: 39.736365 | C81: 10.99361417 | D81: 99.941947 | E81: 11 | F81: 10.81730265 | G81: 0.03495305214 | H81: 312.736365 | I81: 3.197581452 | J81: 1.81102771 | L81: -0.124697 | N81: -364.138559 | P81: -19.00521947
A82: 23.1 | B82: 39.729637 | C82: 10.9934902 | D82: 99.94082 | E82: 11 | F82: 10.81730265 | G82: 0.03563160604 | H82: 312.729637 | I82: 3.197650244 | J82: 1.802525595 | L82: -0.124249 | N82: -364.161698 | P82: -19.25998988
A83: 23.4 | B83: 39.722293 | C83: 10.9933681 | D83: 99.93971 | E83: 11 | F83: 10.81730265 | G83: 0.03629992444 | H83: 312.722293 | I83: 3.197725338 | J83: 1.794305654 | L83: -0.124249 | N83: -364.267404 | P83: -19.51960781
A84: 23.7 | B84: 39.712172 | C84: 10.99323654 | D84: 99.938514 | E84: 11 | F84: 10.81730265 | G84: 0.03702002246 | H84: 312.712172 | I84: 3.197828833 | J84: 1.785613389 | L84: -0.123948 | N84: -364.469653 | P84: -19.78611394
A85: 24 | B85: 39.700943 | C85: 10.99310685 | D85: 99.937335 | E85: 11 | F85: 10.81730265 | G85: 0.03772988497 | H85: 312.700943 | I85: 3.197943666 | J85: 1.777205473 | L85: -0.123948 | N85: -364.766346 | P85: -20.05879005
A86: 24.3 | B86: 39.688606 | C86: 10.99298475 | D86: 99.936225 | E86: 11 | F86: 10.81730265 | G86: 0.03839820337 | H86: 312.688606 | I86: 3.198069839 | J86: 1.769430159 | L86: -0.123772 | N86: -365.136703 | P86: -20.33669113
A87: 24.6 | B87: 39.676081 | C87: 10.99287596 | D87: 99.935236 | E87: 11 | F87: 10.81730265 | G87: 0.03899366904 | H87: 312.676081 | I87: 3.198197946 | J87: 1.762613339 | L87: -0.123772 | N87: -365.54399 | P87: -20.6174362
A88: 24.9 | B88: 39.66405 | C88: 10.9927807 | D88: 99.93437 | E88: 11 | F88: 10.81730265 | G88: 0.0395150778 | H88: 312.66405 | I88: 3.198321009 | J88: 1.756727536 | L88: -0.123695 | N88: -365.897911 | P88: -20.89559086
A89: 25.2 | B89: 39.652889 | C89: 10.99269875 | D89: 99.933625 | E89: 11 | F89: 10.81730265 | G89: 0.03996363385 | H89: 312.652889 | I89: 3.198435182 | J89: 1.751724658 | L89: -0.123695 | N89: -366.180799 | P89: -21.1698094
A90: 25.5 | B90: 39.642279 | C90: 10.99262054 | D90: 99.932914 | E90: 11 | F90: 10.81730265 | G90: 0.04039171887 | H90: 312.642279 | I90: 3.198543726 | J90: 1.747001108 | L90: -0.1237 | N90: -366.416614 | P90: -21.44151594
A91: 25.8 | B91: 39.633399 | C91: 10.99254992 | D91: 99.932272 | E91: 11 | F91: 10.81730265 | G91: 0.04077825978 | H91: 312.633399 | I91: 3.198634577 | J91: 1.742777872 | L91: -0.1237 | N91: -366.517059 | P91: -21.70471727
A92: 26.1 | B92: 39.625013 | C92: 10.99247171 | D92: 99.931561 | E92: 11 | F92: 10.81730265 | G92: 0.04120634481 | H92: 312.625013 | I92: 3.198720379 | J92: 1.738146213 | L92: -0.123771 | N92: -366.514947 | P92: -21.96177427
A93: 26.4 | B93: 39.619213 | C93: 10.9923935 | D93: 99.93085 | E93: 11 | F93: 10.81730265 | G93: 0.04163442984 | H93: 312.619213 | I93: 3.198779724 | J93: 1.733561393 | L93: -0.123771 | N93: -366.417821 | P93: -22.21173091
A94: 26.7 | B94: 39.616313 | C94: 10.99231914 | D94: 99.930174 | E94: 11 | F94: 10.81730265 | G94: 0.04204144176 | H94: 312.616313 | I94: 3.198809398 | J94: 1.72924483 | L94: -0.123888 | N94: -366.215584 | P94: -22.45353372
A95: 27 | B95: 39.61446 | C95: 10.99224093 | D95: 99.929463 | E95: 11 | F95: 10.81730265 | G95: 0.04246952679 | H95: 312.61446 | I95: 3.198828359 | J95: 1.724748649 | L95: -0.123888 | N95: -365.926319 | P95: -22.68910851
A96: 27.3 | B96: 39.614334 | C96: 10.99215128 | D96: 99.928648 | E96: 11 | F96: 10.81730265 | G96: 0.04296022903 | H96: 312.614334 | I96: 3.198829648 | J96: 1.719648983 | L96: -0.12404 | N96: -365.522434 | P96: -22.91614853
A97: 27.6 | B97: 39.614517 | C97: 10.99206163 | D97: 99.927833 | E97: 11 | F97: 10.81730265 | G97: 0.04345093128 | H97: 312.614517 | I97: 3.198827775 | J97: 1.714605936 | L97: -0.12404 | N97: -365.115542 | P97: -23.14226606
A98: 27.9 | B98: 39.615189 | C98: 10.99196813 | D98: 99.926983 | E98: 11 | F98: 10.81730265 | G98: 0.04396270663 | H98: 312.615189 | I98: 3.198820899 | J98: 1.709405258 | L98: -0.124217 | N98: -364.717929 | P98: -23.3681388
A99: 28.2 | B99: 39.615063 | C99: 10.99186902 | D99: 99.926082 | E99: 11 | F99: 10.81730265 | G99: 0.0445051885 | H99: 312.615063 | I99: 3.198822189 | J99: 1.703956715 | L99: -0.124217 | N99: -364.383895 | P99: -23.59806465
A100: 28.5 | B100: 39.612098 | C100: 10.99176793 | D100: 99.925163 | E100: 11 | F100: 10.81730265 | G100: 0.04505850796 | H100: 312.612098 | I100: 3.198852528 | J100: 1.698465729 | L100: -0.124416 | N100: -364.077331 | P100: -23.83104592
A101: 28.8 | B101: 39.605007 | C101: 10.99166684 | D101: 99.924244 | E101: 11 | F101: 10.81730265 | G101: 0.04561182743 | H101: 312.605007 | I101: 3.19892509 | J101: 1.693040179 | L101: -0.124416 | N101: -363.908497 | P101: -24.07526262
A102: 29.1 | B102: 39.594829 | C102: 10.99157136 | D102: 99.923376 | E102: 11 | F102: 10.81730265 | G102: 0.04613444037 | H102: 312.594829 | I102: 3.199029246 | J102: 1.687974385 | L102: -0.124637 | N102: -363.89524 | P102: -24.33162465
A103: 29.4 | B103: 39.581628 | C103: 10.99148556 | D103: 99.922596 | E103: 11 | F103: 10.81730265 | G103: 0.04660406952 | H103: 312.581628 | I103: 3.199164348 | J103: 1.683469709 | L103: -0.124637 | N103: -363.981148 | P103: -24.59666206
A104: 29.7 | B104: 39.567934 | C104: 10.99140735 | D104: 99.921885 | E104: 11 | F104: 10.81730265 | G104: 0.04703215454 | H104: 312.567934 | I104: 3.199304507 | J104: 1.679401933 | L104: -0.124879 | N104: -364.120821 | P104: -24.86596308
A105: 30 | B105: 39.553992 | C105: 10.99134058 | D105: 99.921278 | E105: 11 | F105: 10.81730265 | G105: 0.04739762235 | H105: 312.553992 | I105: 3.199447217 | J105: 1.675957629 | L105: -0.124879 | N105: -364.353929 | P105: -25.14222596
A106: 30.3 | B106: 39.541842 | C106: 10.99128723 | D106: 99.920793 | E106: 11 | F106: 10.81730265 | G106: 0.04768963535 | H106: 312.541842 | I106: 3.199571595 | J106: 1.673224149 | L106: -0.124516 | N106: -364.674802 | P106: -25.42394443
A107: 30.6 | B107: 39.532527 | C107: 10.99124345 | D107: 99.920395 | E107: 11 | F107: 10.81730265 | G107: 0.04792926663 | H107: 312.532527 | I107: 3.199666958 | J107: 1.670993165 | L107: -0.124378 | N107: -365.00326 | P107: -25.70495017
A108: 30.9 | B108: 39.527659 | C108: 10.99120517 | D108: 99.920047 | E108: 11 | F108: 10.81730265 | G108: 0.04813879347 | H108: 312.527659 | I108: 3.199716797 | J108: 1.669051346 | L108: -0.124378 | N108: -365.246554 | P108: -25.97755048
A109: 31.2 | B109: 39.526792 | C109: 10.99117283 | D109: 99.919753 | E109: 11 | F109: 10.81730265 | G109: 0.04831580754 | H109: 312.526792 | I109: 3.199725673 | J109: 1.667417251 | L109: -0.124269 | N109: -365.409013 | P109: -26.24207932
A110: 31.5 | B110: 39.528768 | C110: 10.99112894 | D110: 99.919354 | E110: 11 | F110: 10.81730265 | G110: 0.04855604091 | H110: 312.528768 | I110: 3.199705443 | J110: 1.665208858 | L110: -0.124192 | N110: -365.5368 | P110: -26.5024533
A111: 31.8 | B111: 39.532596 | C111: 10.99108703 | D111: 99.918973 | E111: 11 | F111: 10.81730265 | G111: 0.04878543668 | H111: 312.532596 | I111: 3.199666252 | J111: 1.663110004 | L111: -0.124114 | N111: -365.527494 | P111: -26.75168783
A112: 32.1 | B112: 39.537785 | C112: 10.99102785 | D112: 99.918435 | E112: 11 | F112: 10.81730265 | G112: 0.04910936037 | H112: 312.537785 | I112: 3.199613128 | J112: 1.660162582 | L112: -0.12411 | N112: -365.329996 | P112: -26.98607486
A113: 32.4 | B113: 39.541177 | C113: 10.99095338 | D113: 99.917758 | E113: 11 | F113: 10.81730265 | G113: 0.04951697438 | H113: 312.541177 | I113: 3.199578403 | J113: 1.656480441 | L113: -0.12411 | N113: -365.059014 | P113: -27.21592681
A114: 32.7 | B114: 39.541177 | C114: 10.99085999 | D114: 99.916909 | E114: 11 | F114: 10.81730265 | G114: 0.05002814764 | H114: 312.541177 | I114: 3.199578403 | J114: 1.651904298 | L114: -0.124131 | N114: -364.751107 | P114: -27.44499166
A115: 33 | B115: 39.538465 | C115: 10.9907589 | D115: 99.91599 | E115: 11 | F115: 10.81730265 | G115: 0.05058146711 | H115: 312.538465 | I115: 3.199606167 | J115: 1.647001871 | L115: -0.124131 | N115: -364.406562 | P115: -27.67277061
A116: 33.3 | B116: 39.532542 | C116: 10.99064439 | D116: 99.914949 | E116: 11 | F116: 10.81730265 | G116: 0.05120824139 | H116: 312.532542 | I116: 3.199666805 | J116: 1.641511279 | L116: -0.124145 | N116: -364.079114 | P116: -27.90371978
A117: 33.6 | B117: 39.520878 | C117: 10.9905224 | D117: 99.91384 | E117: 11 | F117: 10.81730265 | G117: 0.0518759577 | H117: 312.520878 | I117: 3.199786224 | J117: 1.635733489 | L117: -0.124161 | N117: -363.84223 | P117: -28.14540239
A118: 33.9 | B118: 39.504655 | C118: 10.99039458 | D118: 99.912678 | E118: 11 | F118: 10.81730265 | G118: 0.0525755847 | H118: 312.504655 | I118: 3.199952334 | J118: 1.629756645 | L118: -0.124161 | N118: -363.761467 | P118: -28.40238647
A119: 34.2 | B119: 39.486762 | C119: 10.99027248 | D119: 99.911568 | E119: 11 | F119: 10.81730265 | G119: 0.0532439031 | H119: 312.486762 | I119: 3.200135563 | J119: 1.624119029 | L119: -0.124139 | N119: -363.780935 | P119: -28.66857186
A120: 34.5 | B120: 39.469981 | C120: 10.99015038 | D120: 99.910458 | E120: 11 | F120: 10.81730265 | G120: 0.0539122215 | H120: 312.469981 | I120: 3.200307424 | J120: 1.618549754 | L120: -0.124139 | N120: -363.796714 | P120: -28.93392256
A121: 34.8 | B121: 39.452895 | C121: 10.99003598 | D121: 99.909418 | E121: 11 | F121: 10.81730265 | G121: 0.05453839369 | H121: 312.452895 | I121: 3.200482428 | J121: 1.613392208 | L121: -0.124113 | N121: -363.948718 | P121: -29.21066519
A122: 35.1 | B122: 39.435869 | C122: 10.9899273 | D122: 99.90843 | E122: 11 | F122: 10.81730265 | G122: 0.05513325727 | H122: 312.435869 | I122: 3.200656836 | J122: 1.608545516 | L122: -0.124043 | N122: -364.156418 | P122: -29.49231407
A123: 35.4 | B123: 39.419887 | C123: 10.98982621 | D123: 99.907511 | E123: 11 | F123: 10.81730265 | G123: 0.05568657673 | H123: 312.419887 | I123: 3.200820567 | J123: 1.604082655 | L123: -0.124043 | N123: -364.382177 | P123: -29.7751658
A124: 35.7 | B124: 39.40656 | C124: 10.98972886 | D124: 99.906626 | E124: 11 | F124: 10.81730265 | G124: 0.05621942519 | H124: 312.40656 | I124: 3.200957112 | J124: 1.599825387 | L124: -0.123949 | N124: -364.505044 | P124: -30.04804744
A125: 36 | B125: 39.394345 | C125: 10.98964504 | D125: 99.905864 | E125: 11 | F125: 10.81730265 | G125: 0.05667821673 | H125: 312.394345 | I125: 3.201082273 | J125: 1.596191047 | L125: -0.123949 | N125: -364.539918 | P125: -30.31307843
A126: 36.3 | B126: 39.383422 | C126: 10.98956683 | D126: 99.905153 | E126: 11 | F126: 10.81730265 | G126: 0.05710630176 | H126: 312.383422 | I126: 3.201194204 | J126: 1.592825586 | L126: -0.123895 | N126: -364.498981 | P126: -30.57094897
A127: 36.6 | B127: 39.374909 | C127: 10.98948675 | D127: 99.904425 | E127: 11 | F127: 10.81730265 | G127: 0.05754462229 | H127: 312.374909 | I127: 3.201281445 | J127: 1.589404903 | L127: -0.123774 | N127: -364.378179 | P127: -30.82027246
A128: 36.9 | B128: 39.369048 | C128: 10.98940469 | D128: 99.903679 | E128: 11 | F128: 10.81730265 | G128: 0.05799378042 | H128: 312.369048 | I128: 3.201341511 | J128: 1.58592574 | L128: -0.123774 | N128: -364.119044 | P128: -31.05565405
A129: 37.2 | B129: 39.362999 | C129: 10.98932065 | D129: 99.902915 | E129: 11 | F129: 10.81730265 | G129: 0.05845377615 | H129: 312.362999 | I129: 3.201403506 | J129: 1.582389586 | L129: -0.123613 | N129: -363.861625 | P129: -31.2910524
A130: 37.5 | B130: 39.357142 | C130: 10.98923485 | D130: 99.902135 | E130: 11 | F130: 10.81730265 | G130: 0.05892340529 | H130: 312.357142 | I130: 3.201463535 | J130: 1.578807076 | L130: -0.123613 | N130: -363.581157 | P130: -31.52402234
A131: 37.8 | B131: 39.353066 | C131: 10.98914531 | D131: 99.901321 | E131: 11 | F131: 10.81730265 | G131: 0.05941350545 | H131: 312.353066 | I131: 3.201505312 | J131: 1.575097769 | L131: -0.123512 | N131: -363.353612 | P131: -31.75987552
A132: 38.1 | B132: 39.349612 | C132: 10.9890671 | D132: 99.90061 | E132: 11 | F132: 10.81730265 | G132: 0.05984159048 | H132: 312.349612 | I132: 3.201540715 | J132: 1.57188198 | L132: -0.123264 | N132: -363.155134 | P132: -31.99748796
A133: 38.4 | B133: 39.345596 | C133: 10.98898889 | D133: 99.899899 | E133: 11 | F133: 10.81730265 | G133: 0.0602696755 | H133: 312.345596 | I133: 3.201581879 | J133: 1.568688378 | L133: -0.123264 | N133: -363.060524 | P133: -32.24455531
A134: 38.7 | B134: 39.341156 | C134: 10.98891068 | D134: 99.899188 | E134: 11 | F134: 10.81730265 | G134: 0.06069776053 | H134: 312.341156 | I134: 3.20162739 | J134: 1.56551665 | L134: -0.122964 | N134: -363.047425 | P134: =(N134*A134)/(B134*C134) -> -32.49919213
A135: 39 | B135: 39.338073 | C135: 10.98884391 | D135: 99.898581 | E135: =E134 -> 11 | F135: =F134 -> 10.81730265 | G135: =(E135-C135)/(E135-F135) -> 0.06106322834 | H135: =273+B135 -> 312.338073 | I135: =1000/H135 -> 3.201658992 | J135: =-LOG(-LOG(1-G135)/H135*H135) -> 1.562825937 | L135: -0.122964 | N135: -363.0704 | P135: -32.75596242
A136: 39.3 | B136: 39.336285 | C136: 10.98878099 | D136: 99.898009 | E136: 11 | F136: 10.81730265 | G136: 0.06140762304 | H136: 312.336285 | I136: 3.20167732 | J136: 1.560304587 | L136: -0.122798 | N136: -363.115939 | P136: -33.01376104
A137: 39.6 | B137: 39.335303 | C137: 10.98872566 | D137: 99.897506 | E137: 11 | F137: 10.81730265 | G137: 0.06171047363 | H137: 312.335303 | I137: 3.201687387 | J137: 1.55809866 | L137: -0.122448 | N137: -363.195859 | P137: -33.27409431
A138: 39.9 | B138: 39.333576 | C138: 10.98869508 | D138: 99.897228 | E138: 11 | F138: 10.81730265 | G138: 0.06187785428 | H138: 312.333576 | I138: 3.20170509 | J138: 1.556883966 | L138: -0.122448 | N138: -363.318229 | P138: -33.53903245
A139: 40.2 | B139: 39.331906 | C139: 10.98869134 | D139: 99.897194 | E139: 11 | F139: 10.81730265 | G139: 0.06189832529 | H139: 312.331906 | I139: 3.201722209 | J139: 1.556735624 | L139: -0.122113 | N139: -363.433032 | P139: -33.80332984
A140: 40.5 | B140: 39.32901 | C140: 10.98870663 | D140: 99.897333 | E140: 11 | F140: 10.81730265 | G140: 0.06181463497 | H140: 312.32901 | I140: 3.201751896 | J140: 1.557342379 | L140: -0.122113 | N140: -363.524573 | P140: -34.06663229
A141: 40.8 | B141: 39.324501 | C141: 10.9887371 | D141: 99.89761 | E141: 11 | F141: 10.81730265 | G141: 0.06164785641 | H141: 312.324501 | I141: 3.20179812 | J141: 1.558553896 | L141: -0.121974 | N141: -363.603704 | P141: -34.3302889
A142: 41.1 | B142: 39.318701 | C142: 10.98878099 | D142: 99.898009 | E142: 11 | F142: 10.81730265 | G142: 0.06140762304 | H142: 312.318701 | I142: 3.201857579 | J142: 1.560304587 | L142: -0.121795 | N142: -363.688397 | P142: -34.59573712
A143: 41.4 | B143: 39.31315 | C143: 10.98884391 | D143: 99.898581 | E143: 11 | F143: 10.81730265 | G143: 0.06106322834 | H143: 312.31315 | I143: 3.201914489 | J143: 1.562825937 | L143: -0.121795 | N143: -363.71439 | P143: -34.85547271
A144: 41.7 | B144: 39.307048 | C144: 10.98891453 | D144: 99.899223 | E144: 11 | F144: 10.81730265 | G144: 0.06067668743 | H144: 312.307048 | I144: 3.201977049 | J144: 1.565672276 | L144: -0.121792 | N144: -363.724626 | P144: -35.11426128
A145: 42 | B145: 39.299395 | C145: 10.98901177 | D145: 99.900107 | E145: 11 | F145: 10.81730265 | G145: 0.06014444107 | H145: 312.299395 | I145: 3.202055515 | J145: 1.569620375 | L145: -0.121792 | N145: -363.72887 | P145: -35.37386879
A146: 42.3 | B146: 39.290137 | C146: 10.98912243 | D146: 99.901113 | E146: 11 | F146: 10.81730265 | G146: 0.05953873989 | H146: 312.290137 | I146: 3.202150441 | J146: 1.574154689 | L146: -0.121876 | N146: -363.720577 | P146: -35.63376272
A147: 42.6 | B147: 39.278851 | C147: 10.98923485 | D147: 99.902135 | E147: 11 | F147: 10.81730265 | G147: 0.05892340529 | H147: 312.278851 | I147: 3.202266169 | J147: 1.578807076 | L147: -0.122258 | N147: -363.703947 | P147: -35.89478723
A148: 42.9 | B148: 39.267557 | C148: 10.98934738 | D148: 99.903158 | E148: 11 | F148: 10.81730265 | G148: 0.05830746861 | H148: 312.267557 | I148: 3.202381988 | J148: 1.583511373 | L148: -0.122258 | N148: -363.645035 | P148: -36.15173707
A149: 43.2 | B149: 39.255773 | C149: 10.98946948 | D149: 99.904268 | E149: 11 | F149: 10.81730265 | G149: 0.05763915021 | H149: 312.255773 | I149: 3.202502841 | J149: 1.588670512 | L149: -0.122942 | N149: -363.605003 | P149: -36.41106116
A150: 43.5 | B150: 39.243558 | C150: 10.98959158 | D150: 99.905378 | E150: 11 | F150: 10.81730265 | G150: 0.05697083182 | H150: 312.243558 | I150: 3.202628123 | J150: 1.593887952 | L150: -0.122942 | N150: -363.576195 | P150: -36.67201462
A151: 43.8 | B151: 39.232822 | C151: 10.98971181 | D151: 99.906471 | E151: 11 | F151: 10.81730265 | G151: 0.05631274893 | H151: 312.232822 | I151: 3.202738244 | J151: 1.599083794 | L151: -0.123402 | N151: -363.52589 | P151: -36.9295151
A152: 44.1 | B152: 39.22468 | C152: 10.98981862 | D152: 99.907442 | E152: 11 | F152: 10.81730265 | G152: 0.05572812085 | H152: 312.22468 | I152: 3.202821763 | J152: 1.603749315 | L152: -0.124548 | N152: -363.457268 | P152: -37.18279338
A153: 44.4 | B153: 39.218452 | C153: 10.98991971 | D153: 99.908361 | E153: 11 | F153: 10.81730265 | G153: 0.05517480139 | H153: 312.218452 | I153: 3.202885651 | J153: 1.608208931 | L153: -0.124548 | N153: -363.36989 | P153: -37.43233685
A154: 44.7 | B154: 39.216102 | C154: 10.99002069 | D154: 99.909279 | E154: 11 | F154: 10.81730265 | G154: 0.05462208401 | H154: 312.216102 | I154: 3.202909759 | J154: 1.612707242 | L154: -0.125969 | N154: -363.28696 | P154: -37.67856888
A155: 45 | B155: 39.215548 | C155: 10.99011232 | D155: 99.910112 | E155: 11 | F155: 10.81730265 | G155: 0.05412054417 | H155: 312.215548 | I155: 3.202915442 | J155: 1.61682745 | L155: -0.125969 | N155: -363.235892 | P155: -37.92633265
A156: 45.3 | B156: 39.217398 | C156: 10.99019427 | D156: 99.910857 | E156: 11 | F156: 10.81730265 | G156: 0.05367198813 | H156: 312.217398 | I156: 3.202896464 | J156: 1.620543923 | L156: -0.126782 | N156: -363.239007 | P156: -38.17741657
A157: 45.6 | B157: 39.22079 | C157: 10.99026302 | D157: 99.911482 | E157: 11 | F157: 10.81730265 | G157: 0.05329568272 | H157: 312.22079 | I157: 3.202861667 | J157: 1.623685116 | L157: -0.128588 | N157: -363.304678 | P157: -38.4336304
A158: 45.9 | B158: 39.223385 | C158: 10.99031065 | D158: 99.911915 | E158: 11 | F158: 10.81730265 | G158: 0.05303497834 | H158: 312.223385 | I158: 3.202835047 | J158: 1.625873995 | L158: -0.128588 | N158: -363.406388 | P158: -38.69458592
A159: 46.2 | B159: 39.225177 | C159: 10.99033155 | D159: 99.912105 | E159: 11 | F159: 10.81730265 | G159: 0.0529205815 | H159: 312.225177 | I159: 3.202816665 | J159: 1.626837776 | L159: -0.130591 | N159: -363.544144 | P159: -38.96040141
A160: 46.5 | B160: 39.224008 | C160: 10.99034695 | D160: 99.912245 | E160: 11 | F160: 10.81730265 | G160: 0.05283628909 | H160: 312.224008 | I160: 3.202828656 | J160: 1.627549227 | L160: -0.130591 | N160: -363.788484 | P160: -39.24086105
A161: 46.8 | B161: 39.21914 | C161: 10.9903431 | D161: 99.91221 | E161: 11 | F161: 10.81730265 | G161: 0.05285736219 | H161: 312.21914 | I161: 3.202878594 | J161: 1.627371261 | L161: -0.131653 | N161: -364.090226 | P161: -39.53170599
A162: 47.1 | B162: 39.209882 | C162: 10.99032396 | D162: 99.912036 | E162: 11 | F162: 10.81730265 | G162: 0.05296212561 | H162: 312.209882 | I162: 3.202973569 | J162: 1.626487538 | L162: -0.132747 | N162: -364.364445 | P162: -39.82454926
A163: 47.4 | B163: 39.1968 | C163: 10.99029536 | D163: 99.911776 | E163: 11 | F163: 10.81730265 | G163: 0.05311866866 | H163: 312.1968 | I163: 3.203107783 | J163: 1.625170192 | L163: -0.13387 | N163: -364.556285 | P163: -40.11279782
A164: 47.7 | B164: 39.179526 | C164: 10.99025532 | D164: 99.911412 | E164: 11 | F164: 10.81730265 | G164: 0.05333782893 | H164: 312.179526 | I164: 3.203285023 | J164: 1.623332232 | L164: -0.136184 | N164: -364.6834 | P164: -40.3987023
A165: 48 | B165: 39.159971 | C165: 10.99018096 | D165: 99.910736 | E165: 11 | F165: 10.81730265 | G165: 0.05374484085 | H165: 312.159971 | I165: 3.20348569 | J165: 1.61993826 | L165: -0.136184 | N165: -364.719945 | P165: -40.67743372
A166: 48.3 | B166: 39.138189 | C166: 10.99009131 | D166: 99.909921 | E166: 11 | F166: 10.81730265 | G166: 0.0542355431 | H166: 312.138189 | I166: 3.203709239 | J166: 1.615879454 | L166: -0.137363 | N166: -364.65818 | P166: -40.94784625
A167: 48.6 | B167: 39.117209 | C167: 10.98999022 | D167: 99.909002 | E167: 11 | F167: 10.81730265 | G167: 0.05478886256 | H167: 312.117209 | I167: 3.203924587 | J167: 1.611345271 | L167: -0.138543 | N167: -364.439806 | P167: -41.19997093
A168: 48.9 | B168: 39.096417 | C168: 10.98988154 | D168: 99.908014 | E168: 11 | F168: 10.81730265 | G168: 0.05538372615 | H168: 312.096417 | I168: 3.204138034 | J168: 1.606519972 | L168: -0.139719 | N168: -364.148535 | P168: -41.44359842
A169: 49.2 | B169: 39.078902 | C169: 10.989748 | D169: 99.9068 | E169: 11 | F169: 10.81730265 | G169: 0.05611466176 | H169: 312.078902 | I169: 3.204317862 | J169: 1.600659309 | L169: -0.142041 | N169: -363.76805 | P169: -41.67346078
A170: 49.5 | B170: 39.064529 | C170: 10.98960302 | D170: 99.905482 | E170: 11 | F170: 10.81730265 | G170: 0.0569082146 | H170: 312.064529 | I170: 3.204465446 | J170: 1.594379829 | L170: -0.142041 | N170: -363.271333 | P170: -41.88627401
A171: 49.8 | B171: 39.055523 | C171: 10.98944275 | D171: 99.904025 | E171: 11 | F171: 10.81730265 | G171: 0.05778545775 | H171: 312.055523 | I171: 3.204557927 | J171: 1.587536141 | L171: -0.143169 | N171: -362.757068 | P171: -42.09079193
A172: 50.1 | B172: 39.051144 | C172: 10.98925025 | D172: 99.902275 | E172: 11 | F172: 10.81730265 | G172: 0.05883911288 | H172: 312.051144 | I172: 3.204602897 | J172: 1.57944805 | L172: -0.144265 | N172: -362.28945 | P172: -42.29524927
A173: 50.4 | B173: 39.052069 | C173: 10.98904609 | D173: 99.900419 | E173: 11 | F173: 10.81730265 | G173: 0.05995658941 | H173: 312.052069 | I173: 3.204593398 | J173: 1.571021898 | L173: -0.14532 | N173: -361.883314 | P173: -42.50059913
A174: 50.7 | B174: 39.056883 | C174: 10.98883445 | D174: 99.898495 | E174: 11 | F174: 10.81730265 | G174: 0.06111500796 | H174: 312.056883 | I174: 3.204543961 | J174: 1.562445976 | L174: -0.147273 | N174: -361.552655 | P174: -42.71007194
A175: 51 | B175: 39.063547 | C175: 10.98860928 | D175: 99.896448 | E175: 11 | F175: 10.81730265 | G175: 0.06234748342 | H175: 312.063547 | I175: 3.204475529 | J175: 1.553492712 | L175: -0.147273 | N175: -361.267828 | P175: -42.92250477
A176: 51.3 | B176: 39.07089 | C176: 10.98837465 | D176: 99.894315 | E176: 11 | F176: 10.81730265 | G176: 0.0636317385 | H176: 312.07089 | I176: 3.204400128 | J176: 1.544343459 | L176: -0.14816 | N176: -361.08281 | P176: -43.14568974
A177: 51.6 | B177: 39.077431 | C177: 10.988142 | D177: 99.8922 | E177: 11 | F177: 10.81730265 | G177: 0.06490515599 | H177: 312.077431 | I177: 3.204332966 | J177: 1.53544581 | L177: -0.148986 | N177: -360.969444 | P177: -43.37803492
A178: 51.9 | B178: 39.082119 | C178: 10.98791122 | D178: 99.890102 | E178: 11 | F178: 10.81730265 | G178: 0.06616833796 | H178: 312.082119 | I178: 3.204284831 | J178: 1.526784564 | L178: -0.149748 | N178: -360.831651 | P178: -43.60926216
A179: 52.2 | B179: 39.085203 | C179: 10.98769375 | D179: 99.888125 | E179: 11 | F179: 10.81730265 | G179: 0.06735866722 | H179: 312.085203 | I179: 3.204253167 | J179: 1.518767526 | L179: -0.151097 | N179: -360.674094 | P179: -43.8395951
A180: 52.5 | B180: 39.087736 | C180: 10.98747254 | D180: 99.886114 | E180: 11 | F180: 10.81730265 | G180: 0.06856946748 | H180: 312.087736 | I180: 3.20422716 | J180: 1.51075145 | L180: -0.151097 | N180: -360.521922 | P180: -44.07097534
A181: 52.8 | B181: 39.089711 | C181: 10.9872532 | D181: 99.88412 | E181: 11 | F181: 10.81730265 | G181: 0.06977003224 | H181: 312.089711 | I181: 3.204206883 | J181: 1.502936576 | L181: -0.151692 | N181: -360.311453 | P181: -44.29558045
A182: 53.1 | B182: 39.089524 | C182: 10.98704145 | D182: 99.882195 | E182: 11 | F182: 10.81730265 | G182: 0.07092905288 | H182: 312.089524 | I182: 3.204208803 | J182: 1.495513907 | L182: -0.152236 | N182: -360.100768 | P182: -44.52228278
A183: 53.4 | B183: 39.086811 | C183: 10.98683168 | D183: 99.880288 | E183: 11 | F183: 10.81730265 | G183: 0.07207723593 | H183: 312.086811 | I183: 3.204236657 | J183: 1.488274739 | L183: -0.152732 | N183: -359.893356 | P183: -44.75199251
A184: 53.7 | B184: 39.082922 | C184: 10.98663137 | D184: 99.878467 | E184: 11 | F184: 10.81730265 | G184: 0.07317363935 | H184: 312.082922 | I184: 3.204276586 | J184: 1.481464707 | L184: -0.153587 | N184: -359.70444 | P184: -44.98508084
A185: 54 | B185: 39.078046 | C185: 10.98644833 | D185: 99.876803 | E185: 11 | F185: 10.81730265 | G185: 0.07417551486 | H185: 312.078046 | I185: 3.204326651 | J185: 1.475326931 | L185: -0.153587 | N185: -359.53212 | P185: -45.2211183
A186: 54.3 | B186: 39.07157 | C186: 10.98626705 | D186: 99.875155 | E186: 11 | F186: 10.81730265 | G186: 0.07516775695 | H186: 312.07157 | I186: 3.204393146 | J186: 1.469326071 | L186: -0.153954 | N186: -359.361149 | P186: -45.45900635
A187: 54.6 | B187: 39.064169 | C187: 10.9860916 | D187: 99.87356 | E187: 11 | F187: 10.81730265 | G187: 0.07612808834 | H187: 312.064169 | I187: 3.204469142 | J187: 1.463590095 | L187: -0.154281 | N187: -359.177795 | P187: -45.69622422
A188: 54.9 | B188: 39.05652 | C188: 10.98591989 | D188: 99.871999 | E188: 11 | F188: 10.81730265 | G188: 0.07706794871 | H188: 312.05652 | I188: 3.204547689 | J188: 1.458043138 | L188: -0.154568 | N188: -359.067676 | P188: -45.9429294
A189: 55.2 | B189: 39.049116 | C189: 10.98575214 | D189: 99.870474 | E189: 11 | F189: 10.81730265 | G189: 0.0779861339 | H189: 312.049116 | I189: 3.204623723 | J189: 1.452686315 | L189: -0.155028 | N189: -358.955165 | P189: -46.18897041
A190: 55.5 | B190: 39.039862 | C190: 10.98559385 | D190: 99.869035 | E190: 11 | F190: 10.81730265 | G190: 0.07885253946 | H190: 312.039862 | I190: 3.204718761 | J190: 1.447686653 | L190: -0.155028 | N190: -358.881803 | P190: -46.44218122
A191: 55.8 | B191: 39.029064 | C191: 10.98544117 | D191: 99.867647 | E191: 11 | F191: 10.81730265 | G191: 0.0796882385 | H191: 312.029064 | I191: 3.204829663 | J191: 1.44291373 | L191: -0.155199 | N191: -358.844672 | P191: -46.70195516
A192: 56.1 | B192: 39.018397 | C192: 10.98529806 | D192: 99.866346 | E192: 11 | F192: 10.81730265 | G192: 0.08047155583 | H192: 312.018397 | I192: 3.204939227 | J192: 1.438483229 | L192: -0.155333 | N192: -358.806255 | P192: -46.96146088
A193: 56.4 | B193: 39.006736 | C193: 10.9851665 | D193: 99.86515 | E193: 11 | F193: 10.81730265 | G193: 0.08119165385 | H193: 312.006736 | I193: 3.205059009 | J193: 1.43444651 | L193: -0.155433 | N193: -358.798772 | P193: -47.22628647
A194: 56.7 | B194: 38.994643 | C194: 10.98503109 | D194: 99.863919 | E194: 11 | F194: 10.81730265 | G194: 0.08193282497 | H194: 311.994643 | I194: 3.205183238 | J194: 1.430327217 | L194: -0.155553 | N194: -358.838068 | P194: -47.4980007
A195: 57 | B195: 38.983784 | C195: 10.98489755 | D195: 99.862705 | E195: 11 | F195: 10.81730265 | G195: 0.08266376059 | H195: 311.983784 | I195: 3.205294798 | J195: 1.426299509 | L195: -0.155553 | N195: -358.936472 | P195: -47.77629224
A196: 57.3 | B196: 38.974901 | C196: 10.98477545 | D196: 99.861595 | E196: 11 | F196: 10.81730265 | G196: 0.08333207898 | H196: 311.974901 | I196: 3.205386064 | J196: 1.422646477 | L196: -0.15557 | N196: -359.086752 | P196: -48.05933979
A197: 57.6 | B197: 38.967622 | C197: 10.98465159 | D197: 99.860469 | E197: 11 | F197: 10.81730265 | G197: 0.0840100308 | H197: 311.967622 | I197: 3.205460854 | J197: 1.418969232 | L197: -0.155562 | N197: -359.242819 | P197: -48.34152968
A198: 57.9 | B198: 38.962873 | C198: 10.98453334 | D198: 99.859394 | E198: 11 | F198: 10.81730265 | G198: 0.08465727609 | H198: 311.962873 | I198: 3.205509651 | J198: 1.415484846 | L198: -0.155532 | N198: -359.416983 | P198: =(N198*A198)/(B198*C198) -> -48.62331604
A199: 58.2 | B199: 38.959603 | C199: 10.98441311 | D199: 99.858301 | E199: =E198 -> 11 | F199: =F198 -> 10.81730265 | G199: =(E199-C199)/(E199-F199) -> 0.08531535898 | H199: =273+B199 -> 311.959603 | I199: =1000/H199 -> 3.205543251 | J199: =-LOG(-LOG(1-G199)/H199*H199) -> 1.411968053 | L199: -0.155414 | N199: -359.605211 | P199: -48.90548616
A200: 58.5 | B200: 38.958185 | C200: 10.98429486 | D200: 99.857226 | E200: 11 | F200: 10.81730265 | G200: 0.08596260427 | H200: 311.958185 | I200: 3.205557822 | J200: 1.408534293 | L200: -0.155414 | N200: -359.768313 | P200: -49.18219164
A201: 58.8 | B201: 38.957321 | C201: 10.98417089 | D201: 99.856099 | E201: 11 | F201: 10.81730265 | G201: 0.08664115818 | H201: 311.957321 | I201: 3.2055667 | J201: 1.40496077 | L201: -0.15533 | N201: -359.876244 | P201: -49.4508932
A202: 59.1 | B202: 38.956267 | C202: 10.98406034 | D202: 99.855094 | E202: 11 | F202: 10.81730265 | G202: 0.08724625727 | H202: 311.956267 | I202: 3.205577531 | J202: 1.401796488 | L202: -0.15523 | N202: -359.929189 | P202: -49.71235131
A203: 59.4 | B203: 38.95731 | C203: 10.98393824 | D203: 99.853984 | E203: 11 | F203: 10.81730265 | G203: 0.08791457566 | H203: 311.95731 | I203: 3.205566813 | J203: 1.398325785 | L203: -0.155114 | N203: -359.911898 | P203: -49.9615157
... 4297 more rows

Sheet 25%
B2: 16 mg
A4: Time(s) | B4: Sample Temperature(°C) | C4: TGA mg | D4: TG(%) | E4: Wi | F4: Wf | G4: α | H4: T | I4: 103/T | J4: LOG | K4: dTG(%/min) | L4: HeatFlow(mW) | M4: CP
A5: 0 | B5: 37.272086 | C5: 16 | D5: 100 | E5: =C5 -> 16 | F5: 15.92449296 | G5: =(E5-C5)/(E5-F5) -> 0 | H5: =273+B5 -> 310.272086 | I5: =1000/H5 -> 3.222977655 | J5: =-LOG(-LOG(1-G5)/H5*H5) ->  | K5: -0.095002 | L5: -275.648609 | M5: =(L5*A5)/(B5*C5) -> 0
A6: 0.3 | B6: 37.272086 | C6: 15.99994464 | D6: 99.999654 | E6: =E5 -> 16 | F6: =F5 -> 15.92449296 | G6: =(E6-C6)/(E6-F6) -> 0.000733176668 | H6: =273+B6 -> 310.272086 | I6: =1000/H6 -> 3.222977655 | J6: =-LOG(-LOG(1-G6)/H6*H6) -> 3.496847797 | K6: -0.095002 | L6: -275.091372 | M6: =(L6*A6)/(B6*C6) -> -0.138387239
A7: 0.6 | B7: 37.263444 | C7: 15.99990272 | D7: 99.999392 | E7: =E6 -> 16 | F7: =F6 -> 15.92449296 | G7: =(E7-C7)/(E7-F7) -> 0.001288356688 | H7: =273+B7 -> 310.263444 | I7: =1000/H7 -> 3.223067427 | J7: =-LOG(-LOG(1-G7)/H7*H7) -> 3.251899659 | K7: -0.095012 | L7: -274.421428 | M7: -0.2761651907
A8: 0.9 | B8: 37.259986 | C8: 15.9998656 | D8: 99.99916 | E8: 16 | F8: 15.92449296 | G8: 0.001779966477 | H8: 310.259986 | I8: 3.223103349 | J8: 3.111417064 | K8: -0.095012 | L8: -273.658526 | M8: -0.4131354583
A9: 1.2 | B9: 37.258748 | C9: 15.99983216 | D9: 99.998951 | E9: 16 | F9: 15.92449296 | G9: 0.002222839089 | H9: 310.258748 | I9: 3.22311621 | J9: 3.014824532 | K9: -0.095044 | L9: -272.922949 | M9: -0.5493860368
A10: 1.5 | B10: 37.259054 | C10: 15.99979872 | D10: 99.998742 | E10: 16 | F10: 15.92449296 | G10: 0.002665711701 | H10: 310.259054 | I10: 3.223113031 | J10: 2.935823015 | K10: -0.095044 | L10: -272.309487 | M10: -0.6851847491
A11: 1.8 | B11: 37.262263 | C11: 15.99976544 | D11: 99.998534 | E11: 16 | F11: 15.92449296 | G11: 0.003106465304 | H11: 310.262263 | I11: 3.223079695 | J11: 2.869273746 | K11: -0.095106 | L11: -271.822596 | M11: -0.820682586
A12: 2.1 | B12: 37.266581 | C12: 15.99972544 | D12: 99.998284 | E12: 16 | F12: 15.92449296 | G12: 0.003636217232 | H12: 310.266581 | I12: 3.223034839 | J12: 2.800775075 | K12: -0.095106 | L12: -271.535854 | M12: -0.9563445709
A13: 2.4 | B13: 37.27102 | C13: 15.99969104 | D13: 99.998069 | E13: 16 | F13: 15.92449296 | G13: 0.00409180389 | H13: 310.27102 | I13: 3.222988728 | J13: 2.749410835 | K13: -0.095188 | L13: -271.479168 | M13: -1.092609259
A14: 2.7 | B14: 37.273676 | C14: 15.99964624 | D14: 99.997789 | E14: 16 | F14: 15.92449296 | G14: 0.004685126049 | H14: 310.273676 | I14: 3.222961138 | J14: 2.690475055 | K14: -0.095188 | L14: -271.555481 | M14: -1.229446772
A15: 3 | B15: 37.272808 | C15: 15.99960624 | D15: 99.997539 | E15: 16 | F15: 15.92449296 | G15: 0.005214877977 | H15: 310.272808 | I15: 3.222970155 | J15: 2.643836673 | K15: -0.095274 | L15: -271.822916 | M15: -1.367432555
A16: 3.3 | B16: 37.269416 | C16: 15.99955744 | D16: 99.997234 | E16: 16 | F16: 15.92449296 | G16: 0.005861175329 | H16: 310.269416 | I16: 3.22300539 | J16: 2.592955119 | K16: -0.095274 | L16: -272.124833 | M16: -1.505988162
A17: 3.6 | B17: 37.263616 | C17: 15.9994984 | D17: 99.996865 | E17: 16 | F17: 15.92449296 | G17: 0.006643089174 | H17: 310.263616 | I17: 3.22306564 | J17: 2.538399069 | K17: -0.095351 | L17: -272.415691 | M17: -1.644914226
A18: 3.9 | B18: 37.253926 | C18: 15.99943456 | D18: 99.996466 | E18: 16 | F18: 15.92449296 | G18: 0.007488573251 | H18: 310.253926 | I18: 3.223166304 | J18: 2.486185387 | K18: -0.095351 | L18: -272.63251 | M18: =(L18*A18)/(B18*C18) -> -1.783879715
A19: 4.2 | B19: 37.241769 | C19: 15.99936688 | D19: 99.996043 | E19: 16 | F19: 15.92449296 | G19: 0.008384913513 | H19: 310.241769 | I19: 3.223292606 | J19: 2.436889947 | K19: -0.095403 | L19: -272.794091 | M19: -1.922875429
A20: 4.5 | B20: 37.228258 | C20: 15.99929344 | D20: 99.995584 | E20: 16 | F20: 15.92449296 | G20: 0.009357538052 | H20: 310.228258 | I20: 3.223432986 | J20: 2.389014156 | K20: -0.095403 | L20: -272.899193 | M20: -2.061774891
A21: 4.8 | B21: 37.214011 | C21: 15.9992152 | D21: 99.995095 | E21: 16 | F21: 15.92449296 | G21: 0.01039373282 | H21: 310.214011 | I21: 3.223581026 | J21: 2.343177334 | K21: -0.09543 | L21: -272.965367 | M21: -2.200612747
A22: 5.1 | B22: 37.201177 | C22: 15.99913696 | D22: 99.994606 | E22: 16 | F22: 15.92449296 | G22: 0.01142992759 | H22: 310.201177 | I22: 3.223714396 | J22: 2.30167833 | K22: -0.09543 | L22: -272.968304 | M22: -2.338994285
A23: 5.4 | B23: 37.189145 | C23: 15.99904736 | D23: 99.994046 | E23: 16 | F23: 15.92449296 | G23: 0.01261657191 | H23: 310.189145 | I23: 3.223839442 | J23: 2.258520155 | K23: -0.095435 | L23: -272.897808 | M23: -2.476757515
A24: 5.7 | B24: 37.180755 | C24: 15.99895472 | D24: 99.993467 | E24: 16 | F24: 15.92449296 | G24: 0.01384347738 | H24: 310.180755 | I24: 3.223926642 | J24: 2.217946936 | K24: -0.095435 | L24: -272.828751 | M24: -2.614298519
A25: 6 | B25: 37.176743 | C25: 15.99884704 | D25: 99.992794 | E25: 16 | F25: 15.92449296 | G25: 0.01526956957 | H25: 310.176743 | I25: 3.223968342 | J25: 2.175051858 | K25: -0.095417 | L25: -272.777832 | M25: -2.751695023
A26: 6.3 | B26: 37.176498 | C26: 15.99873552 | D26: 99.992097 | E26: 16 | F26: 15.92449296 | G26: 0.01674651794 | H26: 310.176498 | I26: 3.223970889 | J26: 2.134629077 | K26: -0.095417 | L26: -272.690106 | M26: -2.888389743
A27: 6.6 | B27: 37.178661 | C27: 15.99862384 | D27: 99.991399 | E27: 16 | F27: 15.92449296 | G27: 0.01822558532 | H27: 310.178661 | I27: 3.223948407 | J27: 2.097546181 | K27: -0.095381 | L27: -272.598573 | M27: -3.024761536
A28: 6.9 | B28: 37.185508 | C28: 15.99850848 | D28: 99.990678 | E28: 16 | F28: 15.92449296 | G28: 0.01975338988 | H28: 310.185508 | I28: 3.223877242 | J28: 2.06224893 | K28: -0.095381 | L28: -272.560203 | M28: -3.161246198
A29: 7.2 | B29: 37.195564 | C29: 15.9983864 | D29: 99.989915 | E29: 16 | F29: 15.92449296 | G29: 0.02137019277 | H29: 310.195564 | I29: 3.223772729 | J29: 2.027724913 | K29: -0.095332 | L29: -272.593946 | M29: -3.298233304
A30: 7.5 | B30: 37.208153 | C30: 15.99825952 | D30: 99.989122 | E30: 16 | F30: 15.92449296 | G30: 0.02305056588 | H30: 310.208153 | I30: 3.223641901 | J30: 1.994479981 | K30: -0.095332 | L30: -272.690072 | M30: -3.435735641
A31: 7.8 | B31: 37.220678 | C31: 15.99811744 | D31: 99.988234 | E31: 16 | F31: 15.92449296 | G31: 0.02493224473 | H31: 310.220678 | I31: 3.223511748 | J31: 1.95998324 | K31: -0.09527 | L31: -272.861236 | M31: -3.57423649
A32: 8.1 | B32: 37.230795 | C32: 15.99797248 | D32: 99.987328 | E32: 16 | F32: 15.92449296 | G32: 0.02685206571 | H32: 310.230795 | I32: 3.223406625 | J32: 1.927340827 | K32: -0.09527 | L32: -273.125577 | M32: -3.714327001
A33: 8.4 | B33: 37.240107 | C33: 15.99782768 | D33: 99.986423 | E33: 16 | F33: 15.92449296 | G33: 0.02876976769 | H33: 310.240107 | I33: 3.223309873 | J33: 1.89695585 | K33: -0.095195 | L33: -273.448268 | M33: -3.855516165
A34: 8.7 | B34: 37.246277 | C34: 15.9976712 | D34: 99.985445 | E34: 16 | F34: 15.92449296 | G34: 0.03084215723 | H34: 310.246277 | I34: 3.22324577 | J34: 1.866285959 | K34: -0.095195 | L34: -273.787826 | M34: -3.997548584
A35: 9 | B35: 37.249976 | C35: 15.99751856 | D35: 99.984491 | E35: 16 | F35: 15.92449296 | G35: 0.03286369059 | H35: 310.249976 | I35: 3.22320734 | J35: 1.838263406 | K35: -0.095109 | L35: -274.086969 | M35: -4.139541851
A36: 9.3 | B36: 37.252635 | C36: 15.9973736 | D36: 99.983585 | E36: 16 | F36: 15.92449296 | G36: 0.03478351158 | H36: 310.252635 | I36: 3.223179716 | J36: 1.813177311 | K36: -0.095109 | L36: -274.364348 | M36: -4.281588652
A37: 9.6 | B37: 37.253185 | C37: 15.9972248 | D37: 99.982655 | E37: 16 | F37: 15.92449296 | G37: 0.03675418875 | H37: 310.253185 | I37: 3.223174002 | J37: 1.788802786 | K37: -0.095009 | L37: -274.568718 | M37: -4.422972428
A38: 9.9 | B38: 37.25189 | C38: 15.99708272 | D38: 99.981767 | E38: 16 | F38: 15.92449296 | G38: 0.0386358676 | H38: 310.25189 | I38: 3.223187456 | J38: 1.766697071 | K38: -0.095009 | L38: -274.653394 | M38: -4.562796107
A39: 10.2 | B39: 37.24967 | C39: 15.99695024 | D39: 99.980939 | E39: 16 | F39: 15.92449296 | G39: 0.04039040598 | H39: 310.24967 | I39: 3.223210519 | J39: 1.74701552 | K39: -0.094891 | L39: -274.62606 | M39: -4.700913874
A40: 10.5 | B40: 37.245968 | C40: 15.99681856 | D40: 99.980116 | E40: 16 | F40: 15.92449296 | G40: 0.04213434933 | H40: 310.245968 | I40: 3.22324898 | J40: 1.72826523 | K40: -0.094891 | L40: -274.483567 | M40: -4.837185732
A41: 10.8 | B41: 37.24196 | C41: 15.99669648 | D41: 99.979353 | E41: 16 | F41: 15.92449296 | G41: 0.04375115221 | H41: 310.24196 | I41: 3.223290621 | J41: 1.711547872 | K41: -0.09475 | L41: -274.26888 | M41: -4.972072522
A42: 11.1 | B42: 37.234001 | C42: 15.99657728 | D42: 99.978608 | E42: 16 | F42: 15.92449296 | G42: 0.04532981296 | H42: 310.234001 | I42: 3.223373314 | J42: 1.695797382 | K42: -0.09475 | L42: -274.025372 | M42: -5.106778017
A43: 11.4 | B43: 37.224132 | C43: 15.99648096 | D43: 99.978006 | E43: 16 | F43: 15.92449296 | G43: 0.0466054556 | H43: 310.224132 | I43: 3.223475858 | J43: 1.68345648 | K43: -0.094581 | L43: -273.833945 | M43: -5.242556281
A44: 11.7 | B44: 37.214198 | C44: 15.99640272 | D44: 99.977517 | E44: 16 | F44: 15.92449296 | G44: 0.04764165037 | H44: 310.214198 | I44: 3.223579083 | J44: 1.673672205 | K44: -0.094581 | L44: -273.717533 | M44: -5.379692911
A45: 12 | B45: 37.201742 | C45: 15.99633984 | D45: 99.977124 | E45: 16 | F45: 15.92449296 | G45: 0.0484744204 | H45: 310.201742 | I45: 3.223708524 | J45: 1.665957974 | K45: -0.09438 | L45: -273.70287 | M45: -5.519207204
A46: 12.3 | B46: 37.189401 | C46: 15.99628448 | D46: 99.976778 | E46: 16 | F46: 15.92449296 | G46: 0.04920759707 | H46: 310.189401 | I46: 3.223836781 | J46: 1.659272456 | K46: -0.09438 | L46: -273.769455 | M46: -5.660460973
A47: 12.6 | B47: 37.176812 | C47: 15.99624256 | D47: 99.976516 | E47: 16 | F47: 15.92449296 | G47: 0.04976277709 | H47: 310.176812 | I47: 3.223967625 | J47: 1.654274245 | K47: -0.094153 | L47: -273.935118 | M47: -5.804009712
A48: 12.9 | B48: 37.163236 | C48: 15.99620256 | D48: 99.976266 | E48: 16 | F48: 15.92449296 | G48: 0.05029252901 | H48: 310.163236 | I48: 3.22410874 | J48: 1.649555323 | K48: -0.094153 | L48: -274.153462 | M48: -5.949124073
A49: 13.2 | B49: 37.148366 | C49: 15.99616816 | D49: 99.976051 | E49: 16 | F49: 15.92449296 | G49: 0.05074811567 | H49: 310.148366 | I49: 3.224263319 | J49: 1.645535584 | K49: -0.093906 | L49: -274.382143 | M49: -6.095005449
A50: 13.5 | B50: 37.13165 | C50: 15.9961424 | D50: 99.97589 | E50: 16 | F50: 15.92449296 | G50: 0.05108927591 | H50: 310.13165 | I50: 3.224437106 | J50: 1.642548381 | K50: -0.093906 | L50: -274.535771 | M50: -6.239836327
A51: 13.8 | B51: 37.115611 | C51: 15.9961272 | D51: 99.975795 | E51: 16 | F51: 15.92449296 | G51: 0.05129058165 | H51: 310.115611 | I51: 3.224603872 | J51: 1.640794836 | K51: -0.093648 | L51: -274.594446 | M51: -6.382625632
A52: 14.1 | B52: 37.101298 | C52: 15.99610816 | D52: 99.975676 | E52: 16 | F52: 15.92449296 | G52: 0.05154274356 | H52: 310.101298 | I52: 3.224752706 | J52: 1.638607712 | K52: -0.093648 | L52: -274.579701 | M52: -6.52355164
A53: 14.4 | B53: 37.086248 | C53: 15.99608704 | D53: 99.975544 | E53: 16 | F53: 15.92449296 | G53: 0.05182245258 | H53: 310.086248 | I53: 3.224909219 | J53: 1.636193799 | K53: -0.093383 | L53: -274.450913 | M53: -6.661936905
A54: 14.7 | B54: 37.072 | C54: 15.99605744 | D54: 99.975359 | E54: 16 | F54: 15.92449296 | G54: 0.05221446901 | H54: 310.072 | I54: 3.225057406 | J54: 1.632831899 | K54: -0.093383 | L54: -274.270742 | M54: -6.798887339
A55: 15 | B55: 37.060775 | C55: 15.99602032 | D55: 99.975127 | E55: 16 | F55: 15.92449296 | G55: 0.0527060788 | H55: 310.060775 | I55: 3.225174161 | J55: 1.628650408 | K55: -0.093112 | L55: -274.051728 | M55: -6.934215906
A56: 15.3 | B56: 37.053191 | C56: 15.99597552 | D56: 99.974847 | E56: 16 | F56: 15.92449296 | G56: 0.05329940096 | H56: 310.053191 | I56: 3.22525305 | J56: 1.623653972 | K56: -0.093112 | L56: -273.773985 | M56: -7.067198055
A57: 15.6 | B57: 37.048499 | C57: 15.99593072 | D57: 99.974567 | E57: 16 | F57: 15.92449296 | G57: 0.05389272312 | H57: 310.048499 | I57: 3.225301858 | J57: 1.618711287 | K57: -0.092831 | L57: -273.533428 | M57: -7.200371009
A58: 15.9 | B58: 37.046711 | C58: 15.99589632 | D58: 99.974352 | E58: 16 | F58: 15.92449296 | G58: 0.05434830977 | H58: 310.046711 | I58: 3.225320458 | J58: 1.614951754 | K58: -0.092831 | L58: -273.300023 | M58: -7.332947144
A59: 16.2 | B59: 37.048315 | C59: 15.99585248 | D59: 99.974078 | E59: 16 | F59: 15.92449296 | G59: 0.05492891789 | H59: 310.048315 | I59: 3.225303772 | J59: 1.610204637 | K59: -0.092539 | L59: -273.085026 | M59: -7.465124429
A60: 16.5 | B60: 37.053496 | C60: 15.99580768 | D60: 99.973798 | E60: 16 | F60: 15.92449296 | G60: 0.05552224005 | H60: 310.053496 | I60: 3.225249878 | J60: 1.605403623 | K60: -0.092539 | L60: -272.969504 | M60: -7.599109647
A61: 16.8 | B61: 37.05985 | C61: 15.99575136 | D61: 99.973446 | E61: 16 | F61: 15.92449296 | G61: 0.05626813076 | H61: 310.05985 | I61: 3.225183783 | J61: 1.599438201 | K61: -0.092237 | L61: -272.867296 | M61: -7.733079358
A62: 17.1 | B62: 37.068046 | C62: 15.99569904 | D62: 99.973119 | E62: 16 | F62: 15.92449296 | G62: 0.05696104628 | H62: 310.068046 | I62: 3.225098532 | J62: 1.593964786 | K62: -0.092237 | L62: -272.825696 | M62: -7.868255693
A63: 17.4 | B63: 37.077303 | C63: 15.99564752 | D63: 99.972797 | E63: 16 | F63: 15.92449296 | G63: 0.05764336676 | H63: 310.077303 | I63: 3.22500225 | J63: 1.588637781 | K63: -0.091922 | L63: -272.783318 | M63: -8.003078824
A64: 17.7 | B64: 37.086064 | C64: 15.99559216 | D64: 99.972451 | E64: 16 | F64: 15.92449296 | G64: 0.05837654343 | H64: 310.086064 | I64: 3.224911133 | J64: 1.582981415 | K64: -0.091922 | L64: -272.692392 | M64: -8.136454909
A65: 18 | B65: 37.091058 | C65: 15.99553584 | D65: 99.972099 | E65: 16 | F65: 15.92449296 | G65: 0.05912243415 | H65: 310.091058 | I65: 3.224859196 | J65: 1.577297143 | K65: -0.0916 | L65: -272.571012 | M65: -8.269593406
A66: 18.3 | B66: 37.092353 | C66: 15.99547968 | D66: 99.971748 | E66: 16 | F66: 15.92449296 | G66: 0.05986620585 | H66: 310.092353 | I66: 3.224845728 | J66: 1.571697746 | K66: -0.0916 | L66: -272.426113 | M66: -8.402686702
A67: 18.6 | B67: 37.091979 | C67: 15.99542432 | D67: 99.971402 | E67: 16 | F67: 15.92449296 | G67: 0.06059938252 | H67: 310.091979 | I67: 3.224849618 | J67: 1.566243624 | K67: -0.091274 | L67: -272.234371 | M67: -8.53454023
A68: 18.9 | B68: 37.090191 | C68: 15.99536896 | D68: 99.971056 | E68: 16 | F68: 15.92449296 | G68: 0.06133255919 | H68: 310.090191 | I68: 3.224868213 | J68: 1.56085297 | K68: -0.091274 | L68: -272.053601 | M68: -8.666883341
A69: 19.2 | B69: 37.085751 | C69: 15.99530512 | D69: 99.970657 | E69: 16 | F69: 15.92449296 | G69: 0.06217804327 | H69: 310.085751 | I69: 3.224914388 | J69: 1.554713406 | K69: -0.090947 | L69: -271.908468 | M69: -8.800844643
A70: 19.5 | B70: 37.079027 | C70: 15.99522784 | D70: 99.970174 | E70: 16 | F70: 15.92449296 | G70: 0.06320152399 | H70: 310.079027 | I70: 3.22498432 | J70: 1.547388354 | K70: -0.090947 | L70: -271.855958 | M70: =(L70*A70)/(B70*C70) -> -8.938295472
A71: 19.8 | B71: 37.070888 | C71: 15.9951496 | D71: 99.969685 | E71: =E70 -> 16 | F71: =F70 -> 15.92449296 | G71: =(E71-C71)/(E71-F71) -> 0.06423771876 | H71: =273+B71 -> 310.070888 | I71: =1000/H71 -> 3.225068972 | J71: =-LOG(-LOG(1-G71)/H71*H71) -> 1.540088112 | K71: -0.090627 | L71: -271.94184 | M71: -9.08071251
A72: 20.1 | B72: 37.060091 | C72: 15.99507056 | D72: 99.969191 | E72: 16 | F72: 15.92449296 | G72: 0.06528450857 | H72: 310.060091 | I72: 3.225181276 | J72: 1.532827747 | K72: -0.090627 | L72: -272.123441 | M72: -9.227188011
A73: 20.4 | B73: 37.047444 | C73: 15.99499312 | D73: 99.968707 | E73: 16 | F73: 15.92449296 | G73: 0.0663101083 | H73: 310.047444 | I73: 3.225312833 | J73: 1.525822461 | K73: -0.090316 | L73: -272.417075 | M73: -9.378258192
A74: 20.7 | B74: 37.033938 | C74: 15.9949112 | D74: 99.968195 | E74: 16 | F74: 15.92449296 | G74: 0.06739504025 | H74: 310.033938 | I74: 3.225453337 | J74: 1.518524704 | K74: -0.090316 | L74: -272.830125 | M74: -9.534127138
A75: 21 | B75: 37.019873 | C75: 15.99483296 | D75: 99.967706 | E75: 16 | F75: 15.92449296 | G75: 0.06843123502 | H75: 310.019873 | I75: 3.22559967 | J75: 1.511659691 | K75: -0.090017 | L75: -273.300416 | M75: -9.692704083
A76: 21.3 | B76: 37.00655 | C76: 15.99475488 | D76: 99.967218 | E76: 16 | F76: 15.92449296 | G76: 0.06946531078 | H76: 310.00655 | I76: 3.225738295 | J76: 1.504907782 | K76: -0.090017 | L76: -273.8028 | M76: -9.852837054
A77: 21.6 | B77: 36.993281 | C77: 15.99467376 | D77: 99.966711 | E77: 16 | F77: 15.92449296 | G77: 0.07053964769 | H77: 309.993281 | I77: 3.22587637 | J77: 1.497994664 | K77: -0.089728 | L77: -274.350181 | M77: -10.01522625
A78: 21.9 | B78: 36.981498 | C78: 15.99458416 | D78: 99.966151 | E78: 16 | F78: 15.92449296 | G78: 0.07172629201 | H78: 309.981498 | I78: 3.225998992 | J78: 1.490475572 | K78: -0.089728 | L78: -274.871229 | M78: -10.1769103
A79: 22.2 | B79: 36.970883 | C79: 15.99450496 | D79: 99.965656 | E79: 16 | F79: 15.92449296 | G79: 0.07277520083 | H79: 309.970883 | I79: 3.226109467 | J79: 1.483928102 | K79: -0.089448 | L79: -275.36086 | M79: -10.33771506
A80: 22.5 | B80: 36.962245 | C80: 15.99442384 | D80: 99.965149 | E80: 16 | F80: 15.92449296 | G80: 0.07384953774 | H80: 309.962245 | I80: 3.226199371 | J80: 1.477315182 | K80: -0.089448 | L80: -275.684777 | M80: -10.49224352
A81: 22.8 | B81: 36.955398 | C81: 15.99434576 | D81: 99.964661 | E81: 16 | F81: 15.92449296 | G81: 0.0748836135 | H81: 309.955398 | I81: 3.226270639 | J81: 1.471036707 | K81: -0.089177 | L81: -275.866842 | M81: -10.64118482
A82: 23.1 | B82: 36.950767 | C82: 15.9942704 | D82: 99.96419 | E82: 16 | F82: 15.92449296 | G82: 0.07588166613 | H82: 309.950767 | I82: 3.226318843 | J82: 1.46505531 | K82: -0.089177 | L82: -275.858488 | M82: -10.78227588
A83: 23.4 | B83: 36.948054 | C83: 15.99419312 | D83: 99.963707 | E83: 16 | F83: 15.92449296 | G83: 0.07690514686 | H83: 309.948054 | I83: 3.226347083 | J83: 1.458999321 | K83: -0.088916 | L83: -275.752199 | M83: -10.91895149
A84: 23.7 | B84: 36.947806 | C84: 15.99411488 | D84: 99.963218 | E84: 16 | F84: 15.92449296 | G84: 0.07794134163 | H84: 309.947806 | I84: 3.226349665 | J84: 1.452946235 | K84: -0.088916 | L84: -275.491005 | M84: -11.04859117
A85: 24 | B85: 36.95194 | C85: 15.99402912 | D85: 99.962682 | E85: 16 | F85: 15.92449296 | G85: 0.07907712976 | H85: 309.95194 | I85: 3.226306633 | J85: 1.446399216 | K85: -0.088668 | L85: -275.149995 | M85: -11.17340715
A86: 24.3 | B86: 36.960266 | C86: 15.99395088 | D86: 99.962193 | E86: 16 | F86: 15.92449296 | G86: 0.08011332453 | H86: 309.960266 | I86: 3.22621997 | J86: 1.440504273 | K86: -0.088668 | L86: -274.738369 | M86: -11.29366089
A87: 24.6 | B87: 36.969393 | C87: 15.99387648 | D87: 99.961728 | E87: 16 | F87: 15.92449296 | G87: 0.08109866312 | H87: 309.969393 | I87: 3.226124974 | J87: 1.434965869 | K87: -0.088429 | L87: -274.298101 | M87: -11.4120023
A88: 24.9 | B88: 36.979018 | C88: 15.99380976 | D88: 99.961311 | E88: 16 | F88: 15.92449296 | G88: 0.08198228933 | H88: 309.979018 | I88: 3.226024801 | J88: 1.430053572 | K88: -0.088429 | L88: -273.884187 | M88: -11.53078848
A89: 25.2 | B89: 36.98852 | C89: 15.99374384 | D89: 99.960899 | E89: 16 | F89: 15.92449296 | G89: 0.08285532051 | H89: 309.98852 | I89: 3.225925915 | J89: 1.425249569 | K89: -0.088197 | L89: -273.516539 | M89: -11.65110303
A90: 25.5 | B90: 36.995673 | C90: 15.99367616 | D90: 99.960476 | E90: 16 | F90: 15.92449296 | G90: 0.08375166077 | H90: 309.995673 | I90: 3.225851478 | J90: 1.420367295 | K90: -0.088197 | L90: -273.160002 | M90: -11.77221154
A91: 25.8 | B91: 37.00122 | C91: 15.99360944 | D91: 99.960059 | E91: 16 | F91: 15.92449296 | G91: 0.08463528699 | H91: 310.00122 | I91: 3.225793757 | J91: 1.415602805 | K91: -0.08797 | L91: -272.868737 | M91: -11.89627394
A92: 26.1 | B92: 37.004365 | C92: 15.99353888 | D92: 99.959618 | E92: 16 | F92: 15.92449296 | G92: 0.08556976939 | H92: 310.004365 | I92: 3.225761031 | J92: 1.410615407 | K92: -0.08797 | L92: -272.656427 | M92: -12.02427001
A93: 26.4 | B93: 37.006153 | C93: 15.99345968 | D93: 99.959123 | E93: 16 | F93: 15.92449296 | G93: 0.08661867821 | H93: 310.006153 | I93: 3.225742426 | J93: 1.405078731 | K93: -0.087747 | L93: -272.522315 | M93: -12.15597047
A94: 26.7 | B94: 37.004678 | C94: 15.99337776 | D94: 99.958611 | E94: 16 | F94: 15.92449296 | G94: 0.08770361015 | H94: 310.004678 | I94: 3.225757774 | J94: 1.399418649 | K94: -0.087747 | L94: -272.473797 | M94: -12.29247066
A95: 27 | B95: 36.99931 | C95: 15.99328992 | D95: 99.958062 | E95: 16 | F95: 15.92449296 | G95: 0.08886694539 | H95: 309.99931 | I95: 3.225813632 | J95: 1.393423058 | K95: -0.087532 | L95: -272.515801 | M95: -12.43437663
A96: 27.3 | B96: 36.990859 | C96: 15.99320032 | D96: 99.957502 | E96: 16 | F96: 15.92449296 | G96: 0.0900535897 | H96: 309.990859 | I96: 3.225901574 | J96: 1.387383708 | K96: -0.087532 | L96: -272.657058 | M96: -12.58199759
A97: 27.6 | B97: 36.98167 | C97: 15.99310688 | D97: 99.956918 | E97: 16 | F97: 15.92449296 | G97: 0.09129109021 | H97: 309.98167 | I97: 3.225997202 | J97: 1.38116551 | K97: -0.087326 | L97: -272.886802 | M97: -12.73421727
A98: 27.9 | B98: 36.971678 | C98: 15.99300672 | D98: 99.956292 | E98: 16 | F98: 15.92449296 | G98: 0.09261758904 | H98: 309.971678 | I98: 3.226101192 | J98: 1.374588316 | K98: -0.087326 | L98: -273.160539 | M98: -12.88910859
A99: 28.2 | B99: 36.962547 | C99: 15.99289904 | D99: 99.955619 | E99: 16 | F99: 15.92449296 | G99: 0.09404368122 | H99: 309.962547 | I99: 3.226196228 | J99: 1.367616194 | K99: -0.087128 | L99: -273.480251 | M99: -13.0462589
A100: 28.5 | B100: 36.95484 | C100: 15.9927864 | D100: 99.954915 | E100: 16 | F100: 15.92449296 | G100: 0.09553546265 | H100: 309.95484 | I100: 3.226276447 | J100: 1.360429285 | K100: -0.087128 | L100: -273.819025 | M100: -13.20422806
A101: 28.8 | B101: 36.949407 | C101: 15.99268624 | D101: 99.954289 | E101: 16 | F101: 15.92449296 | G101: 0.09686196148 | H101: 309.949407 | I101: 3.226333 | J101: 1.354127304 | K101: -0.086931 | L101: -274.139999 | M101: -13.36090896
A102: 29.1 | B102: 36.946446 | C102: 15.99258624 | D102: 99.953664 | E102: 16 | F102: 15.92449296 | G102: 0.0981863413 | H102: 309.946446 | I102: 3.226363822 | J102: 1.347916272 | K102: -0.086931 | L102: -274.373892 | M102: -13.51277057
A103: 29.4 | B103: 36.943917 | C103: 15.99248512 | D103: 99.953032 | E103: 16 | F103: 15.92449296 | G103: 0.09952555417 | H103: 309.943917 | I103: 3.226390147 | J103: 1.341715634 | K103: -0.08673 | L103: -274.581848 | M103: -13.66344644
A104: 29.7 | B104: 36.941017 | C104: 15.99238976 | D104: 99.952436 | E104: 16 | F104: 15.92449296 | G104: 0.1007884828 | H104: 309.941017 | I104: 3.226420335 | J104: 1.335939925 | K104: -0.08673 | L104: -274.687462 | M104: -13.80934478
A105: 30 | B105: 36.937693 | C105: 15.99228864 | D105: 99.951804 | E105: 16 | F105: 15.92449296 | G105: 0.1021276956 | H105: 309.937693 | I105: 3.226454938 | J105: 1.329889426 | K105: -0.086518 | L105: -274.706233 | M105: -13.95112986
A106: 30.3 | B106: 36.933188 | C106: 15.99218848 | D106: 99.951178 | E106: 16 | F106: 15.92449296 | G106: 0.1034541945 | H106: 309.933188 | I106: 3.226501836 | J106: 1.323969612 | K106: -0.086518 | L106: -274.674126 | M106: -14.09080106
A107: 30.6 | B107: 36.927759 | C107: 15.99209504 | D107: 99.950594 | E107: 16 | F107: 15.92449296 | G107: 0.104691695 | H107: 309.927759 | I107: 3.226558354 | J107: 1.318511042 | K107: -0.086296 | L107: -274.596692 | M107: -14.22847688
A108: 30.9 | B108: 36.923686 | C108: 15.99200624 | D108: 99.950039 | E108: 16 | F108: 15.92449296 | G108: 0.1058677443 | H108: 309.923686 | I108: 3.226600757 | J108: 1.313379479 | K108: -0.086296 | L108: -274.463326 | M108: -14.36265742
A109: 31.2 | B109: 36.920048 | C109: 15.99192048 | D109: 99.949503 | E109: 16 | F109: 15.92449296 | G109: 0.1070035324 | H109: 309.920048 | I109: 3.226638633 | J109: 1.308474189 | K109: -0.086063 | L109: -274.334055 | M109: -14.49677634
A110: 31.5 | B110: 36.916288 | C110: 15.99183088 | D110: 99.948943 | E110: 16 | F110: 15.92449296 | G110: 0.1081901767 | H110: 309.916288 | I110: 3.22667778 | J110: 1.303401206 | K110: -0.086063 | L110: -274.220747 | M110: -14.63169534
A111: 31.8 | B111: 36.912273 | C111: 15.99174496 | D111: 99.948406 | E111: 16 | F111: 15.92449296 | G111: 0.1093280838 | H111: 309.912273 | I111: 3.226719582 | J111: 1.298585373 | K111: -0.085823 | L111: -274.169678 | M111: -14.76997968
A112: 32.1 | B112: 36.908937 | C112: 15.99166688 | D112: 99.947918 | E112: 16 | F112: 15.92449296 | G112: 0.1103621596 | H112: 309.908937 | I112: 3.226754316 | J112: 1.294249554 | K112: -0.085823 | L112: -274.180961 | M112: -14.91135311
A113: 32.4 | B113: 36.907153 | C113: 15.9915896 | D113: 99.947435 | E113: 16 | F113: 15.92449296 | G113: 0.1113856403 | H113: 309.907153 | I113: 3.226772891 | J113: 1.289995473 | K113: -0.085578 | L113: -274.21761 | M113: -15.0535237
A114: 32.7 | B114: 36.904746 | C114: 15.9915104 | D114: 99.94694 | E114: 16 | F114: 15.92449296 | G114: 0.1124345491 | H114: 309.904746 | I114: 3.226797953 | J114: 1.285673499 | K114: -0.085578 | L114: -274.259213 | M114: -15.1962795
A115: 33 | B115: 36.900864 | C115: 15.99143328 | D115: 99.946458 | E115: 16 | F115: 15.92449296 | G115: 0.1134559109 | H115: 309.900864 | I115: 3.226838374 | J115: 1.281501123 | K115: -0.085327 | L115: -274.304928 | M115: -15.33993871
A116: 33.3 | B116: 36.89605 | C116: 15.99134736 | D116: 99.945921 | E116: 16 | F116: 15.92449296 | G116: 0.114593818 | H116: 309.89605 | I116: 3.2268885 | J116: 1.276893792 | K116: -0.085327 | L116: -274.312863 | M116: -15.48194339
A117: 33.6 | B117: 36.891052 | C117: 15.99125776 | D117: 99.945361 | E117: 16 | F117: 15.92449296 | G117: 0.1157804623 | H117: 309.891052 | I117: 3.226940544 | J117: 1.272134419 | K117: -0.085072 | L117: -274.269504 | M117: -15.62115476
A118: 33.9 | B118: 36.885008 | C118: 15.99116896 | D118: 99.944806 | E118: 16 | F118: 15.92449296 | G118: 0.1169565116 | H118: 309.885008 | I118: 3.227003483 | J118: 1.267462242 | K118: -0.085072 | L118: -274.189235 | M118: -15.75868607
A119: 34.2 | B119: 36.877359 | C119: 15.99108704 | D119: 99.944294 | E119: 16 | F119: 15.92449296 | G119: 0.1180414436 | H119: 309.877359 | I119: 3.227083138 | J119: 1.263190739 | K119: -0.084813 | L119: -274.08394 | M119: -15.89541593
A120: 34.5 | B120: 36.869706 | C120: 15.99100592 | D120: 99.943787 | E120: 16 | F120: 15.92449296 | G120: 0.1191157805 | H120: 309.869706 | I120: 3.227162839 | J120: 1.258996843 | K120: -0.084813 | L120: -273.963569 | M120: -16.03121548
A121: 34.8 | B121: 36.862672 | C121: 15.99092384 | D121: 99.943274 | E121: 16 | F121: 15.92449296 | G121: 0.1202028314 | H121: 309.862672 | I121: 3.227236096 | J121: 1.254789005 | K121: -0.084551 | L121: -273.860845 | M121: -16.16772155
A122: 35.1 | B122: 36.856134 | C122: 15.99084944 | D122: 99.942809 | E122: 16 | F122: 15.92449296 | G122: 0.12118817 | H122: 309.856134 | I122: 3.227304191 | J122: 1.251005357 | K122: -0.084551 | L122: -273.761702 | M122: -16.30416254
A123: 35.4 | B123: 36.849593 | C123: 15.99078176 | D123: 99.942386 | E123: 16 | F123: 15.92449296 | G123: 0.1220845103 | H123: 309.849593 | I123: 3.227372321 | J123: 1.247588217 | K123: -0.084286 | L123: -273.692707 | M123: -16.44235783
A124: 35.7 | B124: 36.845707 | C124: 15.99071504 | D124: 99.941969 | E124: 16 | F124: 15.92449296 | G124: 0.1229681365 | H124: 309.845707 | I124: 3.227412797 | J124: 1.244242283 | K124: -0.084286 | L124: -273.685689 | M124: -16.58309263
A125: 36 | B125: 36.842379 | C125: 15.99065968 | D125: 99.941623 | E125: 16 | F125: 15.92449296 | G125: 0.1237013131 | H125: 309.842379 | I125: 3.227447463 | J125: 1.241482942 | K125: -0.084018 | L125: -273.764789 | M125: -16.72884833
A126: 36.3 | B126: 36.836453 | C126: 15.99061488 | D126: 99.941343 | E126: 16 | F126: 15.92449296 | G126: 0.1242946353 | H126: 309.836453 | I126: 3.227509192 | J126: 1.239261036 | K126: -0.084018 | L126: -273.834218 | M126: -16.87529495
A127: 36.6 | B127: 36.827081 | C127: 15.99057296 | D127: 99.941081 | E127: 16 | F127: 15.92449296 | G127: 0.1248498153 | H127: 309.827081 | I127: 3.227606821 | J127: 1.237190858 | K127: -0.083754 | L127: -274.021488 | M127: -17.0307739
A128: 36.9 | B128: 36.816719 | C128: 15.99054048 | D128: 99.940878 | E128: 16 | F128: 15.92449296 | G128: 0.1252799739 | H128: 309.816719 | I128: 3.22771477 | J128: 1.235592725 | K128: -0.083754 | L128: -274.216691 | M128: -17.18747289
A129: 37.2 | B129: 36.806793 | C129: 15.9905072 | D129: 99.94067 | E129: 16 | F129: 15.92449296 | G129: 0.1257207275 | H129: 309.806793 | I129: 3.227818184 | J129: 1.233960496 | K129: -0.083497 | L129: -274.408566 | M129: -17.34404478
A130: 37.5 | B130: 36.796492 | C130: 15.9904728 | D130: 99.940455 | E130: 16 | F130: 15.92449296 | G130: 0.1261763142 | H130: 309.796492 | I130: 3.227925512 | J130: 1.232278898 | K130: -0.083497 | L130: -274.565766 | M130: -17.49886708
A131: 37.8 | B131: 36.785507 | C131: 15.99044704 | D131: 99.940294 | E131: 16 | F131: 15.92449296 | G131: 0.1265174744 | H131: 309.785507 | I131: 3.228039974 | J131: 1.231023334 | K131: -0.08325 | L131: -274.645414 | M131: -17.64927215
A132: 38.1 | B132: 36.775818 | C132: 15.99041376 | D132: 99.940086 | E132: 16 | F132: 15.92449296 | G132: 0.126958228 | H132: 309.775818 | I132: 3.228140939 | J132: 1.229405872 | K132: -0.08325 | L132: -274.631685 | M132: -17.79318008
A133: 38.4 | B133: 36.769838 | C133: 15.99037648 | D133: 99.939853 | E133: 16 | F133: 15.92449296 | G133: 0.1274519568 | H133: 309.769838 | I133: 3.228203257 | J133: 1.227600163 | K133: -0.083017 | L133: -274.565811 | M133: -17.93193999
A134: 38.7 | B134: 36.765085 | C134: 15.99032496 | D134: 99.939531 | E134: 16 | F134: 15.92449296 | G134: 0.1281342773 | H134: 309.765085 | I134: 3.22825279 | J134: 1.225115345 | K134: -0.083017 | L134: -274.437246 | M134: =(L134*A134)/(B134*C134) -> -18.06596454
A135: 39 | B135: 36.761379 | C135: 15.99026112 | D135: 99.939132 | E135: =E134 -> 16 | F135: =F134 -> 15.92449296 | G135: =(E135-C135)/(E135-F135) -> 0.1289797614 | H135: =273+B135 -> 309.761379 | I135: =1000/H135 -> 3.228291413 | J135: =-LOG(-LOG(1-G135)/H135*H135) -> 1.222053251 | K135: -0.082799 | L135: -274.300364 | M135: -18.19883723
A136: 39.3 | B136: 36.76107 | C136: 15.9901944 | D136: 99.938715 | E136: 16 | F136: 15.92449296 | G136: 0.1298633876 | H136: 309.76107 | I136: 3.228294634 | J136: 1.21887278 | K136: -0.082799 | L136: -274.098716 | M136: -18.32557726
A137: 39.6 | B137: 36.76298 | C137: 15.99012656 | D137: 99.938291 | E137: 16 | F137: 15.92449296 | G137: 0.1307618468 | H137: 309.76298 | I137: 3.228274728 | J137: 1.215659349 | K137: -0.082593 | L137: -273.902163 | M137: -18.4513454
A138: 39.9 | B138: 36.765758 | C138: 15.9900456 | D138: 99.937785 | E138: 16 | F138: 15.92449296 | G138: 0.1318340647 | H138: 309.765758 | I138: 3.228245777 | J138: 1.211851018 | K138: -0.082593 | L138: -273.774316 | M138: -18.58114069
A139: 40.2 | B139: 36.766744 | C139: 15.98995584 | D139: 99.937224 | E139: 16 | F139: 15.92449296 | G139: 0.1330228281 | H139: 309.766744 | I139: 3.228235501 | J139: 1.207661987 | K139: -0.082397 | L139: -273.690931 | M139: -18.71474976
A140: 40.5 | B140: 36.767057 | C140: 15.9898672 | D140: 99.93667 | E140: 16 | F140: 15.92449296 | G140: 0.1341967583 | H140: 309.767057 | I140: 3.228232239 | J140: 1.203558942 | K140: -0.082397 | L140: -273.635548 | M140: -18.85054079
A141: 40.8 | B141: 36.766564 | C141: 15.9897776 | D141: 99.93611 | E141: 16 | F141: 15.92449296 | G141: 0.1353834027 | H141: 309.766564 | I141: 3.228237377 | J141: 1.199444906 | K141: -0.082215 | L141: -273.639449 | M141: -18.99080621
A142: 41.1 | B142: 36.763729 | C142: 15.989688 | D142: 99.93555 | E142: 16 | F142: 15.92449296 | G142: 0.136570047 | H142: 309.763729 | I142: 3.228266922 | J142: 1.195363906 | K142: -0.082215 | L142: -273.737481 | M142: -19.13888102
A143: 41.4 | B143: 36.759782 | C143: 15.98960976 | D143: 99.935061 | E143: 16 | F143: 15.92449296 | G143: 0.1376062417 | H143: 309.759782 | I143: 3.228308057 | J143: 1.191826883 | K143: -0.082043 | L143: -273.882129 | M143: -19.29093353
A144: 41.7 | B144: 36.754972 | C144: 15.98953248 | D144: 99.934578 | E144: 16 | F144: 15.92449296 | G144: 0.1386297225 | H144: 309.754972 | I144: 3.228358188 | J144: 1.188357187 | K144: -0.082043 | L144: -274.048781 | M144: -19.44518448
A145: 42 | B145: 36.749978 | C145: 15.98945344 | D145: 99.934084 | E145: 16 | F145: 15.92449296 | G145: 0.1396765123 | H145: 309.749978 | I145: 3.228410237 | J145: 1.184832699 | K145: -0.081881 | L145: -274.17912 | M145: -19.59715224
A146: 42.3 | B146: 36.743811 | C146: 15.98937616 | D146: 99.933601 | E146: 16 | F146: 15.92449296 | G146: 0.140699993 | H146: 309.743811 | I146: 3.228474515 | J146: 1.181410028 | K146: -0.081881 | L146: -274.341508 | M146: -19.75223167
A147: 42.6 | B147: 36.735727 | C147: 15.98930544 | D147: 99.933159 | E147: 16 | F147: 15.92449296 | G147: 0.1416365944 | H147: 309.735727 | I147: 3.228558777 | J147: 1.178297822 | K147: -0.081726 | L147: -274.519198 | M147: -19.90967097
A148: 42.9 | B148: 36.727153 | C148: 15.98923888 | D148: 99.932743 | E148: 16 | F148: 15.92449296 | G148: 0.1425181016 | H148: 309.727153 | I148: 3.228648151 | J148: 1.175385848 | K148: -0.081726 | L148: -274.670607 | M148: -20.06570506
A149: 43.2 | B149: 36.718453 | C149: 15.98917104 | D149: 99.932319 | E149: 16 | F149: 15.92449296 | G149: 0.1434165609 | H149: 309.718453 | I149: 3.228738844 | J149: 1.172434781 | K149: -0.081573 | L149: -274.823089 | M149: -20.22211798
A150: 43.5 | B150: 36.708824 | C150: 15.98910432 | D150: 99.931902 | E150: 16 | F150: 15.92449296 | G150: 0.1443001871 | H150: 309.708824 | I150: 3.228839227 | J150: 1.169548871 | K150: -0.081573 | L150: -274.967889 | M150: -20.37870716
A151: 43.8 | B151: 36.699632 | C151: 15.98904144 | D151: 99.931509 | E151: 16 | F151: 15.92449296 | G151: 0.1451329571 | H151: 309.699632 | I151: 3.228935061 | J151: 1.166843796 | K151: -0.081423 | L151: -275.079013 | M151: -20.5327647
A152: 44.1 | B152: 36.690565 | C152: 15.98896224 | D152: 99.931014 | E152: 16 | F152: 15.92449296 | G152: 0.146181866 | H152: 309.690565 | I152: 3.229029596 | J152: 1.163456731 | K152: -0.081423 | L152: -275.211923 | M152: -20.68860262
A153: 44.4 | B153: 36.685132 | C153: 15.98888496 | D153: 99.930531 | E153: 16 | F153: 15.92449296 | G153: 0.1472053467 | H153: 309.685132 | I153: 3.229086245 | J153: 1.160173079 | K153: -0.081273 | L153: -275.300721 | M153: -20.83924857
A154: 44.7 | B154: 36.68143 | C154: 15.98879248 | D154: 99.929953 | E154: 16 | F154: 15.92449296 | G154: 0.1484301331 | H154: 309.68143 | I154: 3.229124846 | J154: 1.156270811 | K154: -0.081111 | L154: -275.398488 | M154: -20.98974444
A155: 45 | B155: 36.679764 | C155: 15.98869232 | D155: 99.929327 | E155: 16 | F155: 15.92449296 | G155: 0.149756632 | H155: 309.679764 | I155: 3.229142218 | J155: 1.152077413 | K155: -0.080945 | L155: -275.510303 | M155: -21.14028706
A156: 45.3 | B156: 36.680253 | C156: 15.98858736 | D156: 99.928671 | E156: 16 | F156: 15.92449296 | G156: 0.151146701 | H156: 309.680253 | I156: 3.229137119 | J156: 1.147719149 | K156: -0.080774 | L156: -275.551843 | M156: -21.28428695
A157: 45.6 | B157: 36.681796 | C157: 15.98847584 | D157: 99.927974 | E157: 16 | F157: 15.92449296 | G157: 0.1526236494 | H157: 309.681796 | I157: 3.22912103 | J157: 1.143128215 | K157: -0.080596 | L157: -275.577392 | M157: -21.42647715
A158: 45.9 | B158: 36.685686 | C158: 15.98836032 | D158: 99.927252 | E158: 16 | F158: 15.92449296 | G158: 0.154153573 | H158: 309.685686 | I158: 3.229080468 | J158: 1.138414929 | K158: -0.08041 | L158: -275.576636 | M158: -21.56525055
A159: 46.2 | B159: 36.690748 | C159: 15.98824896 | D159: 99.926556 | E159: 16 | F159: 15.92449296 | G159: 0.1556284023 | H159: 309.690748 | I159: 3.229027688 | J159: 1.133911338 | K159: -0.080216 | L159: -275.558891 | M159: -21.70195886
A160: 46.5 | B160: 36.696923 | C160: 15.988144 | D160: 99.9259 | E160: 16 | F160: 15.92449296 | G160: 0.1570184714 | H160: 309.696923 | I160: 3.228963305 | J160: 1.129701804 | K160: -0.080015 | L160: -275.524745 | M160: -21.83664231
A161: 46.8 | B161: 36.705 | C161: 15.98804752 | D161: 99.925297 | E161: 16 | F161: 15.92449296 | G161: 0.158296233 | H161: 309.705 | I161: 3.228879095 | J161: 1.12586199 | K161: -0.079808 | L161: -275.414814 | M161: -21.96405339
A162: 47.1 | B162: 36.711663 | C162: 15.98795888 | D162: 99.924743 | E162: 16 | F162: 15.92449296 | G162: 0.1594701633 | H162: 309.711663 | I162: 3.22880963 | J162: 1.122358798 | K162: -0.079594 | L162: -275.255669 | M162: -22.08818844
A163: 47.4 | B163: 36.71629 | C163: 15.98787984 | D163: 99.924249 | E163: 16 | F163: 15.92449296 | G163: 0.1605169531 | H163: 309.71629 | I163: 3.228761393 | J163: 1.119254586 | K163: -0.079376 | L163: -275.074938 | M163: -22.21159256
A164: 47.7 | B164: 36.719064 | C164: 15.98780544 | D164: 99.923784 | E164: 16 | F164: 15.92449296 | G164: 0.1615022917 | H164: 309.719064 | I164: 3.228732475 | J164: 1.116349238 | K164: -0.079153 | L164: -274.878754 | M164: -22.33464716
A165: 48 | B165: 36.719867 | C165: 15.9877472 | D165: 99.92342 | E165: 16 | F165: 15.92449296 | G165: 0.1622736105 | H165: 309.719867 | I165: 3.228724104 | J165: 1.114086065 | K165: -0.078927 | L165: -274.630171 | M165: -22.45438231
A166: 48.3 | B166: 36.719863 | C166: 15.98769472 | D166: 99.923092 | E166: 16 | F166: 15.92449296 | G166: 0.162968645 | H166: 309.719863 | I166: 3.228724145 | J166: 1.112055003 | K166: -0.0787 | L166: -274.33504 | M166: -22.57051735
A167: 48.6 | B167: 36.717761 | C167: 15.98764992 | D167: 99.922812 | E167: 16 | F167: 15.92449296 | G167: 0.1635619672 | H167: 309.717761 | I167: 3.228746058 | J167: 1.110327327 | K167: -0.078473 | L167: -274.033843 | M167: -22.68713471
A168: 48.9 | B168: 36.714242 | C168: 15.98760512 | D168: 99.922532 | E168: 16 | F168: 15.92449296 | G168: 0.1641552894 | H168: 309.714242 | I168: 3.228782744 | J168: 1.108605278 | K168: -0.078246 | L168: -273.74382 | M168: -22.80526921
A169: 49.2 | B169: 36.71221 | C169: 15.98756032 | D169: 99.922252 | E169: 16 | F169: 15.92449296 | G169: 0.1647486115 | H169: 309.71221 | I169: 3.228803927 | J169: 1.106888815 | K169: -0.078021 | L169: -273.47985 | M169: -22.92438591
A170: 49.5 | B170: 36.708572 | C170: 15.98751552 | D170: 99.921972 | E170: 16 | F170: 15.92449296 | G170: 0.1653419337 | H170: 309.708572 | I170: 3.228841855 | J170: 1.105177896 | K170: -0.077798 | L170: -273.236128 | M170: -23.04596255
A171: 49.8 | B171: 36.700736 | C171: 15.98747072 | D171: 99.921692 | E171: 16 | F171: 15.92449296 | G171: 0.1659352558 | H171: 309.700736 | I171: 3.22892355 | J171: 1.103472482 | K171: -0.077577 | L171: -273.040694 | M171: -23.17406315
A172: 50.1 | B172: 36.691421 | C172: 15.98743344 | D172: 99.921459 | E172: 16 | F172: 15.92449296 | G172: 0.1664289846 | H172: 309.691421 | I172: 3.229020671 | J172: 1.102057501 | K172: -0.07736 | L172: -272.90232 | M172: -23.30782092
A173: 50.4 | B173: 36.681059 | C173: 15.98739344 | D173: 99.921209 | E173: 16 | F173: 15.92449296 | G173: 0.1669587366 | H173: 309.681059 | I173: 3.229128715 | J173: 1.100543462 | K173: -0.077148 | L173: -272.810074 | M173: -23.44614311
A174: 50.7 | B174: 36.66983 | C174: 15.98734864 | D174: 99.920929 | E174: 16 | F174: 15.92449296 | G174: 0.1675520587 | H174: 309.66983 | I174: 3.229245807 | J174: 1.098852845 | K174: -0.076942 | L174: -272.747352 | M174: -23.58756771
A175: 51 | B175: 36.656136 | C175: 15.98730384 | D175: 99.920649 | E175: 16 | F175: 15.92449296 | G175: 0.1681453809 | H175: 309.656136 | I175: 3.229388614 | J175: 1.097167585 | K175: -0.076742 | L175: -272.764729 | M175: -23.73758186
A176: 51.3 | B176: 36.641758 | C176: 15.98725616 | D176: 99.920351 | E176: 16 | F176: 15.92449296 | G176: 0.1687768452 | H176: 309.641758 | I176: 3.229538569 | J176: 1.095379829 | K176: -0.076549 | L176: -272.855859 | M176: -23.89463568
A177: 51.6 | B177: 36.627694 | C177: 15.98719984 | D177: 99.919999 | E177: 16 | F177: 15.92449296 | G177: 0.1695227359 | H177: 309.627694 | I177: 3.229685262 | J177: 1.093275816 | K177: -0.07636 | L177: -272.982501 | M177: -24.05484313
A178: 51.9 | B178: 36.614983 | C178: 15.9871512 | D178: 99.919695 | E178: 16 | F178: 15.92449296 | G178: 0.1701669142 | H178: 309.614983 | I178: 3.229817854 | J178: 1.091465369 | K178: -0.076175 | L178: -273.144075 | M178: -24.21749523
A179: 52.2 | B179: 36.601041 | C179: 15.9871064 | D179: 99.919415 | E179: 16 | F179: 15.92449296 | G179: 0.1707602364 | H179: 309.601041 | I179: 3.2299633 | J179: 1.089803266 | K179: -0.075997 | L179: -273.32312 | M179: -24.38279962
A180: 52.5 | B180: 36.586728 | C180: 15.98705104 | D180: 99.919069 | E180: 16 | F180: 15.92449296 | G180: 0.1714934131 | H180: 309.586728 | I180: 3.230112629 | J180: 1.087756498 | K180: -0.075823 | L180: -273.505268 | M180: -24.54895817
A181: 52.8 | B181: 36.57303 | C181: 15.9870024 | D181: 99.918765 | E181: 16 | F181: 15.92449296 | G181: 0.1721375914 | H181: 309.57303 | I181: 3.230255556 | J181: 1.085964622 | K181: -0.075655 | L181: -273.713087 | M181: -24.71732699
A182: 53.1 | B182: 36.560938 | C182: 15.98694704 | D182: 99.918419 | E182: 16 | F182: 15.92449296 | G182: 0.1728707681 | H182: 309.560938 | I182: 3.230381735 | J182: 1.083932454 | K182: -0.075492 | L182: -273.870264 | M182: -24.88035289
A183: 53.4 | B183: 36.549158 | C183: 15.98689088 | D183: 99.918068 | E183: 16 | F183: 15.92449296 | G183: 0.1736145398 | H183: 309.549158 | I183: 3.230504668 | J183: 1.081878762 | K183: -0.075333 | L183: -273.979408 | M183: -25.03904686
A184: 53.7 | B184: 36.540214 | C184: 15.98683552 | D184: 99.917722 | E184: 16 | F184: 15.92449296 | G184: 0.1743477165 | H184: 309.540214 | I184: 3.230598012 | J184: 1.079861987 | K184: -0.075177 | L184: -274.020357 | M184: -25.18973045
A185: 54 | B185: 36.534475 | C185: 15.98679072 | D185: 99.917442 | E185: 16 | F185: 15.92449296 | G185: 0.1749410386 | H185: 309.534475 | I185: 3.23065791 | J185: 1.07823544 | K185: -0.075026 | L185: -273.95203 | M185: -25.32818806
A186: 54.3 | B186: 36.532255 | C186: 15.98674592 | D186: 99.917162 | E186: 16 | F186: 15.92449296 | G186: 0.1755343608 | H186: 309.532255 | I186: 3.23068108 | J186: 1.076613799 | K186: -0.074878 | L186: -273.787084 | M186: -25.45518354
A187: 54.6 | B187: 36.533428 | C187: 15.98670096 | D187: 99.916881 | E187: 16 | F187: 15.92449296 | G187: 0.1761298019 | H187: 309.533428 | I187: 3.230668837 | J187: 1.074991264 | K187: -0.074736 | L187: -273.541846 | M187: -25.57214392
A188: 54.9 | B188: 36.534231 | C188: 15.98666768 | D188: 99.916673 | E188: 16 | F188: 15.92449296 | G188: 0.1765705555 | H188: 309.534231 | I188: 3.230660456 | J188: 1.073793382 | K188: -0.074598 | L188: -273.238663 | M188: -25.68364027
A189: 55.2 | B189: 36.537127 | C189: 15.9866352 | D189: 99.91647 | E189: 16 | F189: 15.92449296 | G189: 0.1770007141 | H189: 309.537127 | I189: 3.230630231 | J189: 1.072626857 | K189: -0.074466 | L189: -272.956921 | M189: -25.79536804
A190: 55.5 | B190: 36.541135 | C190: 15.98660848 | D190: 99.916303 | E190: 16 | F190: 15.92449296 | G190: 0.1773545884 | H190: 309.541135 | I190: 3.2305884 | J190: 1.071669091 | K190: -0.07434 | L190: -272.689204 | M190: -25.90732394
A191: 55.8 | B191: 36.54533 | C191: 15.98658576 | D191: 99.916161 | E191: 16 | F191: 15.92449296 | G191: 0.1776554875 | H191: 309.54533 | I191: 3.230544618 | J191: 1.070856038 | K191: -0.07422 | L191: -272.420082 | M191: -26.01870689
A192: 56.1 | B192: 36.549644 | C192: 15.98656752 | D192: 99.916047 | E192: 16 | F192: 15.92449296 | G192: 0.1778970544 | H192: 309.549644 | I192: 3.230499596 | J192: 1.07020419 | K192: -0.074107 | L192: -272.279365 | M192: -26.14202423
A193: 56.4 | B193: 36.554026 | C193: 15.98654848 | D193: 99.915928 | E193: 16 | F193: 15.92449296 | G193: 0.1781492163 | H193: 309.554026 | I193: 3.230453866 | J193: 1.069524591 | K193: -0.073998 | L193: -272.259858 | M193: -26.27681916
A194: 56.7 | B194: 36.559272 | C194: 15.98651504 | D194: 99.915719 | E194: 16 | F194: 15.92449296 | G194: 0.1785920889 | H194: 309.559272 | I194: 3.23039912 | J194: 1.068333074 | K194: -0.073893 | L194: -272.362746 | M194: -26.42283564
A195: 57 | B195: 36.565007 | C195: 15.98648176 | D195: 99.915511 | E195: 16 | F195: 15.92449296 | G195: 0.1790328425 | H195: 309.565007 | I195: 3.230339274 | J195: 1.067149859 | K195: -0.073789 | L195: -272.514971 | M195: -26.57337181
A196: 57.3 | B196: 36.569206 | C196: 15.98644832 | D196: 99.915302 | E196: 16 | F196: 15.92449296 | G196: 0.1794757151 | H196: 309.569206 | I196: 3.230295458 | J196: 1.065963557 | K196: -0.073686 | L196: -272.702108 | M196: -26.72856223
A197: 57.6 | B197: 36.571609 | C197: 15.98640352 | D197: 99.915022 | E197: 16 | F197: 15.92449296 | G197: 0.1800690373 | H197: 309.571609 | I197: 3.230270383 | J197: 1.064378315 | K197: -0.073583 | L197: -272.918689 | M197: -26.88814992
A198: 57.9 | B198: 36.571678 | C198: 15.98635872 | D198: 99.914742 | E198: 16 | F198: 15.92449296 | G198: 0.1806623594 | H198: 309.571678 | I198: 3.230269663 | J198: 1.062797697 | K198: -0.073478 | L198: -273.153769 | M198: =(L198*A198)/(B198*C198) -> -27.05149802
A199: 58.2 | B199: 36.56958 | C199: 15.98630336 | D199: 99.914396 | E199: =E198 -> 16 | F199: =F198 -> 15.92449296 | G199: =(E199-C199)/(E199-F199) -> 0.1813955361 | H199: =273+B199 -> 309.56958 | I199: =1000/H199 -> 3.230291555 | J199: =-LOG(-LOG(1-G199)/H199*H199) -> 1.060850847 | K199: -0.07337 | L199: -273.314887 | M199: -27.20935518
A200: 58.5 | B200: 36.566252 | C200: 15.98625088 | D200: 99.914068 | E200: 16 | F200: 15.92449296 | G200: 0.1820905706 | H200: 309.566252 | I200: 3.230326282 | J200: 1.059011701 | K200: -0.073258 | L200: -273.402158 | M200: -27.36092226
A201: 58.8 | B201: 36.560945 | C201: 15.98619456 | D201: 99.913716 | E201: 16 | F201: 15.92449296 | G201: 0.1828364613 | H201: 309.560945 | I201: 3.230381662 | J201: 1.05704488 | K201: -0.073141 | L201: -273.436802 | M201: -27.50880884
A202: 59.1 | B202: 36.554469 | C202: 15.98613936 | D202: 99.913371 | E202: 16 | F202: 15.92449296 | G202: 0.183567519 | H202: 309.554469 | I202: 3.230449243 | J202: 1.055124047 | K202: -0.073019 | L202: -273.366664 | M202: -27.64706029
... 4298 more rows
